Service_Label,Service_Code,Service_Division_Label,Service_Division_Code,Organisational_Unit_Label,Organisational_Unit_Code,Merchant_Category,Summary_of_the_purpose_of_the_expenditure,Date,Transaction_Number,Capital_and_Revenue,Supplier_Name,Supplier_ID,Net_Amount
Transport Capital,CCAP,Bridges,CCAPB,Other Bridge Works,CG0042,Capital,Payments to Contractors,13/07/2022,3520007,Capital - General Fund,Enerveo Limited (Formerly SSE Contracting Ltd),20093,"6,881.91"
Transport Capital,CCAP,Bridges,CCAPB,Other Bridge Works,CG0042,Capital,Payments to Contractors,13/07/2022,3520008,Capital - General Fund,Enerveo Limited (Formerly SSE Contracting Ltd),20093,"4,492.37"
Transport Capital,CCAP,Bridges,CCAPB,Other Bridge Works,CG0042,Capital,Payments to Contractors,13/07/2022,3520038,Capital - General Fund,Enerveo Limited (Formerly SSE Contracting Ltd),20093,"3,741.59"
Transport Capital,CCAP,Bridges,CCAPB,Other Bridge Works,CG0042,Capital,Payments to Contractors,15/08/2022,3532249,Capital - General Fund,Enerveo Limited (Formerly SSE Contracting Ltd),20093,"5,721.53"
Transport Capital,CCAP,Bridges,CCAPB,Other Bridge Works,CG0042,Capital,Payments to Contractors,13/08/2022,3531531,Capital - General Fund,Network Rail,17393,"1,119.62"
Transport Capital,CCAP,Highways,CCAPH,Additional Roads Programme,CG0026,Capital,Payments to Contractors,23/08/2022,3534247,Capital - General Fund,Balfour Beatty Living Places Ltd,20306,"1,484,712.99"
Transport Capital,CCAP,Highways,CCAPH,Additional Roads Programme,CG0026,Capital,Payments to Contractors,31/08/2022,23438,Capital - General Fund,Balfour Beatty Living Places Ltd,20306,"-1,484,712.99"
Transport Capital,CCAP,Highways,CCAPH,Additional Roads Programme,CG0026,Capital,Payments to Contractors,20/09/2022,3539436,Capital - General Fund,Balfour Beatty Living Places Ltd,20306,"1,801,442.31"
Transport Capital,CCAP,Highways,CCAPH,Essential Highways Minor Works,CG0027,Capital,Payments to Contractors,07/09/2022,3537968,Capital - General Fund,CU Phosco Lighting,48256,"2,250.00"
Transport Capital,CCAP,Highways,CCAPH,Highways Drainage Investigations,CG0052,Capital,Payments to Contractors,10/08/2022,23398,Capital - General Fund,Balfour Beatty Living Places Ltd,20306,"-1,529,457.73"
Transport Capital,CCAP,Highways,CCAPH,St Lighting,CG0053,Capital,Payments to Contractors,09/08/2022,3529603,Capital - General Fund,Enerveo Limited (Formerly SSE Contracting Ltd),20093,"11,192.56"
Transport Capital,CCAP,Highways,CCAPH,St Lighting,CG0053,Capital,Payments to Contractors,02/09/2022,3536321,Capital - General Fund,Enerveo Limited (Formerly SSE Contracting Ltd),15283,"21,030.27"
Transport Capital,CCAP,Highways,CCAPH,St Lighting,CG0053,Capital,Payments to Contractors,09/09/2022,3536449,Capital - General Fund,Enerveo Limited (Formerly SSE Contracting Ltd),20093,"2,373.44"
Transport Capital,CCAP,Highways,CCAPH,Bedford Place,CG0250,Capital,Other Capital Expenditure,29/09/2022,3542957,Capital - General Fund,Will Curnow Studios,46043,"1,100.00"
Transport Capital,CCAP,Integrated Transport,CCAPI,Road Safety Partnership,CG0005,Capital,Capital Vehicles or Equipment,04/08/2022,3523240,Capital - General Fund,Enerveo Limited (Formerly SSE Contracting Ltd),15283,827.61
Transport Capital,CCAP,Integrated Transport,CCAPI,Road Safety Partnership,CG0005,Capital,Capital Vehicles or Equipment,26/08/2022,3536075,Capital - General Fund,Enerveo Limited (Formerly SSE Contracting Ltd),15283,-827.61
Transport Capital,CCAP,Integrated Transport,CCAPI,Road Safety Partnership,CG0005,Capital,Capital Vehicles or Equipment,26/08/2022,3536076,Capital - General Fund,Enerveo Limited (Formerly SSE Contracting Ltd),15283,827.61
Transport Capital,CCAP,Integrated Transport,CCAPI,Cycling,CG0006,Capital,Payments to Contractors,22/09/2022,3540936,Capital - General Fund,Enerveo Limited (Formerly SSE Contracting Ltd),20093,"11,227.60"
Transport Capital,CCAP,Integrated Transport,CCAPI,Cycling,CG0006,Capital,Payments to Contractors,23/09/2022,3541274,Capital - General Fund,Enerveo Limited (Formerly SSE Contracting Ltd),20093,"10,591.20"
Transport Capital,CCAP,Integrated Transport,CCAPI,Public Transport,CG0008,Capital,Other Capital Expenditure,11/07/2022,3521445,Capital - General Fund,JMW Systems LTd,20515,"3,800.00"
Transport Capital,CCAP,Integrated Transport,CCAPI,Improved Safety,CG0009,Capital,Other Capital Expenditure,11/08/2022,3530502,Capital - General Fund,Global Outdoor Media Limited,15262,"1,800.00"
Transport Capital,CCAP,Integrated Transport,CCAPI,Improved Safety,CG0009,Capital,Capital Vehicles or Equipment,11/07/2022,3520037,Capital - General Fund,Enerveo Limited (Formerly SSE Contracting Ltd),15283,827.61
Transport Capital,CCAP,Integrated Transport,CCAPI,Travel to School,CG0010,Capital,Payments to Contractors,22/07/2022,3526870,Capital - General Fund,Enerveo Limited (Formerly SSE Contracting Ltd),20093,"2,445.72"
Transport Capital,CCAP,Integrated Transport,CCAPI,Accessibility,CG0013,Capital,Other Capital Expenditure,06/07/2022,3521546,Capital - General Fund,Atkins Limited,18277,650
Transport Capital,CCAP,Integrated Transport,CCAPI,Accessibility,CG0013,Capital,Other Capital Expenditure,15/08/2022,3531747,Capital - General Fund,GW Shelter Solutions Ltd,41345,942.53
Transport Capital,CCAP,Integrated Transport,CCAPI,ITS,CG0017,Capital,Other Capital Expenditure,01/07/2022,3520775,Capital - General Fund,Hampshire County Council (Main),18625,"43,000.00"
Transport Capital,CCAP,Integrated Transport,CCAPI,Electric Vehicle Action Plan,CG0024,Capital,Other Capital Expenditure,06/07/2022,3518767,Capital - General Fund,Joju Solar Limited,21369,"2,741.75"
Transport Capital,CCAP,Integrated Transport,CCAPI,Electric Vehicle Action Plan,CG0024,Capital,Other Capital Expenditure,19/07/2022,3522031,Capital - General Fund,Joju Solar Limited,21369,"28,035.90"
Transport Capital,CCAP,Integrated Transport,CCAPI,Electric Vehicle Action Plan,CG0024,Capital,Other Capital Expenditure,29/09/2022,3535500,Capital - General Fund,Joju Solar Limited,21369,"-4,785.00"
Transport Capital,CCAP,Integrated Transport,CCAPI,FTZ Theme 1 - Personal Mobility,CG0209,Capital,Other Capital Expenditure,04/08/2022,3529039,Capital - General Fund,Portsmouth City Council,13832,"3,500.00"
Transport Capital,CCAP,Integrated Transport,CCAPI,FTZ Theme 1 - Personal Mobility,CG0209,Capital,Other Capital Expenditure,10/08/2022,3530933,Capital - General Fund,Portsmouth City Council,13832,"1,806.00"
Transport Capital,CCAP,Integrated Transport,CCAPI,FTZ Theme 1 - Personal Mobility,CG0209,Capital,Other Capital Expenditure,10/08/2022,3530929,Capital - General Fund,Portsmouth City Council,13832,"4,987.50"
Transport Capital,CCAP,Integrated Transport,CCAPI,FTZ Theme 1 - Personal Mobility,CG0209,Capital,Other Capital Expenditure,11/08/2022,3531014,Capital - General Fund,Portsmouth City Council,13832,"-3,500.00"
Transport Capital,CCAP,Integrated Transport,CCAPI,FTZ Theme 1 - Personal Mobility,CG0209,Capital,Other Capital Expenditure,15/08/2022,3527707,Capital - General Fund,Portsmouth City Council,13832,"161,704.00"
Transport Capital,CCAP,Integrated Transport,CCAPI,FTZ Theme 1 - Personal Mobility,CG0209,Capital,Other Capital Expenditure,29/09/2022,3542931,Capital - General Fund,Portsmouth City Council,13832,"6,114.75"
Transport Capital,CCAP,Integrated Transport,CCAPI,FTZ Theme 1 - Personal Mobility,CG0209,Capital,Other Capital Expenditure,29/09/2022,3542930,Capital - General Fund,Portsmouth City Council,13832,"4,987.50"
Transport Capital,CCAP,Integrated Transport,CCAPI,FTZ Theme 1 - Personal Mobility,CG0209,Capital,Other Capital Expenditure,24/08/2022,3535232,Capital - General Fund,University of Portsmouth,14810,"112,141.62"
Transport Capital,CCAP,Integrated Transport,CCAPI,FTZ Theme 1 - Personal Mobility,CG0209,Capital,Other Capital Expenditure,09/08/2022,3530314,Capital - General Fund,University Of Southampton,16259,"113,106.49"
Transport Capital,CCAP,Integrated Transport,CCAPI,Transforming Cities Fund,CG0215,Capital,Payments to Contractors,26/07/2022,3527150,Capital - General Fund,Balfour Beatty Living Places Ltd,20306,"384,859.52"
Transport Capital,CCAP,Integrated Transport,CCAPI,Transforming Cities Fund,CG0215,Capital,Payments to Contractors,17/08/2022,3534248,Capital - General Fund,Balfour Beatty Living Places Ltd,20306,"354,683.91"
Transport Capital,CCAP,Integrated Transport,CCAPI,Transforming Cities Fund,CG0215,Capital,Payments to Contractors,22/08/2022,3532335,Capital - General Fund,Balfour Beatty Living Places Ltd,20306,"34,247.51"
Transport Capital,CCAP,Integrated Transport,CCAPI,Transforming Cities Fund,CG0215,Capital,Payments to Contractors,09/09/2022,3526173,Capital - General Fund,Balfour Beatty Living Places Ltd,20306,"51,430.46"
Transport Capital,CCAP,Integrated Transport,CCAPI,Transforming Cities Fund,CG0215,Capital,Payments to Contractors,20/09/2022,3539438,Capital - General Fund,Balfour Beatty Living Places Ltd,20306,"671,893.98"
Transport Capital,CCAP,Integrated Transport,CCAPI,Transforming Cities Fund,CG0215,Capital,Payments to Contractors,15/08/2022,3532423,Capital - General Fund,Enerveo Limited (Formerly SSE Contracting Ltd),20093,"2,328.65"
Transport Capital,CCAP,Integrated Transport,CCAPI,Transforming Cities Fund,CG0215,Capital,Payments to Contractors,20/09/2022,3513232,Capital - General Fund,Enerveo Limited (Formerly SSE Contracting Ltd),20093,"33,897.67"
Transport Capital,CCAP,Integrated Transport,CCAPI,Transforming Cities Fund,CG0215,Capital,Payments to Contractors,23/09/2022,3541947,Capital - General Fund,Enerveo Limited (Formerly SSE Contracting Ltd),20093,"3,844.19"
Transport Capital,CCAP,Integrated Transport,CCAPI,Transforming Cities Fund,CG0215,Capital,Other Capital Expenditure,06/07/2022,3521082,Capital - General Fund,Dan Wilson Photography,13830,600
Transport Capital,CCAP,Integrated Transport,CCAPI,Transforming Cities Fund,CG0215,Capital,Other Capital Expenditure,22/07/2022,3519944,Capital - General Fund,Joju Solar Limited,21369,"23,089.50"
Transport Capital,CCAP,Integrated Transport,CCAPI,Transforming Cities Fund,CG0215,Capital,Other Capital Expenditure,22/07/2022,3519943,Capital - General Fund,Joju Solar Limited,21369,"6,445.80"
Transport Capital,CCAP,Integrated Transport,CCAPI,Transforming Cities Fund,CG0215,Capital,Other Capital Expenditure,23/08/2022,3530390,Capital - General Fund,Joju Solar Limited,21369,716.2
Transport Capital,CCAP,Integrated Transport,CCAPI,Transforming Cities Fund,CG0215,Capital,Other Capital Expenditure,23/08/2022,3530391,Capital - General Fund,Joju Solar Limited,21369,"2,565.50"
Transport Capital,CCAP,Integrated Transport,CCAPI,Transforming Cities Fund,CG0215,Capital,Other Capital Expenditure,12/07/2022,3523210,Capital - General Fund,Ubiquity Group Ltd,14200,500
Transport Capital,CCAP,Integrated Transport,CCAPI,Transforming Cities Fund,CG0215,Capital,Other Capital Expenditure,26/07/2022,3527606,Capital - General Fund,Ubiquity Group Ltd,14200,"3,000.00"
Transport Capital,CCAP,Integrated Transport,CCAPI,Transforming Cities Fund,CG0215,Capital,Other Capital Expenditure,01/08/2022,3526389,Capital - General Fund,Ubiquity Group Ltd,14200,585
Transport Capital,CCAP,Integrated Transport,CCAPI,Transforming Cities Fund,CG0215,Capital,Other Capital Expenditure,01/08/2022,3526385,Capital - General Fund,Ubiquity Group Ltd,14200,"7,000.00"
Transport Capital,CCAP,Integrated Transport,CCAPI,Transforming Cities Fund,CG0215,Capital,Other Capital Expenditure,02/08/2022,3529000,Capital - General Fund,Ubiquity Group Ltd,14200,"1,630.00"
Transport Capital,CCAP,Integrated Transport,CCAPI,Transforming Cities Fund,CG0215,Capital,Other Capital Expenditure,02/08/2022,3529031,Capital - General Fund,Ubiquity Group Ltd,14200,"1,850.00"
Transport Capital,CCAP,Integrated Transport,CCAPI,Transforming Cities Fund,CG0215,Capital,Other Capital Expenditure,02/08/2022,3529034,Capital - General Fund,Ubiquity Group Ltd,14200,"3,915.00"
Transport Capital,CCAP,Integrated Transport,CCAPI,Transforming Cities Fund,CG0215,Capital,Other Capital Expenditure,02/08/2022,3529032,Capital - General Fund,Ubiquity Group Ltd,14200,"1,450.00"
Transport Capital,CCAP,Integrated Transport,CCAPI,Transforming Cities Fund,CG0215,Capital,Other Capital Expenditure,28/09/2022,3542445,Capital - General Fund,Ubiquity Group Ltd,14200,"1,485.00"
Transport Capital,CCAP,Integrated Transport,CCAPI,Transforming Cities Fund,CG0215,Capital,Other Capital Expenditure,27/09/2022,3542505,Capital - General Fund,Will Curnow Studios,46043,"1,650.00"
Transport Capital,CCAP,Integrated Transport,CCAPI,Transforming Cities Fund,CG0215,Capital,Consultancy (Professional expertise & advice),01/08/2022,3517573,Capital - General Fund,Network Rail,17393,"10,660.70"
Transport Capital,CCAP,Integrated Transport,CCAPI,FTZ Theme 2 - Sustainable Urban Loggistics,CG0217,Capital,Other Capital Expenditure,10/08/2022,3530931,Capital - General Fund,Portsmouth City Council,13832,"39,674.83"
Transport Capital,CCAP,Integrated Transport,CCAPI,FTZ Theme 2 - Sustainable Urban Loggistics,CG0217,Capital,Other Capital Expenditure,29/09/2022,3542932,Capital - General Fund,Portsmouth City Council,13832,"13,725.00"
Transport Capital,CCAP,Integrated Transport,CCAPI,FTZ Theme 2 - Sustainable Urban Loggistics,CG0217,Capital,Other Capital Expenditure,23/08/2022,3535234,Capital - General Fund,University of Portsmouth,14810,"22,091.39"
Transport Capital,CCAP,Integrated Transport,CCAPI,FTZ Theme 2 - Sustainable Urban Loggistics,CG0217,Capital,Other Capital Expenditure,30/08/2022,3535235,Capital - General Fund,University of Portsmouth,14810,"18,076.33"
Transport Capital,CCAP,Integrated Transport,CCAPI,FTZ Theme 2 - Sustainable Urban Loggistics,CG0217,Capital,Other Capital Expenditure,30/08/2022,3535233,Capital - General Fund,University of Portsmouth,14810,"31,804.60"
Transport Capital,CCAP,Integrated Transport,CCAPI,FTZ Theme 2 - Sustainable Urban Loggistics,CG0217,Capital,Other Capital Expenditure,05/09/2022,3537360,Capital - General Fund,University Of Southampton,16259,"28,903.91"
Transport Capital,CCAP,Integrated Transport,CCAPI,FTZ Theme 2 - Sustainable Urban Loggistics,CG0217,Capital,Other Capital Expenditure,26/09/2022,3541237,Capital - General Fund,University Of Southampton,16259,"153,101.12"
Transport Capital,CCAP,Integrated Transport,CCAPI,FTZ Programme - Other,CG0218,Capital,Other Capital Expenditure,09/08/2022,3524344,Capital - General Fund,Access Intelligence Media and Communications Ltd,14335,650
Transport Capital,CCAP,Integrated Transport,CCAPI,FTZ Programme - Other,CG0218,Capital,Other Capital Expenditure,22/09/2022,3541524,Capital - General Fund,Bigstuff Limited,17726,"2,280.00"
Transport Capital,CCAP,Integrated Transport,CCAPI,FTZ Programme - Other,CG0218,Capital,Other Capital Expenditure,08/07/2022,3522944,Capital - General Fund,CILT(UK) T/A PTRC Education & Research Services,47859,"1,298.00"
Transport Capital,CCAP,Integrated Transport,CCAPI,FTZ Programme - Other,CG0218,Capital,Other Capital Expenditure,30/08/2022,3536273,Capital - General Fund,Hampshire County Council (Main),18625,"35,034.96"
Transport Capital,CCAP,Integrated Transport,CCAPI,FTZ Programme - Other,CG0218,Capital,Other Capital Expenditure,01/09/2022,3536531,Capital - General Fund,Landor Links Ltd,20246,"2,673.56"
Transport Capital,CCAP,Integrated Transport,CCAPI,FTZ Programme - Other,CG0218,Capital,Other Capital Expenditure,22/08/2022,3534854,Capital - General Fund,National Museum Of The Royal Navy,47060,"3,900.00"
Transport Capital,CCAP,Integrated Transport,CCAPI,FTZ Programme - Other,CG0218,Capital,Other Capital Expenditure,14/07/2022,3523254,Capital - General Fund,Portsmouth City Council,13832,"6,334.00"
Transport Capital,CCAP,Integrated Transport,CCAPI,FTZ Programme - Other,CG0218,Capital,Other Capital Expenditure,10/08/2022,3530932,Capital - General Fund,Portsmouth City Council,13832,"9,901.78"
Transport Capital,CCAP,Integrated Transport,CCAPI,FTZ Programme - Other,CG0218,Capital,Other Capital Expenditure,10/08/2022,3530930,Capital - General Fund,Portsmouth City Council,13832,"6,500.00"
Transport Capital,CCAP,Integrated Transport,CCAPI,FTZ Programme - Other,CG0218,Capital,Other Capital Expenditure,11/08/2022,3530677,Capital - General Fund,Portsmouth City Council,13832,"19,184.00"
Transport Capital,CCAP,Integrated Transport,CCAPI,FTZ Programme - Other,CG0218,Capital,Other Capital Expenditure,01/09/2022,3535521,Capital - General Fund,Portsmouth City Council,13832,700
Transport Capital,CCAP,Integrated Transport,CCAPI,FTZ Programme - Other,CG0218,Capital,Other Capital Expenditure,01/09/2022,3536714,Capital - General Fund,Portsmouth City Council,13832,"12,500.00"
Transport Capital,CCAP,Integrated Transport,CCAPI,FTZ Programme - Other,CG0218,Capital,Other Capital Expenditure,05/09/2022,3537138,Capital - General Fund,Portsmouth City Council,13832,"-19,184.00"
Transport Capital,CCAP,Integrated Transport,CCAPI,FTZ Programme - Other,CG0218,Capital,Other Capital Expenditure,29/09/2022,3542929,Capital - General Fund,Portsmouth City Council,13832,"3,100.00"
Transport Capital,CCAP,Integrated Transport,CCAPI,FTZ Programme - Other,CG0218,Capital,Other Capital Expenditure,09/08/2022,3530313,Capital - General Fund,University Of Southampton,16259,"31,743.70"
Transport Capital,CCAP,Integrated Transport,CCAPI,FTZ Programme - Other,CG0218,Capital,Computer Equipment - Hardware,06/09/2022,3537563,Capital - General Fund,Vohkus Limited,41605,530
Transport Capital,CCAP,Other Environment,CCAPO,Purchase of vehicles,CT0001,Capital,Capital Vehicles or Equipment,28/07/2022,3521131,Capital - General Fund,Hunt Forest Group,16252,"67,920.00"
Transport Capital,CCAP,Other Environment,CCAPO,City Services - Depots,CT0075,Capital,Payments to Contractors,11/07/2022,3522938,Capital - General Fund,CLC Contractors Ltd,21686,"8,891.72"
Transport Capital,CCAP,Other Environment,CCAPO,City Services - Depots,CT0075,Capital,Payments to Contractors,26/09/2022,3541393,Capital - General Fund,Ghyllside Ltd,15672,"9,252.00"
Transport Capital,CCAP,"Purchase of Plant, Machinary & Equipment",NS011,Solar Powered Compactor Bins,CT0055,Capital,Other Capital Expenditure,04/07/2022,3519831,Capital - General Fund,Egbert H Taylor & Co Ltd,21913,"21,068.00"
Transport Capital,CCAP,"Purchase of Plant, Machinary & Equipment",NS011,Solar Powered Compactor Bins,CT0055,Capital,Other Capital Expenditure,11/08/2022,3531447,Capital - General Fund,Egbert H Taylor & Co Ltd,21913,"55,642.00"
Transport Capital,CCAP,"Purchase of Plant, Machinary & Equipment",NS011,Solar Powered Compactor Bins,CT0055,Capital,Other Capital Expenditure,16/08/2022,3531554,Capital - General Fund,Egbert H Taylor & Co Ltd,21913,"2,880.00"
Transport Capital,CCAP,"Purchase of Plant, Machinary & Equipment",NS011,Solar Powered Compactor Bins,CT0055,"Tools, Equipment, Furniture & Materials",Materials - Work Orders,06/09/2022,3536743,Capital - General Fund,Egbert H Taylor & Co Ltd,21913,"37,564.45"
Transport Capital,CCAP,Sustainability,SUS02,Public Sector Decarbonisation Scheme,CG0220,Capital,Payments to Contractors,05/07/2022,3517786,Capital - General Fund,Faithful & Gould Ltd,15245,"6,481.00"
Transport Capital,CCAP,Sustainability,SUS02,Weston Shore Coastal Erosion,CT0061,Capital,Payments to Contractors,16/09/2022,3540264,Capital - General Fund,Balfour Beatty Living Places Ltd,20306,"234,039.88"
Transport Capital,CCAP,Sustainability,SUS02,Weston Shore Coastal Erosion,CT0061,Capital,Consultancy (Professional expertise & advice),31/08/2022,3535468,Capital - General Fund,Balfour Beatty Living Places Ltd,20306,"9,433.01"
Transport Capital,CCAP,Sustainability,SUS02,Weston Shore Coastal Erosion,CT0061,Capital,Consultancy (Professional expertise & advice),31/08/2022,3535467,Capital - General Fund,Balfour Beatty Living Places Ltd,20306,"15,885.31"
Transport Capital,CCAP,Sustainability,SUS02,Weston Shore Coastal Erosion,CT0061,Capital,Consultancy (Professional expertise & advice),31/08/2022,3535557,Capital - General Fund,Balfour Beatty Living Places Ltd,20306,"6,859.38"
Transport Capital,CCAP,Sustainability,SUS02,Weston Shore Coastal Erosion,CT0061,Capital,Consultancy (Professional expertise & advice),31/08/2022,3535469,Capital - General Fund,Balfour Beatty Living Places Ltd,20306,"13,158.36"
Transport Capital,CCAP,Sustainability,SUS02,Weston Shore Coastal Erosion,CT0061,Capital,Consultancy (Professional expertise & advice),07/09/2022,3530679,Capital - General Fund,Balfour Beatty Living Places Ltd,20306,"1,462.04"
Transport Capital,CCAP,Sustainability,SUS02,Weston Shore Coastal Erosion,CT0061,Capital,Consultancy (Professional expertise & advice),08/09/2022,3530680,Capital - General Fund,Balfour Beatty Living Places Ltd,20306,"2,069.63"
Transport Capital,CCAP,Sustainability,SUS02,Weston Shore Coastal Erosion,CT0061,Capital,Consultancy (Professional expertise & advice),16/09/2022,3540265,Capital - General Fund,Balfour Beatty Living Places Ltd,20306,"10,811.36"
Transport Capital,CCAP,Sustainability,SUS02,Weston Shore Coastal Erosion,CT0061,Capital,Consultancy (Professional expertise & advice),20/09/2022,3539960,Capital - General Fund,Balfour Beatty Living Places Ltd,20306,"19,510.12"
Children & Learning,CHIL,Divisional Management and Legal,CHF10,Children and Families Management Team,AC0110,Miscellaneous and Initiative Expenses,Project Expenses,27/07/2022,3524377,Revenue - General Fund,Tripod Partners Ltd,14842,"1,763.99"
Children & Learning,CHIL,Divisional Management and Legal,CHF10,Children and Families Management Team,AC0110,Miscellaneous and Initiative Expenses,Project Expenses,27/07/2022,3524431,Revenue - General Fund,Tripod Partners Ltd,14842,"1,274.54"
Children & Learning,CHIL,Divisional Management and Legal,CHF10,Children and Families Management Team,AC0110,Miscellaneous and Initiative Expenses,Project Expenses,27/07/2022,3524376,Revenue - General Fund,Tripod Partners Ltd,14842,"3,392.93"
Children & Learning,CHIL,Divisional Management and Legal,CHF10,Children and Families Management Team,AC0110,Miscellaneous and Initiative Expenses,Project Expenses,27/07/2022,3524378,Revenue - General Fund,Tripod Partners Ltd,14842,"5,083.89"
Children & Learning,CHIL,Divisional Management and Legal,CHF10,Children and Families Management Team,AC0110,Miscellaneous and Initiative Expenses,Project Expenses,27/07/2022,3524382,Revenue - General Fund,Tripod Partners Ltd,14842,"2,294.94"
Children & Learning,CHIL,Divisional Management and Legal,CHF10,Children and Families Management Team,AC0110,Miscellaneous and Initiative Expenses,Project Expenses,27/07/2022,3524369,Revenue - General Fund,Tripod Partners Ltd,14842,"4,504.62"
Children & Learning,CHIL,Divisional Management and Legal,CHF10,Children and Families Management Team,AC0110,Miscellaneous and Initiative Expenses,Project Expenses,27/07/2022,3524374,Revenue - General Fund,Tripod Partners Ltd,14842,"1,600.96"
Children & Learning,CHIL,Divisional Management and Legal,CHF10,Children and Families Management Team,AC0110,Miscellaneous and Initiative Expenses,Project Expenses,02/08/2022,3524380,Revenue - General Fund,Tripod Partners Ltd,14842,"5,374.06"
Children & Learning,CHIL,Divisional Management and Legal,CHF10,Children and Families Management Team,AC0110,Miscellaneous and Initiative Expenses,Project Expenses,02/08/2022,3524370,Revenue - General Fund,Tripod Partners Ltd,14842,"2,431.56"
Children & Learning,CHIL,Divisional Management and Legal,CHF10,Children and Families Management Team,AC0110,Miscellaneous and Initiative Expenses,Project Expenses,02/08/2022,3524379,Revenue - General Fund,Tripod Partners Ltd,14842,"3,146.01"
Children & Learning,CHIL,Divisional Management and Legal,CHF10,Children and Families Management Team,AC0110,Miscellaneous and Initiative Expenses,Other Expenses,08/07/2022,3522813,Revenue - General Fund,Allpay Limited - General Fees,19392,787
Children & Learning,CHIL,Divisional Management and Legal,CHF10,Children and Families Management Team,AC0110,Miscellaneous and Initiative Expenses,Other Expenses,26/07/2022,3514971,Revenue - General Fund,Allpay Limited - General Fees,19392,779.37
Children & Learning,CHIL,Divisional Management and Legal,CHF10,Children and Families Management Team,AC0110,Miscellaneous and Initiative Expenses,Other Expenses,16/09/2022,3538517,Revenue - General Fund,Allpay Limited - General Fees,19392,887.46
Children & Learning,CHIL,Divisional Management and Legal,CHF10,Children and Families Management Team,AC0110,Services,Legal Expenses,26/08/2022,3517693,Revenue - General Fund,DA Languages Ltd,20287,"1,010.57"
Children & Learning,CHIL,Divisional Management and Legal,CHF10,Children and Families Management Team,AC0110,Services,Legal Expenses,23/09/2022,3541443,Revenue - General Fund,DA Languages Ltd,20287,"2,212.35"
Children & Learning,CHIL,Divisional Management and Legal,CHF10,Children and Families Management Team,AC0110,Services,Interpreter/Translation Services,28/09/2022,3534577,Revenue - General Fund,DA Languages Ltd,20287,830.48
Children & Learning,CHIL,Divisional Management and Legal,CHF10,Children and Families Management Team,AC0110,Services,Interpreter/Translation Services,04/09/2022,3520023,Revenue - General Fund,Global Voices Ltd,16500,600
Children & Learning,CHIL,Divisional Management and Legal,CHF10,Children and Families Management Team,AC0110,Services,Interpreter/Translation Services,05/09/2022,3522861,Revenue - General Fund,Global Voices Ltd,16500,"3,171.00"
Children & Learning,CHIL,Divisional Management and Legal,CHF10,Children and Families Management Team,AC0110,Services,Interpreter/Translation Services,09/09/2022,3530202,Revenue - General Fund,Global Voices Ltd,16500,"1,260.00"
Children & Learning,CHIL,Divisional Management and Legal,CHF10,Children and Families Management Team,AC0110,Services,Interpreter/Translation Services,09/09/2022,3534297,Revenue - General Fund,Global Voices Ltd,16500,600
Children & Learning,CHIL,Divisional Management and Legal,CHF10,Children and Families Management Team,AC0110,Services,Interpreter/Translation Services,09/09/2022,3535515,Revenue - General Fund,Global Voices Ltd,16500,500
Children & Learning,CHIL,Divisional Management and Legal,CHF10,Children and Families Management Team,AC0110,Services,Interpreter/Translation Services,09/09/2022,3530205,Revenue - General Fund,Global Voices Ltd,16500,600
Children & Learning,CHIL,Divisional Management and Legal,CHF10,Children and Families Management Team,AC0110,Services,Interpreter/Translation Services,09/09/2022,3531995,Revenue - General Fund,Global Voices Ltd,16500,630.08
Children & Learning,CHIL,Divisional Management and Legal,CHF10,Children and Families Management Team,AC0110,Services,Interpreter/Translation Services,09/09/2022,3536525,Revenue - General Fund,Global Voices Ltd,16500,583.4
Children & Learning,CHIL,Divisional Management and Legal,CHF10,Children and Families Management Team,AC0110,Services,Interpreter/Translation Services,09/09/2022,3535485,Revenue - General Fund,Global Voices Ltd,16500,990
Children & Learning,CHIL,Divisional Management and Legal,CHF10,Children and Families Management Team,AC0110,Services,Interpreter/Translation Services,09/09/2022,3536524,Revenue - General Fund,Global Voices Ltd,16500,"3,572.00"
Children & Learning,CHIL,Divisional Management and Legal,CHF10,Children and Families Management Team,AC0110,Services,Interpreter/Translation Services,26/09/2022,3541659,Revenue - General Fund,Global Voices Ltd,16500,"1,410.00"
Children & Learning,CHIL,Divisional Management and Legal,CHF10,Children and Families Management Team,AC0110,Services,Interpreter/Translation Services,27/09/2022,3531550,Revenue - General Fund,Global Voices Ltd,16500,"4,855.00"
Children & Learning,CHIL,Divisional Management and Legal,CHF10,Children and Families Management Team,AC0110,Services,Interpreter/Translation Services,09/08/2022,3530300,Revenue - General Fund,VIET LINGUISTICS LTD,42896,"2,520.00"
Children & Learning,CHIL,Divisional Management and Legal,CHF10,Children and Families Management Team,AC0110,Services,Interpreter/Translation Services,22/08/2022,3532177,Revenue - General Fund,VIET LINGUISTICS LTD,42896,"1,100.00"
Children & Learning,CHIL,Divisional Management and Legal,CHF10,Children and Families Management Team,AC0110,Services,Interpreter/Translation Services,16/09/2022,3539979,Revenue - General Fund,VIET LINGUISTICS LTD,42896,"2,420.00"
Children & Learning,CHIL,Divisional Management and Legal,CHF10,Children and Families Management Team,AC0110,Services,Interpreter/Translation Services,16/09/2022,3539978,Revenue - General Fund,VIET LINGUISTICS LTD,42896,"1,760.00"
Children & Learning,CHIL,Divisional Management and Legal,CHF10,Children and Families Management Team,AC0110,Rents,Building Rents,07/07/2022,3521525,Revenue - General Fund,Novotel Southampton,16220,"1,208.33"
Children & Learning,CHIL,Divisional Management and Legal,CHF10,Children and Families Management Team,AC0110,Rents,Building Rents,21/09/2022,3535684,Revenue - General Fund,Novotel Southampton,16220,875
Children & Learning,CHIL,Divisional Management and Legal,CHF10,Children and Families Management Team,AC0110,Rents,Building Rents,21/09/2022,3540628,Revenue - General Fund,University Of Southampton,16259,685
Children & Learning,CHIL,Divisional Management and Legal,CHF10,Legal Fees,AC0120,Services,Legal Expenses,05/09/2022,3537486,Revenue - General Fund,11 KBW Limited Holding Account,47774,"6,054.00"
Children & Learning,CHIL,Divisional Management and Legal,CHF10,Legal Fees,AC0120,Services,Legal Expenses,04/08/2022,3528197,Revenue - General Fund,Advanced Child Care Assessments Ltd,32743,"2,319.80"
Children & Learning,CHIL,Divisional Management and Legal,CHF10,Legal Fees,AC0120,Services,Legal Expenses,04/08/2022,3528198,Revenue - General Fund,Advanced Child Care Assessments Ltd,32743,"1,460.20"
Children & Learning,CHIL,Divisional Management and Legal,CHF10,Legal Fees,AC0120,Services,Legal Expenses,04/08/2022,3528200,Revenue - General Fund,Advanced Child Care Assessments Ltd,32743,881.3
Children & Learning,CHIL,Divisional Management and Legal,CHF10,Legal Fees,AC0120,Services,Legal Expenses,04/08/2022,3528204,Revenue - General Fund,Advanced Child Care Assessments Ltd,32743,"1,400.00"
Children & Learning,CHIL,Divisional Management and Legal,CHF10,Legal Fees,AC0120,Services,Legal Expenses,04/08/2022,3528207,Revenue - General Fund,Advanced Child Care Assessments Ltd,32743,"2,378.00"
Children & Learning,CHIL,Divisional Management and Legal,CHF10,Legal Fees,AC0120,Services,Legal Expenses,04/08/2022,3528212,Revenue - General Fund,Advanced Child Care Assessments Ltd,32743,"2,733.70"
Children & Learning,CHIL,Divisional Management and Legal,CHF10,Legal Fees,AC0120,Services,Legal Expenses,04/08/2022,3528214,Revenue - General Fund,Advanced Child Care Assessments Ltd,32743,"1,487.10"
Children & Learning,CHIL,Divisional Management and Legal,CHF10,Legal Fees,AC0120,Services,Legal Expenses,04/08/2022,3528215,Revenue - General Fund,Advanced Child Care Assessments Ltd,32743,"2,111.85"
Children & Learning,CHIL,Divisional Management and Legal,CHF10,Legal Fees,AC0120,Services,Legal Expenses,04/08/2022,3528199,Revenue - General Fund,Advanced Child Care Assessments Ltd,32743,"3,277.06"
Children & Learning,CHIL,Divisional Management and Legal,CHF10,Legal Fees,AC0120,Services,Legal Expenses,04/08/2022,3528201,Revenue - General Fund,Advanced Child Care Assessments Ltd,32743,"2,273.60"
Children & Learning,CHIL,Divisional Management and Legal,CHF10,Legal Fees,AC0120,Services,Legal Expenses,04/08/2022,3528202,Revenue - General Fund,Advanced Child Care Assessments Ltd,32743,"3,072.80"
Children & Learning,CHIL,Divisional Management and Legal,CHF10,Legal Fees,AC0120,Services,Legal Expenses,04/08/2022,3528205,Revenue - General Fund,Advanced Child Care Assessments Ltd,32743,"2,036.80"
Children & Learning,CHIL,Divisional Management and Legal,CHF10,Legal Fees,AC0120,Services,Legal Expenses,04/08/2022,3528206,Revenue - General Fund,Advanced Child Care Assessments Ltd,32743,"1,400.00"
Children & Learning,CHIL,Divisional Management and Legal,CHF10,Legal Fees,AC0120,Services,Legal Expenses,04/08/2022,3528209,Revenue - General Fund,Advanced Child Care Assessments Ltd,32743,"1,810.30"
Children & Learning,CHIL,Divisional Management and Legal,CHF10,Legal Fees,AC0120,Services,Legal Expenses,04/08/2022,3528213,Revenue - General Fund,Advanced Child Care Assessments Ltd,32743,"1,400.00"
Children & Learning,CHIL,Divisional Management and Legal,CHF10,Legal Fees,AC0120,Services,Legal Expenses,04/08/2022,3528203,Revenue - General Fund,Advanced Child Care Assessments Ltd,32743,"2,376.72"
Children & Learning,CHIL,Divisional Management and Legal,CHF10,Legal Fees,AC0120,Services,Legal Expenses,17/08/2022,3534141,Revenue - General Fund,Advanced Child Care Assessments Ltd,32743,"2,656.44"
Children & Learning,CHIL,Divisional Management and Legal,CHF10,Legal Fees,AC0120,Services,Legal Expenses,17/08/2022,3531683,Revenue - General Fund,Cansford Laboratories Limited,21354,860
Children & Learning,CHIL,Divisional Management and Legal,CHF10,Legal Fees,AC0120,Services,Legal Expenses,22/08/2022,3532140,Revenue - General Fund,Child Law Partnership Ltd,18575,755.15
Children & Learning,CHIL,Divisional Management and Legal,CHF10,Legal Fees,AC0120,Services,Legal Expenses,26/09/2022,3540287,Revenue - General Fund,Colin Morgan,19858,820
Children & Learning,CHIL,Divisional Management and Legal,CHF10,Legal Fees,AC0120,Services,Legal Expenses,26/07/2022,3524870,Revenue - General Fund,College Chambers (Training),26315,"1,500.00"
Children & Learning,CHIL,Divisional Management and Legal,CHF10,Legal Fees,AC0120,Services,Legal Expenses,26/07/2022,3524874,Revenue - General Fund,College Chambers (Training),26315,525
Children & Learning,CHIL,Divisional Management and Legal,CHF10,Legal Fees,AC0120,Services,Legal Expenses,02/08/2022,3527439,Revenue - General Fund,College Chambers (Training),26315,925
Children & Learning,CHIL,Divisional Management and Legal,CHF10,Legal Fees,AC0120,Services,Legal Expenses,02/09/2022,3536600,Revenue - General Fund,Cristina Alfred (Pallant),44681,765
Children & Learning,CHIL,Divisional Management and Legal,CHF10,Legal Fees,AC0120,Services,Legal Expenses,20/07/2022,3516976,Revenue - General Fund,DA Languages Ltd,20287,"1,449.58"
Children & Learning,CHIL,Divisional Management and Legal,CHF10,Legal Fees,AC0120,Services,Legal Expenses,20/07/2022,3517701,Revenue - General Fund,DA Languages Ltd,20287,500.03
Children & Learning,CHIL,Divisional Management and Legal,CHF10,Legal Fees,AC0120,Services,Legal Expenses,20/07/2022,3520121,Revenue - General Fund,DA Languages Ltd,20287,"1,361.64"
Children & Learning,CHIL,Divisional Management and Legal,CHF10,Legal Fees,AC0120,Services,Legal Expenses,20/07/2022,3521247,Revenue - General Fund,DA Languages Ltd,20287,"5,350.09"
Children & Learning,CHIL,Divisional Management and Legal,CHF10,Legal Fees,AC0120,Services,Legal Expenses,20/07/2022,3517713,Revenue - General Fund,DA Languages Ltd,20287,"1,189.89"
Children & Learning,CHIL,Divisional Management and Legal,CHF10,Legal Fees,AC0120,Services,Legal Expenses,20/07/2022,3513000,Revenue - General Fund,DA Languages Ltd,20287,"1,162.38"
Children & Learning,CHIL,Divisional Management and Legal,CHF10,Legal Fees,AC0120,Services,Legal Expenses,20/07/2022,3520093,Revenue - General Fund,DA Languages Ltd,20287,"1,237.95"
Children & Learning,CHIL,Divisional Management and Legal,CHF10,Legal Fees,AC0120,Services,Legal Expenses,17/08/2022,3526892,Revenue - General Fund,DA Languages Ltd,20287,"1,512.90"
Children & Learning,CHIL,Divisional Management and Legal,CHF10,Legal Fees,AC0120,Services,Legal Expenses,17/08/2022,3528303,Revenue - General Fund,DA Languages Ltd,20287,"1,118.78"
Children & Learning,CHIL,Divisional Management and Legal,CHF10,Legal Fees,AC0120,Services,Legal Expenses,17/08/2022,3526893,Revenue - General Fund,DA Languages Ltd,20287,610.58
Children & Learning,CHIL,Divisional Management and Legal,CHF10,Legal Fees,AC0120,Services,Legal Expenses,17/08/2022,3528298,Revenue - General Fund,DA Languages Ltd,20287,"1,108.50"
Children & Learning,CHIL,Divisional Management and Legal,CHF10,Legal Fees,AC0120,Services,Legal Expenses,02/09/2022,3534574,Revenue - General Fund,DA Languages Ltd,20287,"1,186.05"
Children & Learning,CHIL,Divisional Management and Legal,CHF10,Legal Fees,AC0120,Services,Legal Expenses,02/09/2022,3534579,Revenue - General Fund,DA Languages Ltd,20287,676.2
Children & Learning,CHIL,Divisional Management and Legal,CHF10,Legal Fees,AC0120,Services,Legal Expenses,02/09/2022,3536323,Revenue - General Fund,DA Languages Ltd,20287,"1,616.03"
Children & Learning,CHIL,Divisional Management and Legal,CHF10,Legal Fees,AC0120,Services,Legal Expenses,02/09/2022,3534572,Revenue - General Fund,DA Languages Ltd,20287,"4,788.38"
Children & Learning,CHIL,Divisional Management and Legal,CHF10,Legal Fees,AC0120,Services,Legal Expenses,20/07/2022,3523398,Revenue - General Fund,Daniel Nother,14804,725
Children & Learning,CHIL,Divisional Management and Legal,CHF10,Legal Fees,AC0120,Services,Legal Expenses,02/09/2022,3536309,Revenue - General Fund,Daniel Nother,14804,925
Children & Learning,CHIL,Divisional Management and Legal,CHF10,Legal Fees,AC0120,Services,Legal Expenses,20/07/2022,3523403,Revenue - General Fund,David Lang,16881,500
Children & Learning,CHIL,Divisional Management and Legal,CHF10,Legal Fees,AC0120,Services,Legal Expenses,09/08/2022,3528610,Revenue - General Fund,David Lang,16881,525
Children & Learning,CHIL,Divisional Management and Legal,CHF10,Legal Fees,AC0120,Services,Legal Expenses,09/08/2022,3530445,Revenue - General Fund,David Lang,16881,875
Children & Learning,CHIL,Divisional Management and Legal,CHF10,Legal Fees,AC0120,Services,Legal Expenses,20/07/2022,3523279,Revenue - General Fund,Dr Grange and Associates Limited,47846,"1,377.00"
Children & Learning,CHIL,Divisional Management and Legal,CHF10,Legal Fees,AC0120,Services,Legal Expenses,22/08/2022,3532133,Revenue - General Fund,Dutton Gregory LLP,16234,"1,500.00"
Children & Learning,CHIL,Divisional Management and Legal,CHF10,Legal Fees,AC0120,Services,Legal Expenses,02/09/2022,3536319,Revenue - General Fund,"Gary Willmott, 2 Dr Johnson's Buildings",45731,"1,000.00"
Children & Learning,CHIL,Divisional Management and Legal,CHF10,Legal Fees,AC0120,Services,Legal Expenses,20/07/2022,3523401,Revenue - General Fund,Gemma Bower,18783,600
Children & Learning,CHIL,Divisional Management and Legal,CHF10,Legal Fees,AC0120,Services,Legal Expenses,04/08/2022,3528269,Revenue - General Fund,IDNA Genetics Ltd t/a Anglia DNA Services Ltd,21277,799
Children & Learning,CHIL,Divisional Management and Legal,CHF10,Legal Fees,AC0120,Services,Legal Expenses,26/09/2022,3541002,Revenue - General Fund,IDNA Genetics Ltd t/a Anglia DNA Services Ltd,21277,"1,071.00"
Children & Learning,CHIL,Divisional Management and Legal,CHF10,Legal Fees,AC0120,Services,Legal Expenses,26/07/2022,3521336,Revenue - General Fund,Jessica Habel,16561,"1,330.00"
Children & Learning,CHIL,Divisional Management and Legal,CHF10,Legal Fees,AC0120,Services,Legal Expenses,02/09/2022,3537150,Revenue - General Fund,Matthew Knight Notary Public,48465,597.8
Children & Learning,CHIL,Divisional Management and Legal,CHF10,Legal Fees,AC0120,Services,Legal Expenses,11/07/2022,3520975,Revenue - General Fund,Medical Expert Witness Alliance LLP,16608,"1,363.20"
Children & Learning,CHIL,Divisional Management and Legal,CHF10,Legal Fees,AC0120,Services,Legal Expenses,13/07/2022,3521724,Revenue - General Fund,Medical Expert Witness Alliance LLP,16608,550.8
Children & Learning,CHIL,Divisional Management and Legal,CHF10,Legal Fees,AC0120,Services,Legal Expenses,13/07/2022,3521725,Revenue - General Fund,Medical Expert Witness Alliance LLP,16608,"2,250.00"
Children & Learning,CHIL,Divisional Management and Legal,CHF10,Legal Fees,AC0120,Services,Legal Expenses,22/08/2022,3532402,Revenue - General Fund,Medical Expert Witness Alliance LLP,16608,937.5
Children & Learning,CHIL,Divisional Management and Legal,CHF10,Legal Fees,AC0120,Services,Legal Expenses,13/07/2022,3524066,Revenue - General Fund,Mike Sheehan (EA Chambers),48177,"1,250.00"
Children & Learning,CHIL,Divisional Management and Legal,CHF10,Legal Fees,AC0120,Services,Legal Expenses,07/09/2022,3537443,Revenue - General Fund,Miss Sophia Stapleton,26960,"4,250.00"
Children & Learning,CHIL,Divisional Management and Legal,CHF10,Legal Fees,AC0120,Services,Legal Expenses,17/08/2022,3530833,Revenue - General Fund,Miss Zosia Keniston,17317,"1,425.00"
Children & Learning,CHIL,Divisional Management and Legal,CHF10,Legal Fees,AC0120,Services,Legal Expenses,20/07/2022,3523399,Revenue - General Fund,Mr Anthony Hand,19569,600
Children & Learning,CHIL,Divisional Management and Legal,CHF10,Legal Fees,AC0120,Services,Legal Expenses,26/09/2022,3540154,Revenue - General Fund,Mr Anthony Hand,19569,600
Children & Learning,CHIL,Divisional Management and Legal,CHF10,Legal Fees,AC0120,Services,Legal Expenses,02/08/2022,3527454,Revenue - General Fund,Mr James Vatcher,41067,"3,250.00"
Children & Learning,CHIL,Divisional Management and Legal,CHF10,Legal Fees,AC0120,Services,Legal Expenses,07/09/2022,3537442,Revenue - General Fund,Mr Martin Blount,14975,800
Children & Learning,CHIL,Divisional Management and Legal,CHF10,Legal Fees,AC0120,Services,Legal Expenses,09/08/2022,3530449,Revenue - General Fund,Mrs Katrina Hambleton,16009,765
Children & Learning,CHIL,Divisional Management and Legal,CHF10,Legal Fees,AC0120,Services,Legal Expenses,22/08/2022,3532406,Revenue - General Fund,Ms Kelly Ward (Pallant Chambers),35342,575
Children & Learning,CHIL,Divisional Management and Legal,CHF10,Legal Fees,AC0120,Services,Legal Expenses,17/08/2022,3526109,Revenue - General Fund,PM Psychology,16409,"1,098.27"
Children & Learning,CHIL,Divisional Management and Legal,CHF10,Legal Fees,AC0120,Services,Legal Expenses,22/08/2022,3532332,Revenue - General Fund,Psychology Experts Ltd,17282,"2,340.00"
Children & Learning,CHIL,Divisional Management and Legal,CHF10,Legal Fees,AC0120,Services,Legal Expenses,02/09/2022,3536553,Revenue - General Fund,Richard Waite,48484,"3,869.78"
Children & Learning,CHIL,Divisional Management and Legal,CHF10,Legal Fees,AC0120,Services,Legal Expenses,17/08/2022,3522357,Revenue - General Fund,Rosalind Randle,15584,"2,340.00"
Children & Learning,CHIL,Divisional Management and Legal,CHF10,Legal Fees,AC0120,Services,Legal Expenses,17/08/2022,3522358,Revenue - General Fund,Rosalind Randle,15584,"5,544.00"
Children & Learning,CHIL,Divisional Management and Legal,CHF10,Legal Fees,AC0120,Services,Legal Expenses,17/08/2022,3532403,Revenue - General Fund,Rosalind Randle,15584,"2,340.00"
Children & Learning,CHIL,Divisional Management and Legal,CHF10,Legal Fees,AC0120,Services,Legal Expenses,17/08/2022,3522356,Revenue - General Fund,Rosalind Randle,15584,"2,340.00"
Children & Learning,CHIL,Divisional Management and Legal,CHF10,Legal Fees,AC0120,Services,Legal Expenses,02/09/2022,3536318,Revenue - General Fund,Sara Chalk,17429,"3,450.00"
Children & Learning,CHIL,Divisional Management and Legal,CHF10,Legal Fees,AC0120,Services,Legal Expenses,02/09/2022,3521791,Revenue - General Fund,SW Psychology Services Ltd,45236,"1,197.65"
Children & Learning,CHIL,Divisional Management and Legal,CHF10,Legal Fees,AC0120,Services,Legal Expenses,02/09/2022,3536316,Revenue - General Fund,Tracey Hennessy,20013,750
Children & Learning,CHIL,Quality Assurance Business Unit,CHF21,Childrens Workforce Development,AC0330,Interview & Training Expenses,Staff Training,11/08/2022,3530123,Revenue - General Fund,BCF Group Ltd,48249,"2,495.00"
Children & Learning,CHIL,Quality Assurance Business Unit,CHF21,Childrens Workforce Development,AC0330,Interview & Training Expenses,Staff Training,28/07/2022,3527855,Revenue - General Fund,Hampshire County Council (Main),18625,"2,300.00"
Children & Learning,CHIL,Quality Assurance Business Unit,CHF21,Childrens Workforce Development,AC0330,Interview & Training Expenses,Staff Training,23/08/2022,3531834,Revenue - General Fund,The Tavistock and Portman NHS Foundation Trust,48127,"30,742.30"
Children & Learning,CHIL,Quality Assurance Business Unit,CHF21,Childrens Workforce Development,AC0330,Interview & Training Expenses,Staff Training,16/09/2022,3539538,Revenue - General Fund,The Tavistock and Portman NHS Foundation Trust,48127,"6,148.46"
Children & Learning,CHIL,Quality Assurance Business Unit,CHF21,Childrens Workforce Development,AC0330,Services,Purchased Services,21/07/2022,3526295,Revenue - General Fund,Brighton and Hove City Council,17082,700
Children & Learning,CHIL,Quality Assurance Business Unit,CHF21,Childrens Workforce Development,AC0330,Miscellaneous and Initiative Expenses,Project Expenses,26/07/2022,3523033,Revenue - General Fund,Tripod Partners Ltd,14842,"41,362.14"
Children & Learning,CHIL,Quality Assurance Business Unit,CHF21,Childrens Workforce Development,AC0330,Miscellaneous and Initiative Expenses,Other Expenses,16/09/2022,3539128,Revenue - General Fund,Linda Clegg Consulting Ltd.,48380,"6,978.09"
Children & Learning,CHIL,Quality Assurance Business Unit,CHF21,Childrens Workforce Development,AC0330,Miscellaneous and Initiative Expenses,Other Expenses,17/08/2022,3519361,Revenue - General Fund,Replay Therapeutic Services,33681,"1,037.50"
Children & Learning,CHIL,Quality Assurance Business Unit,CHF21,Childrens Workforce Development,AC0330,Miscellaneous and Initiative Expenses,Other Expenses,21/07/2022,3526386,Revenue - General Fund,S&V Training,20028,750
Children & Learning,CHIL,Quality Assurance Business Unit,CHF21,Childrens Workforce Development,AC0330,Miscellaneous and Initiative Expenses,Other Expenses,23/08/2022,3519846,Revenue - General Fund,Stuart Holes,19156,"3,021.00"
Children & Learning,CHIL,Quality Assurance Business Unit,CHF21,Childrens Workforce Development,AC0330,Expenses,Conference & Seminars,25/08/2022,3532291,Revenue - General Fund,Hampshire County Council (Main),18625,"1,800.00"
Children & Learning,CHIL,Quality Assurance Business Unit,CHF21,Childrens Workforce Development,AC0330,"Tools, Equipment, Furniture & Materials",Books & Publications,04/07/2022,3517503,Revenue - General Fund,Dartington Hall Trust t/a Research in Practice,16195,985.18
Children & Learning,CHIL,Quality Assurance Business Unit,CHF21,Local Safeguarding Children�s Board,AC0340,Services,Purchased Services,18/08/2022,3531900,Revenue - General Fund,Unity 12 CIC Ltd.,21208,600
Children & Learning,CHIL,Quality Assurance Business Unit,CHF21,Local Safeguarding Children�s Board,AC0340,Miscellaneous and Initiative Expenses,Bought in Professional Services - Other,19/07/2022,3523164,Revenue - General Fund,In-Trac Training & Consultancy Ltd,14366,825
Children & Learning,CHIL,Quality Assurance Business Unit,CHF21,Local Safeguarding Children�s Board,AC0340,Miscellaneous and Initiative Expenses,Bought in Professional Services - Other,19/07/2022,3521457,Revenue - General Fund,SUPPLIER NAME REDACTED,15532,"1,641.80"
Children & Learning,CHIL,Quality Assurance Business Unit,CHF21,IRO's and Child Protection Chairs,AC0370,Public Transport,Public Transport Staff,01/08/2022,3528742,Revenue - General Fund,Arnold Clark Finance Ltd,17086,561.61
Children & Learning,CHIL,Quality Assurance Business Unit,CHF21,IRO's and Child Protection Chairs,AC0370,Services,Consultancy - Professional Expertise & Advice,21/07/2022,3522534,Revenue - General Fund,Sally Hodges Consulting,34079,"1,100.00"
Children & Learning,CHIL,Quality Assurance Business Unit,CHF21,IRO's and Child Protection Chairs,AC0370,Services,Consultancy - Professional Expertise & Advice,10/08/2022,3530429,Revenue - General Fund,Sally Hodges Consulting,34079,"1,449.50"
Children & Learning,CHIL,MASH & CIN,CHF30,Children�s Resource Service,AC0020,"Tools, Equipment, Furniture & Materials",Equipment Purchase,27/07/2022,3524825,Revenue - General Fund,Sight and Sound Technology Ltd,20130,"4,395.00"
Children & Learning,CHIL,MASH & CIN,CHF30,Children�s Resource Service,AC0020,Services,Adoption/Fostering Review Panel,11/07/2022,3513017,Revenue - General Fund,Faith Hope and Families Ltd,14361,"1,476.00"
Children & Learning,CHIL,MASH & CIN,CHF30,Children�s Resource Service,AC0020,Services,Adoption/Fostering Review Panel,30/08/2022,3531600,Revenue - General Fund,Faith Hope and Families Ltd,14361,800
Children & Learning,CHIL,MASH & CIN,CHF30,Children�s Resource Service,AC0020,Services,Adoption/Fostering Review Panel,11/07/2022,3521554,Revenue - General Fund,New Day Play Therapy,46637,736.1
Children & Learning,CHIL,MASH & CIN,CHF30,Children�s Resource Service,AC0020,Services,Adoption/Fostering Review Panel,30/08/2022,3532265,Revenue - General Fund,New Day Play Therapy,46637,706.45
Children & Learning,CHIL,MASH & CIN,CHF30,Children�s Resource Service,AC0020,Services,Adoption/Fostering Review Panel,30/08/2022,3532266,Revenue - General Fund,New Day Play Therapy,46637,"1,300.00"
Children & Learning,CHIL,Safeguarding,CHF31,Safeguarding Central,AC0031,Services,Temporary Accomodation,23/09/2022,3540068,Revenue - General Fund,Horizon Care  (TA Key2 Futures Ltd),18309,"3,082.33"
Children & Learning,CHIL,Safeguarding,CHF31,Safeguarding Central,AC0031,Services,Temporary Accomodation,11/08/2022,3530340,Revenue - General Fund,SAJO SA Managemnt Ltd T/A The Accommodation Company,33672,"3,255.00"
Children & Learning,CHIL,Safeguarding,CHF31,Safeguarding Central,AC0031,Services,Legal Expenses,11/08/2022,3528587,Revenue - General Fund,Abels Solicitors & Commissioners,19526,"1,265.00"
Children & Learning,CHIL,Safeguarding,CHF31,Safeguarding Central,AC0031,Agency Staff,External Agency Staff,02/08/2022,3514479,Revenue - General Fund,NonStop Consulting,15950,"1,030.05"
Children & Learning,CHIL,Safeguarding,CHF31,Safeguarding Central,AC0031,Agency Staff,External Agency Staff,02/08/2022,3514241,Revenue - General Fund,NonStop Consulting,15950,"1,030.05"
Children & Learning,CHIL,Safeguarding,CHF31,Safeguarding Central,AC0031,Agency Staff,External Agency Staff,04/08/2022,3525834,Revenue - General Fund,NonStop Consulting,15950,"1,030.05"
Children & Learning,CHIL,Safeguarding,CHF31,Safeguarding Central,AC0031,Agency Staff,External Agency Staff,04/08/2022,3517486,Revenue - General Fund,NonStop Consulting,15950,"1,030.05"
Children & Learning,CHIL,Safeguarding,CHF31,Safeguarding Central,AC0031,Agency Staff,External Agency Staff,04/08/2022,3522110,Revenue - General Fund,NonStop Consulting,15950,"1,030.05"
Children & Learning,CHIL,Safeguarding,CHF31,Safeguarding Central,AC0031,Agency Staff,External Agency Staff,04/08/2022,3519346,Revenue - General Fund,NonStop Consulting,15950,"1,030.05"
Children & Learning,CHIL,Safeguarding,CHF31,Safeguarding Central,AC0031,Agency Staff,External Agency Staff,04/08/2022,3522111,Revenue - General Fund,NonStop Consulting,15950,"1,030.05"
Children & Learning,CHIL,Safeguarding,CHF31,Safeguarding Central,AC0031,Agency Staff,External Agency Staff,04/08/2022,3515769,Revenue - General Fund,NonStop Consulting,15950,"1,030.05"
Children & Learning,CHIL,Safeguarding,CHF31,Safeguarding Central,AC0031,Agency Staff,External Agency Staff,07/09/2022,3528465,Revenue - General Fund,NonStop Consulting,15950,892.71
Children & Learning,CHIL,Safeguarding,CHF31,Safeguarding Central,AC0031,Agency Staff,External Agency Staff,07/09/2022,3530011,Revenue - General Fund,NonStop Consulting,15950,"1,030.05"
Children & Learning,CHIL,Safeguarding,CHF31,Safeguarding Central,AC0031,Agency Staff,External Agency Staff,07/09/2022,3531127,Revenue - General Fund,NonStop Consulting,15950,"1,030.05"
Children & Learning,CHIL,Safeguarding,CHF31,Safeguarding Central,AC0031,Agency Staff,External Agency Staff,07/09/2022,3529525,Revenue - General Fund,NonStop Consulting,15950,"1,030.05"
Children & Learning,CHIL,Safeguarding,CHF31,Safeguarding Central,AC0031,Agency Staff,External Agency Staff,07/09/2022,3534300,Revenue - General Fund,NonStop Consulting,15950,"1,030.05"
Children & Learning,CHIL,Safeguarding,CHF31,Safeguarding Central,AC0031,Agency Staff,External Agency Staff,07/09/2022,3535587,Revenue - General Fund,NonStop Consulting,15950,"1,258.95"
Children & Learning,CHIL,Safeguarding,CHF31,Safeguarding Central,AC0031,Agency Staff,External Agency Staff,08/09/2022,3535586,Revenue - General Fund,NonStop Consulting,15950,"1,510.74"
Children & Learning,CHIL,Safeguarding,CHF31,Safeguarding Central,AC0031,Agency Staff,External Agency Staff,08/09/2022,3536426,Revenue - General Fund,NonStop Consulting,15950,"1,785.42"
Children & Learning,CHIL,Safeguarding,CHF31,Safeguarding Central,AC0031,Agency Staff,External Agency Staff,28/07/2022,3527730,Revenue - General Fund,Red Sector Recruitment,20025,"2,421.42"
Children & Learning,CHIL,Safeguarding,CHF31,Safeguarding Central,AC0031,Agency Staff,External Agency Staff,28/07/2022,3527724,Revenue - General Fund,Red Sector Recruitment,20025,"1,471.00"
Children & Learning,CHIL,Safeguarding,CHF31,Safeguarding Central,AC0031,Agency Staff,External Agency Staff,28/07/2022,3527727,Revenue - General Fund,Red Sector Recruitment,20025,"2,281.20"
Children & Learning,CHIL,Safeguarding,CHF31,Safeguarding Central,AC0031,Agency Staff,External Agency Staff,28/07/2022,3527720,Revenue - General Fund,Red Sector Recruitment,20025,"2,281.20"
Children & Learning,CHIL,Safeguarding,CHF31,Safeguarding Central,AC0031,Agency Staff,External Agency Staff,28/07/2022,3527734,Revenue - General Fund,Red Sector Recruitment,20025,"2,281.20"
Children & Learning,CHIL,Safeguarding,CHF31,Safeguarding Central,AC0031,Agency Staff,External Agency Staff,28/07/2022,3527736,Revenue - General Fund,Red Sector Recruitment,20025,"2,501.57"
Children & Learning,CHIL,Safeguarding,CHF31,Safeguarding Central,AC0031,Agency Staff,External Agency Staff,29/07/2022,3527739,Revenue - General Fund,Red Sector Recruitment,20025,"2,391.90"
Children & Learning,CHIL,Safeguarding,CHF31,Safeguarding Central,AC0031,Agency Staff,External Agency Staff,11/08/2022,3530384,Revenue - General Fund,Red Sector Recruitment,20025,"2,398.20"
Children & Learning,CHIL,Safeguarding,CHF31,Safeguarding Central,AC0031,Agency Staff,External Agency Staff,31/08/2022,3532151,Revenue - General Fund,Red Sector Recruitment,20025,"2,004.50"
Children & Learning,CHIL,Safeguarding,CHF31,Safeguarding Central,AC0031,Agency Staff,External Agency Staff,31/08/2022,3532153,Revenue - General Fund,Red Sector Recruitment,20025,"2,281.20"
Children & Learning,CHIL,Safeguarding,CHF31,Safeguarding Central,AC0031,Agency Staff,External Agency Staff,31/08/2022,3534900,Revenue - General Fund,Red Sector Recruitment,20025,"2,437.95"
Children & Learning,CHIL,Safeguarding,CHF31,"Safeguarding East			",AC0032,Services,Social Care Assessments,26/09/2022,3542224,Revenue - General Fund,Advanced Child Care Assessments Ltd,32743,"2,159.80"
Children & Learning,CHIL,Safeguarding,CHF31,"Safeguarding East			",AC0032,Services,Legal Expenses,29/07/2022,3524969,Revenue - General Fund,MLL LIMITED T/A Linder Myers,47840,"3,638.79"
Children & Learning,CHIL,Safeguarding,CHF31,"Safeguarding East			",AC0032,Contract Hire and Operating Leases,Hire of Transport & Plant,09/08/2022,3508597,Revenue - General Fund,R and N Hire,28097,"2,909.50"
Children & Learning,CHIL,Safeguarding,CHF31,"Safeguarding East			",AC0032,Agency Staff,External Agency Staff,06/09/2022,3527840,Revenue - General Fund,Red Sector Recruitment,20025,"1,942.50"
Children & Learning,CHIL,Safeguarding,CHF31,"Safeguarding East			",AC0032,Agency Staff,External Agency Staff,06/09/2022,3536508,Revenue - General Fund,Red Sector Recruitment,20025,"2,001.45"
Children & Learning,CHIL,Safeguarding,CHF31,"Safeguarding East			",AC0032,Agency Staff,External Agency Staff,06/09/2022,3527843,Revenue - General Fund,Red Sector Recruitment,20025,"1,968.88"
Children & Learning,CHIL,Safeguarding,CHF31,"Safeguarding East			",AC0032,Agency Staff,External Agency Staff,06/09/2022,3534981,Revenue - General Fund,Red Sector Recruitment,20025,"1,953.75"
Children & Learning,CHIL,Safeguarding,CHF31,"Safeguarding East			",AC0032,Agency Staff,External Agency Staff,06/09/2022,3530458,Revenue - General Fund,Red Sector Recruitment,20025,"1,942.50"
Children & Learning,CHIL,Safeguarding,CHF31,"Safeguarding East			",AC0032,Agency Staff,External Agency Staff,06/09/2022,3535665,Revenue - General Fund,Red Sector Recruitment,20025,"2,015.40"
Children & Learning,CHIL,Safeguarding,CHF31,"Safeguarding East			",AC0032,Agency Staff,External Agency Staff,08/09/2022,3537916,Revenue - General Fund,Red Sector Recruitment,20025,"1,942.50"
Children & Learning,CHIL,Safeguarding,CHF31,"Safeguarding East			",AC0032,Agency Staff,External Agency Staff,26/09/2022,3539948,Revenue - General Fund,Red Sector Recruitment,20025,"1,992.00"
Children & Learning,CHIL,Safeguarding,CHF31,"Safeguarding East			",AC0032,Agency Staff,External Agency Staff,26/09/2022,3541405,Revenue - General Fund,Red Sector Recruitment,20025,"1,968.15"
Children & Learning,CHIL,Safeguarding,CHF31,"Safeguarding West			",AC0033,Services,Temporary Accomodation,01/07/2022,3514651,Revenue - General Fund,Jurys Inn Southampton,26333,522.5
Children & Learning,CHIL,Safeguarding,CHF31,"Safeguarding West			",AC0033,Services,Preventative Expenditure,28/09/2022,3523209,Revenue - General Fund,Chances Give Choices Ltd,14894,720
Children & Learning,CHIL,Safeguarding,CHF31,"Safeguarding West			",AC0033,Services,Preventative Expenditure,16/09/2022,3535503,Revenue - General Fund,Freedom IOW Ltd(Freedom Care),31417,973.54
Children & Learning,CHIL,Safeguarding,CHF31,"Safeguarding West			",AC0033,Services,Preventative Expenditure,16/09/2022,3535502,Revenue - General Fund,Freedom IOW Ltd(Freedom Care),31417,966.77
Children & Learning,CHIL,Safeguarding,CHF31,"Safeguarding West			",AC0033,Services,Preventative Expenditure,16/09/2022,3539982,Revenue - General Fund,Freedom IOW Ltd(Freedom Care),31417,960
Children & Learning,CHIL,Safeguarding,CHF31,"Safeguarding West			",AC0033,Services,Preventative Expenditure,16/09/2022,3537042,Revenue - General Fund,Freedom IOW Ltd(Freedom Care),31417,960
Children & Learning,CHIL,Safeguarding,CHF31,"Safeguarding West			",AC0033,Services,Preventative Expenditure,16/09/2022,3535593,Revenue - General Fund,Freedom IOW Ltd(Freedom Care),31417,960
Children & Learning,CHIL,Safeguarding,CHF31,"Safeguarding West			",AC0033,Services,Preventative Expenditure,31/08/2022,3517327,Revenue - General Fund,SAJO SA Managemnt Ltd T/A The Accommodation Company,33672,"6,300.00"
Children & Learning,CHIL,Safeguarding,CHF31,"Safeguarding West			",AC0033,Services,Preventative Expenditure,31/08/2022,3526639,Revenue - General Fund,SAJO SA Managemnt Ltd T/A The Accommodation Company,33672,"6,300.00"
Children & Learning,CHIL,Safeguarding,CHF31,"Safeguarding West			",AC0033,Services,Preventative Expenditure,16/09/2022,3536442,Revenue - General Fund,SAJO SA Managemnt Ltd T/A The Accommodation Company,33672,"6,300.00"
Children & Learning,CHIL,Safeguarding,CHF31,"Safeguarding West			",AC0033,Services,Preventative Expenditure,16/09/2022,3536815,Revenue - General Fund,SAJO SA Managemnt Ltd T/A The Accommodation Company,33672,"4,200.00"
Children & Learning,CHIL,Safeguarding,CHF31,"Safeguarding West			",AC0033,Services,Preventative Expenditure,29/07/2022,3514616,Revenue - General Fund,Voice of the Child,45797,"2,834.00"
Children & Learning,CHIL,Safeguarding,CHF31,"Safeguarding West			",AC0033,Services,Preventative Expenditure,11/08/2022,3435338,Revenue - General Fund,Voice of the Child,45797,"2,560.00"
Children & Learning,CHIL,Safeguarding,CHF31,"Safeguarding West			",AC0033,Contract Hire and Operating Leases,Hire of Transport & Plant,28/07/2022,3524149,Revenue - General Fund,Cab My Ride,26254,"2,000.00"
Children & Learning,CHIL,Safeguarding,CHF31,"Safeguarding West			",AC0033,Contract Hire and Operating Leases,Hire of Transport & Plant,15/07/2022,3521672,Revenue - General Fund,Radio Taxis (Southampton) Ltd,20584,616
Children & Learning,CHIL,Safeguarding,CHF31,"Safeguarding West			",AC0033,Agency Staff,External Agency Staff,11/07/2022,3511063,Revenue - General Fund,Red Sector Recruitment,20025,"2,135.70"
Children & Learning,CHIL,Safeguarding,CHF31,"Safeguarding West			",AC0033,Agency Staff,External Agency Staff,26/07/2022,3508271,Revenue - General Fund,Red Sector Recruitment,20025,"2,281.20"
Children & Learning,CHIL,Safeguarding,CHF31,"Safeguarding West			",AC0033,Agency Staff,External Agency Staff,26/07/2022,3509766,Revenue - General Fund,Red Sector Recruitment,20025,"1,878.00"
Children & Learning,CHIL,Safeguarding,CHF31,"Safeguarding West			",AC0033,Agency Staff,External Agency Staff,26/07/2022,3513040,Revenue - General Fund,Red Sector Recruitment,20025,"2,387.85"
Children & Learning,CHIL,Safeguarding,CHF31,"Safeguarding West			",AC0033,Agency Staff,External Agency Staff,26/07/2022,3511066,Revenue - General Fund,Red Sector Recruitment,20025,"2,321.25"
Children & Learning,CHIL,Safeguarding,CHF31,"Safeguarding West			",AC0033,Agency Staff,External Agency Staff,27/07/2022,3527726,Revenue - General Fund,Red Sector Recruitment,20025,"2,140.20"
Children & Learning,CHIL,Safeguarding,CHF31,"Safeguarding West			",AC0033,Agency Staff,External Agency Staff,28/07/2022,3527729,Revenue - General Fund,Red Sector Recruitment,20025,"2,131.20"
Children & Learning,CHIL,Safeguarding,CHF31,"Safeguarding West			",AC0033,Agency Staff,External Agency Staff,28/07/2022,3527735,Revenue - General Fund,Red Sector Recruitment,20025,"2,131.20"
Children & Learning,CHIL,Safeguarding,CHF31,"Safeguarding West			",AC0033,Agency Staff,External Agency Staff,28/07/2022,3527737,Revenue - General Fund,Red Sector Recruitment,20025,"2,131.20"
Children & Learning,CHIL,Safeguarding,CHF31,"Safeguarding West			",AC0033,Agency Staff,External Agency Staff,28/07/2022,3508270,Revenue - General Fund,Red Sector Recruitment,20025,"2,131.20"
Children & Learning,CHIL,Safeguarding,CHF31,"Safeguarding West			",AC0033,Agency Staff,External Agency Staff,28/07/2022,3527719,Revenue - General Fund,Red Sector Recruitment,20025,"2,131.20"
Children & Learning,CHIL,Safeguarding,CHF31,"Safeguarding West			",AC0033,Agency Staff,External Agency Staff,28/07/2022,3527721,Revenue - General Fund,Red Sector Recruitment,20025,"2,138.85"
Children & Learning,CHIL,Safeguarding,CHF31,"Safeguarding West			",AC0033,Agency Staff,External Agency Staff,28/07/2022,3527725,Revenue - General Fund,Red Sector Recruitment,20025,"2,131.20"
Children & Learning,CHIL,Safeguarding,CHF31,"Safeguarding West			",AC0033,Agency Staff,External Agency Staff,28/07/2022,3527732,Revenue - General Fund,Red Sector Recruitment,20025,"2,281.20"
Children & Learning,CHIL,Safeguarding,CHF31,"Safeguarding West			",AC0033,Agency Staff,External Agency Staff,28/07/2022,3527722,Revenue - General Fund,Red Sector Recruitment,20025,"2,142.45"
Children & Learning,CHIL,Safeguarding,CHF31,"Safeguarding West			",AC0033,Agency Staff,External Agency Staff,28/07/2022,3527723,Revenue - General Fund,Red Sector Recruitment,20025,"2,131.20"
Children & Learning,CHIL,Safeguarding,CHF31,"Safeguarding West			",AC0033,Agency Staff,External Agency Staff,01/08/2022,3527733,Revenue - General Fund,Red Sector Recruitment,20025,"2,164.95"
Children & Learning,CHIL,Safeguarding,CHF31,"Safeguarding West			",AC0033,Agency Staff,External Agency Staff,02/08/2022,3527738,Revenue - General Fund,Red Sector Recruitment,20025,"2,146.95"
Children & Learning,CHIL,Safeguarding,CHF31,"Safeguarding West			",AC0033,Agency Staff,External Agency Staff,09/08/2022,3530456,Revenue - General Fund,Red Sector Recruitment,20025,"2,131.20"
Children & Learning,CHIL,Safeguarding,CHF31,"Safeguarding West			",AC0033,Agency Staff,External Agency Staff,09/08/2022,3529069,Revenue - General Fund,Red Sector Recruitment,20025,"2,131.20"
Children & Learning,CHIL,Safeguarding,CHF31,"Safeguarding West			",AC0033,Agency Staff,External Agency Staff,11/08/2022,3527728,Revenue - General Fund,Red Sector Recruitment,20025,"2,158.20"
Children & Learning,CHIL,Safeguarding,CHF31,"Safeguarding West			",AC0033,Agency Staff,External Agency Staff,11/08/2022,3530455,Revenue - General Fund,Red Sector Recruitment,20025,"1,267.20"
Children & Learning,CHIL,Safeguarding,CHF31,"Safeguarding West			",AC0033,Agency Staff,External Agency Staff,11/08/2022,3529004,Revenue - General Fund,Red Sector Recruitment,20025,"1,755.80"
Children & Learning,CHIL,Safeguarding,CHF31,"Safeguarding West			",AC0033,Agency Staff,External Agency Staff,19/08/2022,3532152,Revenue - General Fund,Red Sector Recruitment,20025,"2,148.30"
Children & Learning,CHIL,Safeguarding,CHF31,"Safeguarding West			",AC0033,Agency Staff,External Agency Staff,19/08/2022,3527731,Revenue - General Fund,Red Sector Recruitment,20025,"2,338.80"
Children & Learning,CHIL,Safeguarding,CHF31,"Safeguarding West			",AC0033,Agency Staff,External Agency Staff,30/08/2022,3534899,Revenue - General Fund,Red Sector Recruitment,20025,"2,131.20"
Children & Learning,CHIL,Safeguarding,CHF31,"Safeguarding West			",AC0033,Agency Staff,External Agency Staff,31/08/2022,3527830,Revenue - General Fund,Red Sector Recruitment,20025,"2,240.10"
Children & Learning,CHIL,Safeguarding,CHF31,"Safeguarding West			",AC0033,Agency Staff,External Agency Staff,31/08/2022,3527837,Revenue - General Fund,Red Sector Recruitment,20025,"2,535.60"
Children & Learning,CHIL,Safeguarding,CHF31,"Safeguarding West			",AC0033,Agency Staff,External Agency Staff,16/09/2022,3527846,Revenue - General Fund,Red Sector Recruitment,20025,"2,391.90"
Children & Learning,CHIL,Safeguarding,CHF31,"Safeguarding West			",AC0033,Agency Staff,External Agency Staff,16/09/2022,3536509,Revenue - General Fund,Red Sector Recruitment,20025,"2,399.10"
Children & Learning,CHIL,Safeguarding,CHF31,"Safeguarding West			",AC0033,Agency Staff,External Agency Staff,16/09/2022,3537917,Revenue - General Fund,Red Sector Recruitment,20025,"2,419.05"
Children & Learning,CHIL,Safeguarding,CHF31,"Safeguarding West			",AC0033,Agency Staff,External Agency Staff,16/09/2022,3527824,Revenue - General Fund,Red Sector Recruitment,20025,"2,380.20"
Children & Learning,CHIL,Safeguarding,CHF31,"Safeguarding West			",AC0033,Agency Staff,External Agency Staff,16/09/2022,3527828,Revenue - General Fund,Red Sector Recruitment,20025,"1,500.00"
Children & Learning,CHIL,Safeguarding,CHF31,"Safeguarding West			",AC0033,Agency Staff,External Agency Staff,16/09/2022,3527841,Revenue - General Fund,Red Sector Recruitment,20025,"2,482.20"
Children & Learning,CHIL,Safeguarding,CHF31,"Safeguarding West			",AC0033,Agency Staff,External Agency Staff,16/09/2022,3535670,Revenue - General Fund,Red Sector Recruitment,20025,"2,754.60"
Children & Learning,CHIL,Safeguarding,CHF31,"Safeguarding West			",AC0033,Agency Staff,External Agency Staff,16/09/2022,3527829,Revenue - General Fund,Red Sector Recruitment,20025,"2,385.60"
Children & Learning,CHIL,Safeguarding,CHF31,"Safeguarding West			",AC0033,Agency Staff,External Agency Staff,16/09/2022,3530459,Revenue - General Fund,Red Sector Recruitment,20025,"2,400.75"
Children & Learning,CHIL,Safeguarding,CHF31,"Safeguarding West			",AC0033,Agency Staff,External Agency Staff,16/09/2022,3532396,Revenue - General Fund,Red Sector Recruitment,20025,"2,406.60"
Children & Learning,CHIL,Safeguarding,CHF31,"Safeguarding West			",AC0033,Agency Staff,External Agency Staff,16/09/2022,3534984,Revenue - General Fund,Red Sector Recruitment,20025,"2,469.00"
Children & Learning,CHIL,Safeguarding,CHF31,"Safeguarding West			",AC0033,Agency Staff,External Agency Staff,16/09/2022,3527662,Revenue - General Fund,Red Sector Recruitment,20025,"2,232.90"
Children & Learning,CHIL,Safeguarding,CHF31,Protection and Court Teams,AC0280,Services,Temporary Accomodation,22/07/2022,3412512,Revenue - General Fund,The Beehive Enterprise Ltd,32746,"-18,731.34"
Children & Learning,CHIL,Safeguarding,CHF31,Protection and Court Teams,AC0280,Services,Preventative Expenditure,24/08/2022,3524262,Revenue - General Fund,Cornwall Refuge Trust,37740,"1,660.15"
Children & Learning,CHIL,Safeguarding,CHF31,Protection and Court Teams,AC0280,Services,Preventative Expenditure,12/07/2022,3520801,Revenue - General Fund,SAJO SA Managemnt Ltd T/A The Accommodation Company,33672,"5,185.00"
Children & Learning,CHIL,Safeguarding,CHF31,Protection and Court Teams,AC0280,Contract Hire and Operating Leases,Hire of Transport & Plant,05/07/2022,3516750,Revenue - General Fund,Cab My Ride,26254,"1,800.00"
Children & Learning,CHIL,Safeguarding,CHF31,Protection and Court Teams,AC0280,Contract Hire and Operating Leases,Hire of Transport & Plant,15/07/2022,3516758,Revenue - General Fund,Cab My Ride,26254,"1,620.00"
Children & Learning,CHIL,Safeguarding,CHF31,Protection and Court Teams,AC0280,Contract Hire and Operating Leases,Hire of Transport & Plant,26/07/2022,3524147,Revenue - General Fund,Cab My Ride,26254,"1,230.00"
Children & Learning,CHIL,Safeguarding,CHF31,Protection and Court Teams,AC0280,Contract Hire and Operating Leases,Hire of Transport & Plant,26/07/2022,3524148,Revenue - General Fund,Cab My Ride,26254,650
Children & Learning,CHIL,Safeguarding,CHF31,Protection and Court Teams,AC0280,Contract Hire and Operating Leases,Hire of Transport & Plant,28/07/2022,3524157,Revenue - General Fund,Cab My Ride,26254,"1,800.00"
Children & Learning,CHIL,Safeguarding,CHF31,Protection and Court Teams,AC0280,Agency Staff,External Agency Staff,15/07/2022,3522326,Revenue - General Fund,NonStop Consulting,15950,"-1,510.74"
Children & Learning,CHIL,Safeguarding,CHF31,Protection and Court Teams,AC0280,Agency Staff,External Agency Staff,15/07/2022,3522327,Revenue - General Fund,NonStop Consulting,15950,"-1,258.95"
Children & Learning,CHIL,Safeguarding,CHF31,Protection and Court Teams,AC0280,Agency Staff,External Agency Staff,15/07/2022,3518007,Revenue - General Fund,Paradigm Professional Consultancy Ltd,21949,"1,863.52"
Children & Learning,CHIL,Safeguarding,CHF31,Protection and Court Teams,AC0280,Agency Staff,External Agency Staff,18/07/2022,3518003,Revenue - General Fund,Paradigm Professional Consultancy Ltd,21949,"1,863.52"
Children & Learning,CHIL,Safeguarding,CHF31,Protection and Court Teams,AC0280,Agency Staff,External Agency Staff,18/07/2022,3518006,Revenue - General Fund,Paradigm Professional Consultancy Ltd,21949,"2,011.52"
Children & Learning,CHIL,Pathways Through Care,CHF32,Family and Friends Team,AC0010,Agency Staff,External Agency Staff,01/07/2022,3519829,Revenue - General Fund,NonStop Consulting,15950,"1,694.23"
Children & Learning,CHIL,Pathways Through Care,CHF32,Family and Friends Team,AC0010,Agency Staff,External Agency Staff,05/07/2022,3521432,Revenue - General Fund,NonStop Consulting,15950,"1,373.70"
Children & Learning,CHIL,Pathways Through Care,CHF32,Family and Friends Team,AC0010,Agency Staff,External Agency Staff,14/07/2022,3523191,Revenue - General Fund,NonStop Consulting,15950,"1,694.23"
Children & Learning,CHIL,Pathways Through Care,CHF32,Family and Friends Team,AC0010,Agency Staff,External Agency Staff,28/07/2022,3527924,Revenue - General Fund,NonStop Consulting,15950,"1,694.23"
Children & Learning,CHIL,Pathways Through Care,CHF32,Family and Friends Team,AC0010,Agency Staff,External Agency Staff,08/08/2022,3530301,Revenue - General Fund,NonStop Consulting,15950,"1,007.38"
Children & Learning,CHIL,Pathways Through Care,CHF32,Family and Friends Team,AC0010,Agency Staff,External Agency Staff,16/08/2022,3527923,Revenue - General Fund,NonStop Consulting,15950,"1,694.23"
Children & Learning,CHIL,Pathways Through Care,CHF32,Family and Friends Team,AC0010,Agency Staff,External Agency Staff,16/08/2022,3527922,Revenue - General Fund,NonStop Consulting,15950,"1,694.23"
Children & Learning,CHIL,Pathways Through Care,CHF32,Family and Friends Team,AC0010,Agency Staff,External Agency Staff,22/08/2022,3535008,Revenue - General Fund,NonStop Consulting,15950,"1,694.23"
Children & Learning,CHIL,Pathways Through Care,CHF32,Family and Friends Team,AC0010,Agency Staff,External Agency Staff,31/08/2022,3536268,Revenue - General Fund,NonStop Consulting,15950,"1,712.23"
Children & Learning,CHIL,Pathways Through Care,CHF32,Family and Friends Team,AC0010,Agency Staff,External Agency Staff,14/09/2022,3539159,Revenue - General Fund,NonStop Consulting,15950,"1,373.70"
Children & Learning,CHIL,Pathways Through Care,CHF32,Family and Friends Team,AC0010,Agency Staff,External Agency Staff,16/09/2022,3537883,Revenue - General Fund,NonStop Consulting,15950,"1,694.23"
Children & Learning,CHIL,Pathways Through Care,CHF32,Family and Friends Team,AC0010,Agency Staff,External Agency Staff,23/09/2022,3540869,Revenue - General Fund,NonStop Consulting,15950,"1,694.23"
Children & Learning,CHIL,Pathways Through Care,CHF32,"Children in Care Team 1					",AC0011,Services,Temporary Accomodation,01/09/2022,3532277,Revenue - General Fund,Ibis Budget Southampton Centre,14400,555.83
Children & Learning,CHIL,Pathways Through Care,CHF32,"Children in Care Team 1					",AC0011,Services,Temporary Accomodation,04/08/2022,3524237,Revenue - General Fund,Jurys Inn Southampton,26333,844.72
Children & Learning,CHIL,Pathways Through Care,CHF32,"Children in Care Team 1					",AC0011,Services,Temporary Accomodation,26/08/2022,3532128,Revenue - General Fund,Jurys Inn Southampton,26333,"1,247.42"
Children & Learning,CHIL,Pathways Through Care,CHF32,"Children in Care Team 1					",AC0011,Services,Temporary Accomodation,21/09/2022,3537141,Revenue - General Fund,Jurys Inn Southampton,26333,613.08
Children & Learning,CHIL,Pathways Through Care,CHF32,"Children in Care Team 1					",AC0011,Services,Temporary Accomodation,23/09/2022,3541247,Revenue - General Fund,Southampton Short Breaks Ltd,46032,600
Children & Learning,CHIL,Pathways Through Care,CHF32,"Children in Care Team 1					",AC0011,Services,Temporary Accomodation,27/09/2022,3541289,Revenue - General Fund,Southampton Short Breaks Ltd,46032,"1,050.00"
Children & Learning,CHIL,Pathways Through Care,CHF32,"Children in Care Team 1					",AC0011,Services,Social Care Assessments,12/08/2022,3531137,Revenue - General Fund,Jo Spicer,17920,810
Children & Learning,CHIL,Pathways Through Care,CHF32,"Children in Care Team 1					",AC0011,Services,Social Care Assessments,14/09/2022,3539409,Revenue - General Fund,Jo Spicer,17920,"3,180.35"
Children & Learning,CHIL,Pathways Through Care,CHF32,"Children in Care Team 1					",AC0011,Social Services,Residential Employment,05/08/2022,3525888,Revenue - General Fund,Budwood Ltd,28040,"1,797.72"
Children & Learning,CHIL,Pathways Through Care,CHF32,"Children in Care Team 1					",AC0011,Social Services,Residential Employment,23/08/2022,3534403,Revenue - General Fund,CAMBRIDGE BRAND VAUGHAN LTD T/A BRAND VAUGHAN,47003,600
Children & Learning,CHIL,Pathways Through Care,CHF32,"Children in Care Team 1					",AC0011,Social Services,Residential Employment,28/09/2022,3525887,Revenue - General Fund,International Care Network,17983,"1,400.00"
Children & Learning,CHIL,Pathways Through Care,CHF32,"Children in Care Team 1					",AC0011,Social Services,Residential Employment,01/07/2022,3519413,Revenue - General Fund,Libre Living Ltd,37928,"17,485.71"
Children & Learning,CHIL,Pathways Through Care,CHF32,"Children in Care Team 1					",AC0011,Social Services,Residential Employment,01/08/2022,3517667,Revenue - General Fund,Libre Living Ltd,37928,"18,068.57"
Children & Learning,CHIL,Pathways Through Care,CHF32,"Children in Care Team 1					",AC0011,Social Services,Residential Employment,01/08/2022,3522955,Revenue - General Fund,Libre Living Ltd,37928,"18,068.57"
Children & Learning,CHIL,Pathways Through Care,CHF32,"Children in Care Team 1					",AC0011,Social Services,Residential Employment,15/08/2022,3531047,Revenue - General Fund,Libre Living Ltd,37928,"18,068.57"
Children & Learning,CHIL,Pathways Through Care,CHF32,"Children in Care Team 1					",AC0011,Social Services,Residential Employment,05/09/2022,3537144,Revenue - General Fund,Libre Living Ltd,37928,"-7,577.16"
Children & Learning,CHIL,Pathways Through Care,CHF32,"Children in Care Team 1					",AC0011,Social Services,Residential Employment,31/08/2022,3536437,Revenue - General Fund,Luxehomes Ltd,45631,"1,370.00"
Children & Learning,CHIL,Pathways Through Care,CHF32,"Children in Care Team 1					",AC0011,Social Services,Residential Employment,08/09/2022,3537922,Revenue - General Fund,Sparsholt College Hampshire,21551,"5,892.00"
Children & Learning,CHIL,Pathways Through Care,CHF32,"Children in Care Team 1					",AC0011,Social Services,Residential Employment,12/07/2022,3523208,Revenue - General Fund,Springcroft Homes Ltd,45219,"20,114.28"
Children & Learning,CHIL,Pathways Through Care,CHF32,"Children in Care Team 1					",AC0011,Social Services,Residential Employment,13/07/2022,3524286,Revenue - General Fund,Step by Step Partnership Ltd,15089,557.1
Children & Learning,CHIL,Pathways Through Care,CHF32,"Children in Care Team 1					",AC0011,Social Services,Residential Employment,11/08/2022,3530893,Revenue - General Fund,Step by Step Partnership Ltd,15089,575.67
Children & Learning,CHIL,Pathways Through Care,CHF32,"Children in Care Team 1					",AC0011,Social Services,Residential Employment,14/09/2022,3539152,Revenue - General Fund,Step by Step Partnership Ltd,15089,575.67
Children & Learning,CHIL,Pathways Through Care,CHF32,"Children in Care Team 1					",AC0011,Social Services,Residential Employment,02/08/2022,3514611,Revenue - General Fund,The Beehive Enterprise Ltd,32746,"3,937.10"
Children & Learning,CHIL,Pathways Through Care,CHF32,"Children in Care Team 1					",AC0011,Social Services,Residential Employment,08/08/2022,3524165,Revenue - General Fund,The Beehive Enterprise Ltd,32746,"4,085.67"
Children & Learning,CHIL,Pathways Through Care,CHF32,"Children in Care Team 1					",AC0011,Social Services,Residential Employment,10/08/2022,3521701,Revenue - General Fund,The University of Winchester,16825,622.2
Children & Learning,CHIL,Pathways Through Care,CHF32,"Children in Care Team 1					",AC0011,Social Services,Residential Employment,23/08/2022,3525934,Revenue - General Fund,The University of Winchester,16825,"6,372.49"
Children & Learning,CHIL,Pathways Through Care,CHF32,"Children in Care Team 1					",AC0011,Social Services,Residential Employment,14/07/2022,3521049,Revenue - General Fund,Two Saints Ltd,13821,983.76
Children & Learning,CHIL,Pathways Through Care,CHF32,"Children in Care Team 1					",AC0011,Social Services,Residential Employment,14/07/2022,3521072,Revenue - General Fund,Two Saints Ltd,13821,"1,046.20"
Children & Learning,CHIL,Pathways Through Care,CHF32,"Children in Care Team 1					",AC0011,Social Services,Residential Employment,14/07/2022,3521031,Revenue - General Fund,Two Saints Ltd,13821,"1,081.74"
Children & Learning,CHIL,Pathways Through Care,CHF32,"Children in Care Team 1					",AC0011,Social Services,Residential Employment,14/07/2022,3521066,Revenue - General Fund,Two Saints Ltd,13821,902.73
Children & Learning,CHIL,Pathways Through Care,CHF32,"Children in Care Team 1					",AC0011,Social Services,Residential Employment,14/07/2022,3521034,Revenue - General Fund,Two Saints Ltd,13821,"1,086.30"
Children & Learning,CHIL,Pathways Through Care,CHF32,"Children in Care Team 1					",AC0011,Social Services,Residential Employment,15/07/2022,3521052,Revenue - General Fund,Two Saints Ltd,13821,"1,081.74"
Children & Learning,CHIL,Pathways Through Care,CHF32,"Children in Care Team 1					",AC0011,Social Services,Residential Employment,15/07/2022,3521068,Revenue - General Fund,Two Saints Ltd,13821,897
Children & Learning,CHIL,Pathways Through Care,CHF32,"Children in Care Team 1					",AC0011,Social Services,Residential Employment,15/07/2022,3521073,Revenue - General Fund,Two Saints Ltd,13821,"1,016.80"
Children & Learning,CHIL,Pathways Through Care,CHF32,"Children in Care Team 1					",AC0011,Social Services,Residential Employment,15/07/2022,3521074,Revenue - General Fund,Two Saints Ltd,13821,984
Children & Learning,CHIL,Pathways Through Care,CHF32,"Children in Care Team 1					",AC0011,Social Services,Residential Employment,15/07/2022,3521032,Revenue - General Fund,Two Saints Ltd,13821,"1,122.51"
Children & Learning,CHIL,Pathways Through Care,CHF32,"Children in Care Team 1					",AC0011,Social Services,Residential Employment,15/07/2022,3521067,Revenue - General Fund,Two Saints Ltd,13821,926.9
Children & Learning,CHIL,Pathways Through Care,CHF32,"Children in Care Team 1					",AC0011,Social Services,Residential Employment,15/07/2022,3521050,Revenue - General Fund,Two Saints Ltd,13821,"1,020.21"
Children & Learning,CHIL,Pathways Through Care,CHF32,"Children in Care Team 1					",AC0011,Social Services,Residential Employment,15/07/2022,3521051,Revenue - General Fund,Two Saints Ltd,13821,987.3
Children & Learning,CHIL,Pathways Through Care,CHF32,"Children in Care Team 1					",AC0011,Social Services,Residential Employment,15/07/2022,3521033,Revenue - General Fund,Two Saints Ltd,13821,"1,086.30"
Children & Learning,CHIL,Pathways Through Care,CHF32,"Children in Care Team 1					",AC0011,Social Services,Residential Employment,15/07/2022,3521053,Revenue - General Fund,Two Saints Ltd,13821,"1,122.51"
Children & Learning,CHIL,Pathways Through Care,CHF32,"Children in Care Team 1					",AC0011,Social Services,Residential Employment,23/08/2022,3534393,Revenue - General Fund,Two Saints Ltd,13821,"1,016.80"
Children & Learning,CHIL,Pathways Through Care,CHF32,"Children in Care Team 1					",AC0011,Social Services,Residential Employment,23/08/2022,3534400,Revenue - General Fund,Two Saints Ltd,13821,"1,020.21"
Children & Learning,CHIL,Pathways Through Care,CHF32,"Children in Care Team 1					",AC0011,Social Services,Residential Employment,15/09/2022,3539179,Revenue - General Fund,Two Saints Ltd,13821,524.8
Children & Learning,CHIL,Pathways Through Care,CHF32,"Children in Care Team 1					",AC0011,Social Services,Residential Employment,12/09/2022,3538484,Revenue - General Fund,YMCA Southampton (Rent),21067,"4,419.29"
Children & Learning,CHIL,Pathways Through Care,CHF32,"Children in Care Team 1					",AC0011,Miscellaneous and Initiative Expenses,Other Client Expenses,14/07/2022,3514289,Revenue - General Fund,AG Family Support Ltd,17523,"1,937.70"
Children & Learning,CHIL,Pathways Through Care,CHF32,"Children in Care Team 1					",AC0011,Miscellaneous and Initiative Expenses,Other Client Expenses,01/08/2022,3527956,Revenue - General Fund,AG Family Support Ltd,17523,"2,111.75"
Children & Learning,CHIL,Pathways Through Care,CHF32,"Children in Care Team 1					",AC0011,Miscellaneous and Initiative Expenses,Other Client Expenses,11/08/2022,3523393,Revenue - General Fund,AG Family Support Ltd,17523,996.72
Children & Learning,CHIL,Pathways Through Care,CHF32,"Children in Care Team 1					",AC0011,Miscellaneous and Initiative Expenses,Other Client Expenses,06/09/2022,3537227,Revenue - General Fund,AG Family Support Ltd,17523,"1,413.25"
Children & Learning,CHIL,Pathways Through Care,CHF32,"Children in Care Team 1					",AC0011,Miscellaneous and Initiative Expenses,Other Client Expenses,06/09/2022,3537226,Revenue - General Fund,AG Family Support Ltd,17523,"1,445.15"
Children & Learning,CHIL,Pathways Through Care,CHF32,"Children in Care Team 1					",AC0011,Miscellaneous and Initiative Expenses,Other Client Expenses,30/09/2022,3543223,Revenue - General Fund,Aspire Social Work Services Ltd,19388,"2,773.20"
Children & Learning,CHIL,Pathways Through Care,CHF32,"Children in Care Team 1					",AC0011,Miscellaneous and Initiative Expenses,Other Client Expenses,26/07/2022,3526599,Revenue - General Fund,CDAT t/a Biggin Hill Primary School,43126,"3,150.00"
Children & Learning,CHIL,Pathways Through Care,CHF32,"Children in Care Team 1					",AC0011,Miscellaneous and Initiative Expenses,Other Client Expenses,29/07/2022,3517020,Revenue - General Fund,Chances Give Choices Ltd,14894,"1,000.00"
Children & Learning,CHIL,Pathways Through Care,CHF32,"Children in Care Team 1					",AC0011,Miscellaneous and Initiative Expenses,Other Client Expenses,29/07/2022,3517025,Revenue - General Fund,Chances Give Choices Ltd,14894,760
Children & Learning,CHIL,Pathways Through Care,CHF32,"Children in Care Team 1					",AC0011,Miscellaneous and Initiative Expenses,Other Client Expenses,16/09/2022,3537896,Revenue - General Fund,Churchers Solicitors,14357,660
Children & Learning,CHIL,Pathways Through Care,CHF32,"Children in Care Team 1					",AC0011,Miscellaneous and Initiative Expenses,Other Client Expenses,01/07/2022,3518336,Revenue - General Fund,Dr Tanya Griffiths Ltd T/A The Haven Child Psychology Practice,36897,990
Children & Learning,CHIL,Pathways Through Care,CHF32,"Children in Care Team 1					",AC0011,Miscellaneous and Initiative Expenses,Other Client Expenses,16/08/2022,3530399,Revenue - General Fund,Dr Tanya Griffiths Ltd T/A The Haven Child Psychology Practice,36897,675
Children & Learning,CHIL,Pathways Through Care,CHF32,"Children in Care Team 1					",AC0011,Social Services,IFA Over 18,07/07/2022,3517860,Revenue - General Fund,Blue Sky Fostering Limited,16789,"1,778.40"
Children & Learning,CHIL,Pathways Through Care,CHF32,"Children in Care Team 1					",AC0011,Social Services,IFA Over 18,29/07/2022,3526844,Revenue - General Fund,Blue Sky Fostering Limited,16789,"1,837.68"
Children & Learning,CHIL,Pathways Through Care,CHF32,"Children in Care Team 1					",AC0011,Social Services,IFA Over 18,25/08/2022,3535005,Revenue - General Fund,Blue Sky Fostering Limited,16789,"1,837.68"
Children & Learning,CHIL,Pathways Through Care,CHF32,"Children in Care Team 1					",AC0011,Social Services,IFA Over 18,26/09/2022,3541308,Revenue - General Fund,Blue Sky Fostering Limited,16789,"1,778.40"
Children & Learning,CHIL,Pathways Through Care,CHF32,"Children in Care Team 1					",AC0011,Social Services,IFA Over 18,05/08/2022,3522909,Revenue - General Fund,Compass Fostering South Ltd,20126,"1,733.70"
Children & Learning,CHIL,Pathways Through Care,CHF32,"Children in Care Team 1					",AC0011,Social Services,IFA Over 18,05/08/2022,3522908,Revenue - General Fund,Compass Fostering South Ltd,20126,"1,733.70"
Children & Learning,CHIL,Pathways Through Care,CHF32,"Children in Care Team 1					",AC0011,Social Services,IFA Over 18,19/08/2022,3531589,Revenue - General Fund,Compass Fostering South Ltd,20126,"1,791.49"
Children & Learning,CHIL,Pathways Through Care,CHF32,"Children in Care Team 1					",AC0011,Social Services,IFA Over 18,19/08/2022,3531590,Revenue - General Fund,Compass Fostering South Ltd,20126,"1,791.49"
Children & Learning,CHIL,Pathways Through Care,CHF32,"Children in Care Team 1					",AC0011,Social Services,IFA Over 18,12/09/2022,3537945,Revenue - General Fund,Compass Fostering South Ltd,20126,"1,791.49"
Children & Learning,CHIL,Pathways Through Care,CHF32,"Children in Care Team 1					",AC0011,Social Services,IFA Over 18,12/09/2022,3537944,Revenue - General Fund,Compass Fostering South Ltd,20126,"1,791.49"
Children & Learning,CHIL,Pathways Through Care,CHF32,"Children in Care Team 1					",AC0011,Social Services,IFA Over 18,06/07/2022,3517873,Revenue - General Fund,Fairways Community Benefit Society (FCBS),14816,661.5
Children & Learning,CHIL,Pathways Through Care,CHF32,"Children in Care Team 1					",AC0011,Social Services,IFA Over 18,22/08/2022,3532157,Revenue - General Fund,Fairways Community Benefit Society (FCBS),14816,"2,929.50"
Children & Learning,CHIL,Pathways Through Care,CHF32,"Children in Care Team 1					",AC0011,Social Services,IFA Over 18,05/08/2022,3522818,Revenue - General Fund,Familyplacement.com Ltd,15026,"2,240.00"
Children & Learning,CHIL,Pathways Through Care,CHF32,"Children in Care Team 1					",AC0011,Social Services,IFA Over 18,12/09/2022,3537985,Revenue - General Fund,Familyplacement.com Ltd,15026,"2,240.00"
Children & Learning,CHIL,Pathways Through Care,CHF32,"Children in Care Team 1					",AC0011,Social Services,IFA Over 18,15/09/2022,3537954,Revenue - General Fund,Familyplacement.com Ltd,15026,"2,240.00"
Children & Learning,CHIL,Pathways Through Care,CHF32,"Children in Care Team 1					",AC0011,Social Services,IFA Over 18,20/09/2022,3540440,Revenue - General Fund,Familyplacement.com Ltd,15026,"2,240.00"
Children & Learning,CHIL,Pathways Through Care,CHF32,"Children in Care Team 1					",AC0011,Social Services,IFA Over 18,24/08/2022,3534729,Revenue - General Fund,Fostering Solutions Ltd,14739,"1,705.00"
Children & Learning,CHIL,Pathways Through Care,CHF32,"Children in Care Team 1					",AC0011,Social Services,IFA Over 18,25/08/2022,3534740,Revenue - General Fund,Fostering Solutions Ltd,14739,"1,705.00"
Children & Learning,CHIL,Pathways Through Care,CHF32,"Children in Care Team 1					",AC0011,Social Services,IFA Over 18,26/09/2022,3541366,Revenue - General Fund,Fostering Solutions Ltd,14739,"1,650.00"
Children & Learning,CHIL,Pathways Through Care,CHF32,"Children in Care Team 1					",AC0011,Social Services,IFA Over 18,26/09/2022,3541367,Revenue - General Fund,Fostering Solutions Ltd,14739,"1,650.00"
Children & Learning,CHIL,Pathways Through Care,CHF32,"Children in Care Team 1					",AC0011,Contract Hire and Operating Leases,Hire of Transport & Plant,28/07/2022,3422048,Revenue - General Fund,Radio Taxis (Southampton) Ltd,20584,"1,430.00"
Children & Learning,CHIL,Pathways Through Care,CHF32,"Children in Care Team 1					",AC0011,Contract Hire and Operating Leases,Hire of Transport & Plant,28/07/2022,3432381,Revenue - General Fund,Radio Taxis (Southampton) Ltd,20584,"2,002.00"
Children & Learning,CHIL,Pathways Through Care,CHF32,"Children in Care Team 1					",AC0011,Contract Hire and Operating Leases,Hire of Transport & Plant,28/07/2022,3396276,Revenue - General Fund,Radio Taxis (Southampton) Ltd,20584,"1,056.00"
Children & Learning,CHIL,Pathways Through Care,CHF32,"Children in Care Team 1					",AC0011,Contract Hire and Operating Leases,Hire of Transport & Plant,28/07/2022,3410033,Revenue - General Fund,Radio Taxis (Southampton) Ltd,20584,686.4
Children & Learning,CHIL,Pathways Through Care,CHF32,"Children in Care Team 1					",AC0011,Contract Hire and Operating Leases,Hire of Transport & Plant,28/07/2022,3396243,Revenue - General Fund,Radio Taxis (Southampton) Ltd,20584,786.5
Children & Learning,CHIL,Pathways Through Care,CHF32,"Children in Care Team 1					",AC0011,Contract Hire and Operating Leases,Hire of Transport & Plant,28/07/2022,3410035,Revenue - General Fund,Radio Taxis (Southampton) Ltd,20584,"1,716.00"
Children & Learning,CHIL,Pathways Through Care,CHF32,"Children in Care Team 1					",AC0011,Agency Staff,External Agency Staff,08/08/2022,3529529,Revenue - General Fund,NonStop Consulting,15950,"1,872.20"
Children & Learning,CHIL,Pathways Through Care,CHF32,"Children in Care Team 1					",AC0011,Agency Staff,External Agency Staff,08/08/2022,3529528,Revenue - General Fund,NonStop Consulting,15950,"1,872.20"
Children & Learning,CHIL,Pathways Through Care,CHF32,"Children in Care Team 1					",AC0011,Agency Staff,External Agency Staff,11/08/2022,3531129,Revenue - General Fund,NonStop Consulting,15950,"1,872.20"
Children & Learning,CHIL,Pathways Through Care,CHF32,"Children in Care Team 1					",AC0011,Agency Staff,External Agency Staff,31/08/2022,3534891,Revenue - General Fund,NonStop Consulting,15950,"1,872.20"
Children & Learning,CHIL,Pathways Through Care,CHF32,"Children in Care Team 1					",AC0011,Agency Staff,External Agency Staff,31/08/2022,3535861,Revenue - General Fund,NonStop Consulting,15950,"1,876.70"
Children & Learning,CHIL,Pathways Through Care,CHF32,"Children in Care Team 1					",AC0011,Agency Staff,External Agency Staff,08/09/2022,3526080,Revenue - General Fund,NonStop Consulting,15950,"1,872.20"
Children & Learning,CHIL,Pathways Through Care,CHF32,"Children in Care Team 1					",AC0011,Agency Staff,External Agency Staff,08/09/2022,3534302,Revenue - General Fund,NonStop Consulting,15950,"1,872.20"
Children & Learning,CHIL,Pathways Through Care,CHF32,"Children in Care Team 1					",AC0011,Agency Staff,External Agency Staff,23/09/2022,3539380,Revenue - General Fund,NonStop Consulting,15950,"3,744.40"
Children & Learning,CHIL,Pathways Through Care,CHF32,"Children in Care Team 1					",AC0011,Social Services,Care Leavers Personal Allowances,14/09/2022,3530115,Revenue - General Fund,Progression Care Limited,16079,960
Children & Learning,CHIL,Pathways Through Care,CHF32,"Children in Care Team 2			",AC0012,Services,Temporary Accomodation,04/07/2022,3513004,Revenue - General Fund,Jurys Inn Southampton,26333,633.75
Children & Learning,CHIL,Pathways Through Care,CHF32,"Children in Care Team 2			",AC0012,Services,Temporary Accomodation,06/09/2022,3526241,Revenue - General Fund,Jurys Inn Southampton,26333,684.63
Children & Learning,CHIL,Pathways Through Care,CHF32,"Children in Care Team 2			",AC0012,Services,Temporary Accomodation,06/09/2022,3525489,Revenue - General Fund,Jurys Inn Southampton,26333,577.67
Children & Learning,CHIL,Pathways Through Care,CHF32,"Children in Care Team 2			",AC0012,Social Services,Residential Employment,03/08/2022,3523212,Revenue - General Fund,Growing Independent Support,45217,"16,757.14"
Children & Learning,CHIL,Pathways Through Care,CHF32,"Children in Care Team 2			",AC0012,Social Services,Residential Employment,17/08/2022,3531177,Revenue - General Fund,Growing Independent Support,45217,"17,315.67"
Children & Learning,CHIL,Pathways Through Care,CHF32,"Children in Care Team 2			",AC0012,Social Services,Residential Employment,08/09/2022,3538287,Revenue - General Fund,Growing Independent Support,45217,"17,315.67"
Children & Learning,CHIL,Pathways Through Care,CHF32,"Children in Care Team 2			",AC0012,Social Services,Residential Employment,06/07/2022,3518374,Revenue - General Fund,The Beehive Enterprise Ltd,32746,-720
Children & Learning,CHIL,Pathways Through Care,CHF32,"Children in Care Team 2			",AC0012,Social Services,Residential Employment,08/08/2022,3525188,Revenue - General Fund,The Beehive Enterprise Ltd,32746,"4,251.34"
Children & Learning,CHIL,Pathways Through Care,CHF32,"Children in Care Team 2			",AC0012,Social Services,Residential Employment,08/08/2022,3524183,Revenue - General Fund,The Beehive Enterprise Ltd,32746,"3,531.34"
Children & Learning,CHIL,Pathways Through Care,CHF32,"Children in Care Team 2			",AC0012,Social Services,Residential Employment,09/08/2022,3525187,Revenue - General Fund,The Beehive Enterprise Ltd,32746,"4,114.20"
Children & Learning,CHIL,Pathways Through Care,CHF32,"Children in Care Team 2			",AC0012,Social Services,Residential Employment,09/08/2022,3525186,Revenue - General Fund,The Beehive Enterprise Ltd,32746,"1,234.26"
Children & Learning,CHIL,Pathways Through Care,CHF32,"Children in Care Team 2			",AC0012,Social Services,Residential Employment,12/08/2022,3530644,Revenue - General Fund,The Beehive Enterprise Ltd,32746,"4,251.34"
Children & Learning,CHIL,Pathways Through Care,CHF32,"Children in Care Team 2			",AC0012,Social Services,Residential Employment,12/08/2022,3530643,Revenue - General Fund,The Beehive Enterprise Ltd,32746,"3,531.34"
Children & Learning,CHIL,Pathways Through Care,CHF32,"Children in Care Team 2			",AC0012,Social Services,Residential Employment,15/09/2022,3539911,Revenue - General Fund,The Beehive Enterprise Ltd,32746,"3,394.20"
Children & Learning,CHIL,Pathways Through Care,CHF32,"Children in Care Team 2			",AC0012,Social Services,Residential Employment,15/08/2022,3529299,Revenue - General Fund,YMCA Southampton (Rent),21067,"1,237.40"
Children & Learning,CHIL,Pathways Through Care,CHF32,"Children in Care Team 2			",AC0012,Social Services,Residential Employment,12/09/2022,3538478,Revenue - General Fund,YMCA Southampton (Rent),21067,"1,484.88"
Children & Learning,CHIL,Pathways Through Care,CHF32,"Children in Care Team 2			",AC0012,Miscellaneous and Initiative Expenses,Other Client Expenses,10/08/2022,3530122,Revenue - General Fund,Optivo (Middlesex First Limited),47895,"2,062.20"
Children & Learning,CHIL,Pathways Through Care,CHF32,"Children in Care Team 2			",AC0012,Social Services,MARP U16,14/09/2022,3529303,Revenue - General Fund,The Beehive Enterprise Ltd,32746,"3,039.96"
Children & Learning,CHIL,Pathways Through Care,CHF32,"Children in Care Team 2			",AC0012,Social Services,IFA Over 18,02/08/2022,3517527,Revenue - General Fund,Fostering Solutions Ltd,14739,"1,650.00"
Children & Learning,CHIL,Pathways Through Care,CHF32,"Children in Care Team 2			",AC0012,Social Services,IFA Over 18,02/08/2022,3517528,Revenue - General Fund,Fostering Solutions Ltd,14739,"1,650.00"
Children & Learning,CHIL,Pathways Through Care,CHF32,"Children in Care Team 2			",AC0012,Social Services,IFA Over 18,02/08/2022,3527233,Revenue - General Fund,Fostering Solutions Ltd,14739,"1,705.00"
Children & Learning,CHIL,Pathways Through Care,CHF32,"Children in Care Team 2			",AC0012,Social Services,IFA Over 18,03/08/2022,3527234,Revenue - General Fund,Fostering Solutions Ltd,14739,"1,705.00"
Children & Learning,CHIL,Pathways Through Care,CHF32,"Children in Care Team 2			",AC0012,Agency Staff,External Agency Staff,03/08/2022,3527703,Revenue - General Fund,NonStop Consulting,15950,"1,872.20"
Children & Learning,CHIL,Pathways Through Care,CHF32,"Children in Care Team 2			",AC0012,Agency Staff,External Agency Staff,05/08/2022,3529523,Revenue - General Fund,NonStop Consulting,15950,"1,872.20"
Children & Learning,CHIL,Pathways Through Care,CHF32,"Children in Care Team 2			",AC0012,Agency Staff,External Agency Staff,11/08/2022,3531125,Revenue - General Fund,NonStop Consulting,15950,"1,872.20"
Children & Learning,CHIL,Pathways Through Care,CHF32,"Children in Care Team 2			",AC0012,Agency Staff,External Agency Staff,21/08/2022,3532179,Revenue - General Fund,NonStop Consulting,15950,"1,872.20"
Children & Learning,CHIL,Pathways Through Care,CHF32,"Children in Care Team 2			",AC0012,Agency Staff,External Agency Staff,01/09/2022,3535860,Revenue - General Fund,NonStop Consulting,15950,"1,872.20"
Children & Learning,CHIL,Pathways Through Care,CHF32,"Children in Care Team 2			",AC0012,Agency Staff,External Agency Staff,01/09/2022,3534892,Revenue - General Fund,NonStop Consulting,15950,"1,872.20"
Children & Learning,CHIL,Pathways Through Care,CHF32,"Children in Care Team 2			",AC0012,Agency Staff,External Agency Staff,07/09/2022,3536893,Revenue - General Fund,NonStop Consulting,15950,"1,872.20"
Children & Learning,CHIL,Pathways Through Care,CHF32,"Children in Care Team 2			",AC0012,Agency Staff,External Agency Staff,23/09/2022,3540870,Revenue - General Fund,NonStop Consulting,15950,"3,751.19"
Children & Learning,CHIL,Pathways Through Care,CHF32,"Children in Care Team 2			",AC0012,Social Services,Care Leavers Personal Allowances,21/09/2022,3540940,Revenue - General Fund,Progression Care Limited,16079,"3,120.00"
Children & Learning,CHIL,Pathways Through Care,CHF32,UASC over 18,AC0013,Social Services,Residential Employment,09/08/2022,3524598,Revenue - General Fund,The Beehive Enterprise Ltd,32746,"2,214.02"
Children & Learning,CHIL,Pathways Through Care,CHF32,UASC over 18,AC0013,Social Services,Residential Employment,12/08/2022,3530605,Revenue - General Fund,The Beehive Enterprise Ltd,32746,"2,214.02"
Children & Learning,CHIL,Pathways Through Care,CHF32,UASC over 18,AC0013,Social Services,Residential Employment,12/08/2022,3530606,Revenue - General Fund,The Beehive Enterprise Ltd,32746,"2,214.02"
Children & Learning,CHIL,Pathways Through Care,CHF32,UASC over 18,AC0013,Social Services,Residential Employment,15/09/2022,3539909,Revenue - General Fund,The Beehive Enterprise Ltd,32746,"2,142.60"
Children & Learning,CHIL,Pathways Through Care,CHF32,UASC over 18,AC0013,Social Services,Residential Employment,15/09/2022,3539908,Revenue - General Fund,The Beehive Enterprise Ltd,32746,"2,142.60"
Children & Learning,CHIL,Pathways Through Care,CHF32,UASC over 18,AC0013,Social Services,Residential Employment,27/07/2022,3527326,Revenue - General Fund,Two Saints Ltd,13821,"3,290.55"
Children & Learning,CHIL,Pathways Through Care,CHF32,UASC over 18,AC0013,Social Services,Residential Employment,28/07/2022,3527239,Revenue - General Fund,Two Saints Ltd,13821,"3,044.73"
Children & Learning,CHIL,Pathways Through Care,CHF32,UASC over 18,AC0013,Social Services,Residential Employment,23/08/2022,3534390,Revenue - General Fund,Two Saints Ltd,13821,"1,122.51"
Children & Learning,CHIL,Pathways Through Care,CHF32,UASC over 18,AC0013,Social Services,Residential Employment,23/08/2022,3534391,Revenue - General Fund,Two Saints Ltd,13821,926.9
Children & Learning,CHIL,Pathways Through Care,CHF32,UASC over 18,AC0013,Social Services,Residential Employment,23/08/2022,3534395,Revenue - General Fund,Two Saints Ltd,13821,"1,122.51"
Children & Learning,CHIL,Pathways Through Care,CHF32,UASC over 18,AC0013,Social Services,Residential Employment,23/08/2022,3534401,Revenue - General Fund,Two Saints Ltd,13821,"1,122.51"
Children & Learning,CHIL,Pathways Through Care,CHF32,UASC over 18,AC0013,Social Services,Residential Employment,23/08/2022,3534394,Revenue - General Fund,Two Saints Ltd,13821,926.9
Children & Learning,CHIL,Pathways Through Care,CHF32,UASC over 18,AC0013,Social Services,Residential Employment,01/08/2022,3528551,Revenue - General Fund,Western Pathways,32959,"2,171.40"
Children & Learning,CHIL,Pathways Through Care,CHF32,UASC over 18,AC0013,Social Services,Residential Employment,18/08/2022,3534543,Revenue - General Fund,Western Pathways,32959,"3,428.57"
Children & Learning,CHIL,Pathways Through Care,CHF32,UASC over 18,AC0013,Social Services,Residential Employment,31/08/2022,3535803,Revenue - General Fund,Western Pathways,32959,"3,542.84"
Children & Learning,CHIL,Pathways Through Care,CHF32,UASC over 18,AC0013,Social Services,Residential Employment,15/09/2022,3539907,Revenue - General Fund,Western Pathways,32959,"3,542.84"
Children & Learning,CHIL,Pathways Through Care,CHF32,UASC over 18,AC0013,Social Services,Residential Employment,05/08/2022,3529301,Revenue - General Fund,YMCA Southampton (Rent),21067,851
Children & Learning,CHIL,Pathways Through Care,CHF32,UASC over 18,AC0013,Social Services,Residential Employment,05/08/2022,3529494,Revenue - General Fund,YMCA Southampton (Rent),21067,"1,237.40"
Children & Learning,CHIL,Pathways Through Care,CHF32,UASC over 18,AC0013,Social Services,Residential Employment,10/08/2022,3520765,Revenue - General Fund,YMCA Southampton (Rent),21067,"2,661.92"
Children & Learning,CHIL,Pathways Through Care,CHF32,UASC over 18,AC0013,Social Services,Residential Employment,10/08/2022,3529496,Revenue - General Fund,YMCA Southampton (Rent),21067,"1,237.40"
Children & Learning,CHIL,Pathways Through Care,CHF32,UASC over 18,AC0013,Social Services,Residential Employment,11/08/2022,3520749,Revenue - General Fund,YMCA Southampton (Rent),21067,"1,831.60"
Children & Learning,CHIL,Pathways Through Care,CHF32,UASC over 18,AC0013,Social Services,Residential Employment,11/08/2022,3520764,Revenue - General Fund,YMCA Southampton (Rent),21067,"2,661.92"
Children & Learning,CHIL,Pathways Through Care,CHF32,UASC over 18,AC0013,Social Services,Residential Employment,21/08/2022,3532260,Revenue - General Fund,YMCA Southampton (Rent),21067,"3,998.92"
Children & Learning,CHIL,Pathways Through Care,CHF32,UASC over 18,AC0013,Social Services,Residential Employment,12/09/2022,3538486,Revenue - General Fund,YMCA Southampton (Rent),21067,"1,484.88"
Children & Learning,CHIL,Pathways Through Care,CHF32,UASC over 18,AC0013,Social Services,Residential Employment,12/09/2022,3538479,Revenue - General Fund,YMCA Southampton (Rent),21067,"1,021.20"
Children & Learning,CHIL,Pathways Through Care,CHF32,UASC over 18,AC0013,Social Services,Residential Employment,12/09/2022,3538489,Revenue - General Fund,YMCA Southampton (Rent),21067,"1,237.40"
Children & Learning,CHIL,Pathways Through Care,CHF32,UASC over 18,AC0013,Social Services,Residential Employment,15/09/2022,3538482,Revenue - General Fund,YMCA Southampton (Rent),21067,"1,484.88"
Children & Learning,CHIL,Pathways Through Care,CHF32,UASC over 18,AC0013,Social Services,IFA Over 18,02/08/2022,3516090,Revenue - General Fund,Banya Family Placement Agency Ltd,19791,"1,643.54"
Children & Learning,CHIL,Pathways Through Care,CHF32,UASC over 18,AC0013,Social Services,IFA Over 18,08/08/2022,3523154,Revenue - General Fund,Banya Family Placement Agency Ltd,19791,"1,579.25"
Children & Learning,CHIL,Pathways Through Care,CHF32,UASC over 18,AC0013,Social Services,IFA Over 18,15/08/2022,3531157,Revenue - General Fund,Banya Family Placement Agency Ltd,19791,"1,643.54"
Children & Learning,CHIL,Pathways Through Care,CHF32,UASC over 18,AC0013,Social Services,IFA Over 18,13/09/2022,3538312,Revenue - General Fund,Banya Family Placement Agency Ltd,19791,"1,643.54"
Children & Learning,CHIL,Pathways Through Care,CHF32,UASC over 18,AC0013,Social Services,IFA Over 18,03/08/2022,3526907,Revenue - General Fund,Fairways Community Benefit Society (FCBS),14816,"3,351.10"
Children & Learning,CHIL,Pathways Through Care,CHF32,UASC over 18,AC0013,Social Services,IFA Over 18,05/08/2022,3522564,Revenue - General Fund,Fairways Community Benefit Society (FCBS),14816,"2,053.90"
Children & Learning,CHIL,Pathways Through Care,CHF32,UASC over 18,AC0013,Social Services,IFA Over 18,26/08/2022,3535239,Revenue - General Fund,Fairways Community Benefit Society (FCBS),14816,"3,351.10"
Children & Learning,CHIL,Pathways Through Care,CHF32,UASC over 18,AC0013,Social Services,IFA Over 18,29/09/2022,3542427,Revenue - General Fund,Fairways Community Benefit Society (FCBS),14816,"3,243.00"
Children & Learning,CHIL,Pathways Through Care,CHF32,UASC over 18,AC0013,Social Services,IFA Over 18,04/08/2022,3522217,Revenue - General Fund,Sunbeam Fostering Agency Limited,19694,"2,142.86"
Children & Learning,CHIL,Pathways Through Care,CHF32,UASC over 18,AC0013,Social Services,IFA Over 18,11/08/2022,3530398,Revenue - General Fund,Sunbeam Fostering Agency Limited,19694,"2,214.29"
Children & Learning,CHIL,Pathways Through Care,CHF32,UASC over 18,AC0013,Social Services,IFA Over 18,05/09/2022,3537296,Revenue - General Fund,Sunbeam Fostering Agency Limited,19694,"2,214.29"
Children & Learning,CHIL,Pathways Through Care,CHF32,Adoption Team and Costs,AC0080,Contract Hire and Operating Leases,Hire of Transport & Plant,20/08/2022,3524150,Revenue - General Fund,Cab My Ride,26254,600
Children & Learning,CHIL,Pathways Through Care,CHF32,Adoption Team and Costs,AC0080,Grants and Subscriptions,Corporate Memberships and Subscriptions,01/07/2022,3519277,Revenue - General Fund,Coram Academy Ltd T/A Coram BAAF,16010,"2,857.75"
Children & Learning,CHIL,Pathways Through Care,CHF32,Adoption Team and Costs,AC0080,Services,Consultancy - Professional Expertise & Advice,20/08/2022,3526656,Revenue - General Fund,BP Consultancy Ltd,16987,"1,012.50"
Children & Learning,CHIL,Pathways Through Care,CHF32,Looked After Children Team,AC0150,Miscellaneous and Initiative Expenses,Other Expenses,11/08/2022,3520104,Revenue - General Fund,AG Family Support Ltd,17523,508.72
Children & Learning,CHIL,Pathways Through Care,CHF32,Looked After Children Team,AC0150,Miscellaneous and Initiative Expenses,Other Client Expenses,25/07/2022,3527303,Revenue - General Fund,Freedom IOW Ltd(Freedom Care),31417,652.14
Children & Learning,CHIL,Pathways Through Care,CHF32,Looked After Children Team,AC0150,Miscellaneous and Initiative Expenses,Other Client Expenses,25/07/2022,3527304,Revenue - General Fund,Freedom IOW Ltd(Freedom Care),31417,720.89
Children & Learning,CHIL,Pathways Through Care,CHF32,Looked After Children Team,AC0150,Miscellaneous and Initiative Expenses,Other Client Expenses,25/07/2022,3527305,Revenue - General Fund,Freedom IOW Ltd(Freedom Care),31417,652.14
Children & Learning,CHIL,Pathways Through Care,CHF32,Looked After Children Team,AC0150,Miscellaneous and Initiative Expenses,Other Client Expenses,25/07/2022,3514371,Revenue - General Fund,Freedom IOW Ltd(Freedom Care),31417,"1,169.64"
Children & Learning,CHIL,Pathways Through Care,CHF32,Looked After Children Team,AC0150,Contract Hire and Operating Leases,Hire of Transport & Plant,10/08/2022,3515466,Revenue - General Fund,Aqua Cars Ltd,14084,525
Children & Learning,CHIL,Pathways Through Care,CHF32,Looked After Children Team,AC0150,Contract Hire and Operating Leases,Hire of Transport & Plant,08/07/2022,3516760,Revenue - General Fund,Cab My Ride,26254,"2,460.00"
Children & Learning,CHIL,Pathways Through Care,CHF32,Looked After Children Team,AC0150,Contract Hire and Operating Leases,Hire of Transport & Plant,08/07/2022,3516751,Revenue - General Fund,Cab My Ride,26254,720
Children & Learning,CHIL,Pathways Through Care,CHF32,Looked After Children Team,AC0150,Contract Hire and Operating Leases,Hire of Transport & Plant,25/07/2022,3524156,Revenue - General Fund,Cab My Ride,26254,"3,500.00"
Children & Learning,CHIL,Pathways Through Care,CHF32,Looked After Children Team,AC0150,Contract Hire and Operating Leases,Hire of Transport & Plant,25/07/2022,3524146,Revenue - General Fund,Cab My Ride,26254,"4,950.00"
Children & Learning,CHIL,Pathways Through Care,CHF32,Looked After Children Team,AC0150,Contract Hire and Operating Leases,Hire of Transport & Plant,25/07/2022,3524153,Revenue - General Fund,Cab My Ride,26254,"1,000.00"
Children & Learning,CHIL,Pathways Through Care,CHF32,Looked After Children Team,AC0150,Contract Hire and Operating Leases,Hire of Transport & Plant,25/07/2022,3524158,Revenue - General Fund,Cab My Ride,26254,"2,400.00"
Children & Learning,CHIL,Pathways Through Care,CHF32,Looked After Children Team,AC0150,Contract Hire and Operating Leases,Hire of Transport & Plant,25/07/2022,3524159,Revenue - General Fund,Cab My Ride,26254,"4,000.00"
Children & Learning,CHIL,Pathways Through Care,CHF32,Looked After Children Team,AC0150,Contract Hire and Operating Leases,Hire of Transport & Plant,25/07/2022,3524152,Revenue - General Fund,Cab My Ride,26254,"2,400.00"
Children & Learning,CHIL,Pathways Through Care,CHF32,Looked After Children Team,AC0150,Contract Hire and Operating Leases,Hire of Transport & Plant,11/08/2022,3529593,Revenue - General Fund,Cab My Ride,26254,"2,400.00"
Children & Learning,CHIL,Pathways Through Care,CHF32,Looked After Children Team,AC0150,Contract Hire and Operating Leases,Hire of Transport & Plant,11/08/2022,3529595,Revenue - General Fund,Cab My Ride,26254,"1,920.00"
Children & Learning,CHIL,Pathways Through Care,CHF32,Looked After Children Team,AC0150,Contract Hire and Operating Leases,Hire of Transport & Plant,11/08/2022,3529600,Revenue - General Fund,Cab My Ride,26254,800
Children & Learning,CHIL,Pathways Through Care,CHF32,Looked After Children Team,AC0150,Contract Hire and Operating Leases,Hire of Transport & Plant,11/08/2022,3529592,Revenue - General Fund,Cab My Ride,26254,"3,960.00"
Children & Learning,CHIL,Pathways Through Care,CHF32,Looked After Children Team,AC0150,Contract Hire and Operating Leases,Hire of Transport & Plant,11/08/2022,3529594,Revenue - General Fund,Cab My Ride,26254,"1,600.00"
Children & Learning,CHIL,Pathways Through Care,CHF32,Looked After Children Team,AC0150,Contract Hire and Operating Leases,Hire of Transport & Plant,11/08/2022,3529599,Revenue - General Fund,Cab My Ride,26254,"1,920.00"
Children & Learning,CHIL,Pathways Through Care,CHF32,Looked After Children Team,AC0150,Contract Hire and Operating Leases,Hire of Transport & Plant,11/08/2022,3529598,Revenue - General Fund,Cab My Ride,26254,"1,610.00"
Children & Learning,CHIL,Pathways Through Care,CHF32,Looked After Children Team,AC0150,Contract Hire and Operating Leases,Hire of Transport & Plant,18/08/2022,3529596,Revenue - General Fund,Cab My Ride,26254,"2,560.00"
Children & Learning,CHIL,Pathways Through Care,CHF32,Looked After Children Team,AC0150,Contract Hire and Operating Leases,Hire of Transport & Plant,18/08/2022,3529597,Revenue - General Fund,Cab My Ride,26254,"1,800.00"
Children & Learning,CHIL,Pathways Through Care,CHF32,Looked After Children Team,AC0150,Contract Hire and Operating Leases,Hire of Transport & Plant,08/07/2022,3518828,Revenue - General Fund,R and N Hire,28097,"2,883.00"
Children & Learning,CHIL,Pathways Through Care,CHF32,Looked After Children Team,AC0150,Contract Hire and Operating Leases,Hire of Transport & Plant,08/07/2022,3518825,Revenue - General Fund,R and N Hire,28097,"2,299.25"
Children & Learning,CHIL,Pathways Through Care,CHF32,Looked After Children Team,AC0150,Contract Hire and Operating Leases,Hire of Transport & Plant,08/07/2022,3518830,Revenue - General Fund,R and N Hire,28097,"1,368.00"
Children & Learning,CHIL,Pathways Through Care,CHF32,Looked After Children Team,AC0150,Contract Hire and Operating Leases,Hire of Transport & Plant,08/07/2022,3518831,Revenue - General Fund,R and N Hire,28097,"2,970.00"
Children & Learning,CHIL,Pathways Through Care,CHF32,Looked After Children Team,AC0150,Contract Hire and Operating Leases,Hire of Transport & Plant,08/07/2022,3518827,Revenue - General Fund,R and N Hire,28097,"2,004.50"
Children & Learning,CHIL,Pathways Through Care,CHF32,Looked After Children Team,AC0150,Contract Hire and Operating Leases,Hire of Transport & Plant,25/07/2022,3432437,Revenue - General Fund,Radio Taxis (Southampton) Ltd,20584,709.5
Children & Learning,CHIL,Pathways Through Care,CHF32,Looked After Children Team,AC0150,Contract Hire and Operating Leases,Hire of Transport & Plant,25/07/2022,3521622,Revenue - General Fund,Radio Taxis (Southampton) Ltd,20584,665.5
Children & Learning,CHIL,Pathways Through Care,CHF32,Looked After Children Team,AC0150,Contract Hire and Operating Leases,Hire of Transport & Plant,25/07/2022,3521642,Revenue - General Fund,Radio Taxis (Southampton) Ltd,20584,726
Children & Learning,CHIL,Pathways Through Care,CHF32,Looked After Children Team,AC0150,Contract Hire and Operating Leases,Hire of Transport & Plant,25/07/2022,3396237,Revenue - General Fund,Radio Taxis (Southampton) Ltd,20584,823.9
Children & Learning,CHIL,Pathways Through Care,CHF32,Looked After Children Team,AC0150,Contract Hire and Operating Leases,Hire of Transport & Plant,25/07/2022,3521644,Revenue - General Fund,Radio Taxis (Southampton) Ltd,20584,599.5
Children & Learning,CHIL,Pathways Through Care,CHF32,Looked After Children Team,AC0150,Contract Hire and Operating Leases,Hire of Transport & Plant,25/07/2022,3525486,Revenue - General Fund,Radio Taxis (Southampton) Ltd,20584,775.5
Children & Learning,CHIL,Pathways Through Care,CHF32,Looked After Children Team,AC0150,Contract Hire and Operating Leases,Hire of Transport & Plant,25/07/2022,3396262,Revenue - General Fund,Radio Taxis (Southampton) Ltd,20584,709.5
Children & Learning,CHIL,Pathways Through Care,CHF32,Looked After Children Team,AC0150,Contract Hire and Operating Leases,Hire of Transport & Plant,25/07/2022,3525485,Revenue - General Fund,Radio Taxis (Southampton) Ltd,20584,"2,850.10"
Children & Learning,CHIL,Pathways Through Care,CHF32,Looked After Children Team,AC0150,Contract Hire and Operating Leases,Hire of Transport & Plant,01/08/2022,3521574,Revenue - General Fund,Radio Taxis (Southampton) Ltd,20584,730.4
Children & Learning,CHIL,Pathways Through Care,CHF32,Looked After Children Team,AC0150,Contract Hire and Operating Leases,Hire of Transport & Plant,01/08/2022,3521586,Revenue - General Fund,Radio Taxis (Southampton) Ltd,20584,752.4
Children & Learning,CHIL,Pathways Through Care,CHF32,Looked After Children Team,AC0150,Contract Hire and Operating Leases,Hire of Transport & Plant,01/08/2022,3521563,Revenue - General Fund,Radio Taxis (Southampton) Ltd,20584,803
Children & Learning,CHIL,Pathways Through Care,CHF32,Looked After Children Team,AC0150,Contract Hire and Operating Leases,Hire of Transport & Plant,11/08/2022,3529768,Revenue - General Fund,Radio Taxis (Southampton) Ltd,20584,"1,949.20"
Children & Learning,CHIL,Pathways Through Care,CHF32,Looked After Children Team,AC0150,Contract Hire and Operating Leases,Hire of Transport & Plant,11/08/2022,3529831,Revenue - General Fund,Radio Taxis (Southampton) Ltd,20584,"2,079.00"
Children & Learning,CHIL,Pathways Through Care,CHF32,Looked After Children Team,AC0150,Contract Hire and Operating Leases,Hire of Transport & Plant,11/08/2022,3529832,Revenue - General Fund,Radio Taxis (Southampton) Ltd,20584,506
Children & Learning,CHIL,Pathways Through Care,CHF32,Looked After Children Team,AC0150,Contract Hire and Operating Leases,Hire of Transport & Plant,11/08/2022,3529776,Revenue - General Fund,Radio Taxis (Southampton) Ltd,20584,627
Children & Learning,CHIL,Pathways Through Care,CHF32,Looked After Children Team,AC0150,Contract Hire and Operating Leases,Hire of Transport & Plant,11/08/2022,3529839,Revenue - General Fund,Radio Taxis (Southampton) Ltd,20584,541.2
Children & Learning,CHIL,Pathways Through Care,CHF32,Looked After Children Team,AC0150,Contract Hire and Operating Leases,Hire of Transport & Plant,11/08/2022,3529841,Revenue - General Fund,Radio Taxis (Southampton) Ltd,20584,663
Children & Learning,CHIL,Pathways Through Care,CHF32,Looked After Children Team,AC0150,Contract Hire and Operating Leases,Hire of Transport & Plant,11/08/2022,3529777,Revenue - General Fund,Radio Taxis (Southampton) Ltd,20584,"1,339.80"
Children & Learning,CHIL,Pathways Through Care,CHF32,Looked After Children Team,AC0150,Contract Hire and Operating Leases,Hire of Transport & Plant,11/08/2022,3529834,Revenue - General Fund,Radio Taxis (Southampton) Ltd,20584,"1,166.00"
Children & Learning,CHIL,Pathways Through Care,CHF32,Looked After Children Team,AC0150,Contract Hire and Operating Leases,Hire of Transport & Plant,11/08/2022,3514227,Revenue - General Fund,Radio Taxis (Southampton) Ltd,20584,910.8
Children & Learning,CHIL,Pathways Through Care,CHF32,Looked After Children Team,AC0150,Contract Hire and Operating Leases,Hire of Transport & Plant,11/08/2022,3529828,Revenue - General Fund,Radio Taxis (Southampton) Ltd,20584,"1,037.30"
Children & Learning,CHIL,Pathways Through Care,CHF32,Looked After Children Team,AC0150,Contract Hire and Operating Leases,Hire of Transport & Plant,18/08/2022,3529806,Revenue - General Fund,Radio Taxis (Southampton) Ltd,20584,"2,008.60"
Children & Learning,CHIL,Pathways Through Care,CHF32,Looked After Children Team,AC0150,Contract Hire and Operating Leases,Hire of Transport & Plant,18/08/2022,3529842,Revenue - General Fund,Radio Taxis (Southampton) Ltd,20584,"1,233.10"
Children & Learning,CHIL,Pathways Through Care,CHF32,Looked After Children Team,AC0150,Contract Hire and Operating Leases,Hire of Transport & Plant,18/08/2022,3529803,Revenue - General Fund,Radio Taxis (Southampton) Ltd,20584,"2,019.60"
Children & Learning,CHIL,Pathways Through Care,CHF32,Looked After Children Team,AC0150,Contract Hire and Operating Leases,Hire of Transport & Plant,18/08/2022,3529837,Revenue - General Fund,Radio Taxis (Southampton) Ltd,20584,678.7
Children & Learning,CHIL,Pathways Through Care,CHF32,Looked After Children Team,AC0150,Contract Hire and Operating Leases,Hire of Transport & Plant,18/08/2022,3529805,Revenue - General Fund,Radio Taxis (Southampton) Ltd,20584,"2,367.20"
Children & Learning,CHIL,Pathways Through Care,CHF32,Looked After Children Team,AC0150,Agency Staff,External Agency Staff,08/07/2022,3514591,Revenue - General Fund,NonStop Consulting,15950,"1,872.20"
Children & Learning,CHIL,Pathways Through Care,CHF32,Looked After Children Team,AC0150,Agency Staff,External Agency Staff,08/07/2022,3516108,Revenue - General Fund,NonStop Consulting,15950,"1,872.20"
Children & Learning,CHIL,Pathways Through Care,CHF32,Looked After Children Team,AC0150,Agency Staff,External Agency Staff,08/07/2022,3511435,Revenue - General Fund,NonStop Consulting,15950,"1,872.20"
Children & Learning,CHIL,Pathways Through Care,CHF32,Looked After Children Team,AC0150,Agency Staff,External Agency Staff,08/07/2022,3517483,Revenue - General Fund,NonStop Consulting,15950,"1,872.20"
Children & Learning,CHIL,Pathways Through Care,CHF32,Looked After Children Team,AC0150,Agency Staff,External Agency Staff,08/07/2022,3518341,Revenue - General Fund,NonStop Consulting,15950,"1,872.20"
Children & Learning,CHIL,Pathways Through Care,CHF32,Looked After Children Team,AC0150,Agency Staff,External Agency Staff,08/07/2022,3519344,Revenue - General Fund,NonStop Consulting,15950,"1,872.20"
Children & Learning,CHIL,Pathways Through Care,CHF32,Looked After Children Team,AC0150,Agency Staff,External Agency Staff,08/07/2022,3511436,Revenue - General Fund,NonStop Consulting,15950,"1,872.20"
Children & Learning,CHIL,Pathways Through Care,CHF32,Looked After Children Team,AC0150,Agency Staff,External Agency Staff,08/07/2022,3514589,Revenue - General Fund,NonStop Consulting,15950,"1,872.20"
Children & Learning,CHIL,Pathways Through Care,CHF32,Looked After Children Team,AC0150,Agency Staff,External Agency Staff,08/07/2022,3521417,Revenue - General Fund,NonStop Consulting,15950,"1,872.20"
Children & Learning,CHIL,Pathways Through Care,CHF32,Looked After Children Team,AC0150,Agency Staff,External Agency Staff,25/07/2022,3516961,Revenue - General Fund,NonStop Consulting,15950,"1,872.20"
Children & Learning,CHIL,Pathways Through Care,CHF32,Looked After Children Team,AC0150,Agency Staff,External Agency Staff,25/07/2022,3523188,Revenue - General Fund,NonStop Consulting,15950,"1,872.20"
Children & Learning,CHIL,Pathways Through Care,CHF32,Looked After Children Team,AC0150,Agency Staff,External Agency Staff,25/07/2022,3523189,Revenue - General Fund,NonStop Consulting,15950,"1,872.20"
Children & Learning,CHIL,Pathways Through Care,CHF32,Looked After Children Team,AC0150,Agency Staff,External Agency Staff,25/07/2022,3520164,Revenue - General Fund,NonStop Consulting,15950,"1,872.20"
Children & Learning,CHIL,Pathways Through Care,CHF32,Looked After Children Team,AC0150,Agency Staff,External Agency Staff,25/07/2022,3522328,Revenue - General Fund,NonStop Consulting,15950,"1,872.20"
Children & Learning,CHIL,Pathways Through Care,CHF32,Looked After Children Team,AC0150,Agency Staff,External Agency Staff,01/08/2022,3525832,Revenue - General Fund,NonStop Consulting,15950,"1,872.20"
Children & Learning,CHIL,Pathways Through Care,CHF32,OOC Social Care Residential Placements,AC0170,Services,Temporary Accomodation,30/08/2022,3535815,Revenue - General Fund,Next Step Fostering Services Ltd,19861,"3,921.43"
Children & Learning,CHIL,Pathways Through Care,CHF32,OOC Social Care Residential Placements,AC0170,Services,Temporary Accomodation,02/09/2022,3535814,Revenue - General Fund,Next Step Fostering Services Ltd,19861,"4,052.14"
Children & Learning,CHIL,Pathways Through Care,CHF32,OOC Social Care Residential Placements,AC0170,Miscellaneous and Initiative Expenses,Other Expenses,14/07/2022,3523163,Revenue - General Fund,Green Box Associates,32035,"1,177.50"
Children & Learning,CHIL,Pathways Through Care,CHF32,OOC Social Care Residential Placements,AC0170,Miscellaneous and Initiative Expenses,Other Expenses,14/07/2022,3523162,Revenue - General Fund,Paul Basham Associates,48086,"1,522.00"
Children & Learning,CHIL,Pathways Through Care,CHF32,OOC Social Care Residential Placements,AC0170,Social Services,MARP U16,03/08/2022,3516099,Revenue - General Fund,Alabare Christian Care and Support,47264,"4,895.74"
Children & Learning,CHIL,Pathways Through Care,CHF32,OOC Social Care Residential Placements,AC0170,Social Services,MARP U16,09/09/2022,3531136,Revenue - General Fund,Alabare Christian Care and Support,47264,"4,824.34"
Children & Learning,CHIL,Pathways Through Care,CHF32,OOC Social Care Residential Placements,AC0170,Social Services,MARP U16,09/09/2022,3531135,Revenue - General Fund,Alabare Christian Care and Support,47264,"4,655.75"
Children & Learning,CHIL,Pathways Through Care,CHF32,OOC Social Care Residential Placements,AC0170,Social Services,MARP U16,23/09/2022,3539235,Revenue - General Fund,Allied Publicity Services (Manchester)  Limited,16146,"-10,607.14"
Children & Learning,CHIL,Pathways Through Care,CHF32,OOC Social Care Residential Placements,AC0170,Social Services,MARP U16,05/08/2022,3522833,Revenue - General Fund,Anderida Adolescent Care Ltd,18352,"26,594.24"
Children & Learning,CHIL,Pathways Through Care,CHF32,OOC Social Care Residential Placements,AC0170,Social Services,MARP U16,11/08/2022,3530402,Revenue - General Fund,Anderida Adolescent Care Ltd,18352,"26,594.24"
Children & Learning,CHIL,Pathways Through Care,CHF32,OOC Social Care Residential Placements,AC0170,Social Services,MARP U16,18/08/2022,3516913,Revenue - General Fund,Anderida Adolescent Care Ltd,18352,"26,594.24"
Children & Learning,CHIL,Pathways Through Care,CHF32,OOC Social Care Residential Placements,AC0170,Social Services,MARP U16,06/09/2022,3537330,Revenue - General Fund,Anderida Adolescent Care Ltd,18352,"26,594.24"
Children & Learning,CHIL,Pathways Through Care,CHF32,OOC Social Care Residential Placements,AC0170,Social Services,MARP U16,05/07/2022,3518773,Revenue - General Fund,Arc HD Services Ltd,33064,"5,118.43"
Children & Learning,CHIL,Pathways Through Care,CHF32,OOC Social Care Residential Placements,AC0170,Social Services,MARP U16,05/07/2022,3518774,Revenue - General Fund,Arc HD Services Ltd,33064,"5,118.43"
Children & Learning,CHIL,Pathways Through Care,CHF32,OOC Social Care Residential Placements,AC0170,Social Services,MARP U16,05/07/2022,3518775,Revenue - General Fund,Arc HD Services Ltd,33064,"5,118.43"
Children & Learning,CHIL,Pathways Through Care,CHF32,OOC Social Care Residential Placements,AC0170,Social Services,MARP U16,11/07/2022,3518771,Revenue - General Fund,Arc HD Services Ltd,33064,"4,980.38"
Children & Learning,CHIL,Pathways Through Care,CHF32,OOC Social Care Residential Placements,AC0170,Social Services,MARP U16,11/07/2022,3521041,Revenue - General Fund,Arc HD Services Ltd,33064,"4,980.38"
Children & Learning,CHIL,Pathways Through Care,CHF32,OOC Social Care Residential Placements,AC0170,Social Services,MARP U16,11/07/2022,3521043,Revenue - General Fund,Arc HD Services Ltd,33064,"5,118.43"
Children & Learning,CHIL,Pathways Through Care,CHF32,OOC Social Care Residential Placements,AC0170,Social Services,MARP U16,11/07/2022,3521044,Revenue - General Fund,Arc HD Services Ltd,33064,"5,118.43"
Children & Learning,CHIL,Pathways Through Care,CHF32,OOC Social Care Residential Placements,AC0170,Social Services,MARP U16,11/07/2022,3521045,Revenue - General Fund,Arc HD Services Ltd,33064,"5,118.43"
Children & Learning,CHIL,Pathways Through Care,CHF32,OOC Social Care Residential Placements,AC0170,Social Services,MARP U16,11/07/2022,3518772,Revenue - General Fund,Arc HD Services Ltd,33064,"4,798.05"
Children & Learning,CHIL,Pathways Through Care,CHF32,OOC Social Care Residential Placements,AC0170,Social Services,MARP U16,11/07/2022,3521042,Revenue - General Fund,Arc HD Services Ltd,33064,"4,798.05"
Children & Learning,CHIL,Pathways Through Care,CHF32,OOC Social Care Residential Placements,AC0170,Social Services,MARP U16,04/08/2022,3527166,Revenue - General Fund,Arc HD Services Ltd,33064,"5,880.00"
Children & Learning,CHIL,Pathways Through Care,CHF32,OOC Social Care Residential Placements,AC0170,Social Services,MARP U16,05/08/2022,3522116,Revenue - General Fund,Arc HD Services Ltd,33064,"5,118.43"
Children & Learning,CHIL,Pathways Through Care,CHF32,OOC Social Care Residential Placements,AC0170,Social Services,MARP U16,05/08/2022,3524607,Revenue - General Fund,Arc HD Services Ltd,33064,"5,118.43"
Children & Learning,CHIL,Pathways Through Care,CHF32,OOC Social Care Residential Placements,AC0170,Social Services,MARP U16,05/08/2022,3526614,Revenue - General Fund,Arc HD Services Ltd,33064,"5,118.43"
Children & Learning,CHIL,Pathways Through Care,CHF32,OOC Social Care Residential Placements,AC0170,Social Services,MARP U16,05/08/2022,3526616,Revenue - General Fund,Arc HD Services Ltd,33064,"5,118.43"
Children & Learning,CHIL,Pathways Through Care,CHF32,OOC Social Care Residential Placements,AC0170,Social Services,MARP U16,05/08/2022,3522113,Revenue - General Fund,Arc HD Services Ltd,33064,"4,798.05"
Children & Learning,CHIL,Pathways Through Care,CHF32,OOC Social Care Residential Placements,AC0170,Social Services,MARP U16,05/08/2022,3522114,Revenue - General Fund,Arc HD Services Ltd,33064,"5,118.43"
Children & Learning,CHIL,Pathways Through Care,CHF32,OOC Social Care Residential Placements,AC0170,Social Services,MARP U16,05/08/2022,3522115,Revenue - General Fund,Arc HD Services Ltd,33064,"5,118.43"
Children & Learning,CHIL,Pathways Through Care,CHF32,OOC Social Care Residential Placements,AC0170,Social Services,MARP U16,05/08/2022,3524604,Revenue - General Fund,Arc HD Services Ltd,33064,"4,980.38"
Children & Learning,CHIL,Pathways Through Care,CHF32,OOC Social Care Residential Placements,AC0170,Social Services,MARP U16,05/08/2022,3526612,Revenue - General Fund,Arc HD Services Ltd,33064,"4,980.38"
Children & Learning,CHIL,Pathways Through Care,CHF32,OOC Social Care Residential Placements,AC0170,Social Services,MARP U16,05/08/2022,3522112,Revenue - General Fund,Arc HD Services Ltd,33064,"4,980.38"
Children & Learning,CHIL,Pathways Through Care,CHF32,OOC Social Care Residential Placements,AC0170,Social Services,MARP U16,05/08/2022,3524608,Revenue - General Fund,Arc HD Services Ltd,33064,"5,118.43"
Children & Learning,CHIL,Pathways Through Care,CHF32,OOC Social Care Residential Placements,AC0170,Social Services,MARP U16,05/08/2022,3526613,Revenue - General Fund,Arc HD Services Ltd,33064,"4,798.05"
Children & Learning,CHIL,Pathways Through Care,CHF32,OOC Social Care Residential Placements,AC0170,Social Services,MARP U16,05/08/2022,3527167,Revenue - General Fund,Arc HD Services Ltd,33064,"3,150.00"
Children & Learning,CHIL,Pathways Through Care,CHF32,OOC Social Care Residential Placements,AC0170,Social Services,MARP U16,05/08/2022,3524606,Revenue - General Fund,Arc HD Services Ltd,33064,"5,118.43"
Children & Learning,CHIL,Pathways Through Care,CHF32,OOC Social Care Residential Placements,AC0170,Social Services,MARP U16,05/08/2022,3526615,Revenue - General Fund,Arc HD Services Ltd,33064,"5,118.43"
Children & Learning,CHIL,Pathways Through Care,CHF32,OOC Social Care Residential Placements,AC0170,Social Services,MARP U16,11/08/2022,3530048,Revenue - General Fund,Arc HD Services Ltd,33064,"4,980.38"
Children & Learning,CHIL,Pathways Through Care,CHF32,OOC Social Care Residential Placements,AC0170,Social Services,MARP U16,11/08/2022,3530064,Revenue - General Fund,Arc HD Services Ltd,33064,"5,118.43"
Children & Learning,CHIL,Pathways Through Care,CHF32,OOC Social Care Residential Placements,AC0170,Social Services,MARP U16,11/08/2022,3530049,Revenue - General Fund,Arc HD Services Ltd,33064,"4,798.05"
Children & Learning,CHIL,Pathways Through Care,CHF32,OOC Social Care Residential Placements,AC0170,Social Services,MARP U16,11/08/2022,3530050,Revenue - General Fund,Arc HD Services Ltd,33064,"5,118.43"
Children & Learning,CHIL,Pathways Through Care,CHF32,OOC Social Care Residential Placements,AC0170,Social Services,MARP U16,16/08/2022,3524605,Revenue - General Fund,Arc HD Services Ltd,33064,"4,798.05"
Children & Learning,CHIL,Pathways Through Care,CHF32,OOC Social Care Residential Placements,AC0170,Social Services,MARP U16,16/08/2022,3528466,Revenue - General Fund,Arc HD Services Ltd,33064,"4,980.38"
Children & Learning,CHIL,Pathways Through Care,CHF32,OOC Social Care Residential Placements,AC0170,Social Services,MARP U16,16/08/2022,3528467,Revenue - General Fund,Arc HD Services Ltd,33064,"4,798.05"
Children & Learning,CHIL,Pathways Through Care,CHF32,OOC Social Care Residential Placements,AC0170,Social Services,MARP U16,16/08/2022,3528468,Revenue - General Fund,Arc HD Services Ltd,33064,"5,118.43"
Children & Learning,CHIL,Pathways Through Care,CHF32,OOC Social Care Residential Placements,AC0170,Social Services,MARP U16,16/08/2022,3528469,Revenue - General Fund,Arc HD Services Ltd,33064,"5,118.43"
Children & Learning,CHIL,Pathways Through Care,CHF32,OOC Social Care Residential Placements,AC0170,Social Services,MARP U16,22/08/2022,3531661,Revenue - General Fund,Arc HD Services Ltd,33064,630
Children & Learning,CHIL,Pathways Through Care,CHF32,OOC Social Care Residential Placements,AC0170,Social Services,MARP U16,22/08/2022,3531660,Revenue - General Fund,Arc HD Services Ltd,33064,"5,250.00"
Children & Learning,CHIL,Pathways Through Care,CHF32,OOC Social Care Residential Placements,AC0170,Social Services,MARP U16,23/08/2022,3534529,Revenue - General Fund,Arc HD Services Ltd,33064,"4,980.38"
Children & Learning,CHIL,Pathways Through Care,CHF32,OOC Social Care Residential Placements,AC0170,Social Services,MARP U16,23/08/2022,3534531,Revenue - General Fund,Arc HD Services Ltd,33064,"5,118.43"
Children & Learning,CHIL,Pathways Through Care,CHF32,OOC Social Care Residential Placements,AC0170,Social Services,MARP U16,23/08/2022,3534532,Revenue - General Fund,Arc HD Services Ltd,33064,"5,118.43"
Children & Learning,CHIL,Pathways Through Care,CHF32,OOC Social Care Residential Placements,AC0170,Social Services,MARP U16,23/08/2022,3534530,Revenue - General Fund,Arc HD Services Ltd,33064,"4,798.05"
Children & Learning,CHIL,Pathways Through Care,CHF32,OOC Social Care Residential Placements,AC0170,Social Services,MARP U16,26/08/2022,3535451,Revenue - General Fund,Arc HD Services Ltd,33064,"4,980.38"
Children & Learning,CHIL,Pathways Through Care,CHF32,OOC Social Care Residential Placements,AC0170,Social Services,MARP U16,30/08/2022,3535452,Revenue - General Fund,Arc HD Services Ltd,33064,"4,798.05"
Children & Learning,CHIL,Pathways Through Care,CHF32,OOC Social Care Residential Placements,AC0170,Social Services,MARP U16,30/08/2022,3535453,Revenue - General Fund,Arc HD Services Ltd,33064,"5,118.43"
Children & Learning,CHIL,Pathways Through Care,CHF32,OOC Social Care Residential Placements,AC0170,Social Services,MARP U16,30/08/2022,3535454,Revenue - General Fund,Arc HD Services Ltd,33064,"5,118.43"
Children & Learning,CHIL,Pathways Through Care,CHF32,OOC Social Care Residential Placements,AC0170,Social Services,MARP U16,31/08/2022,3535798,Revenue - General Fund,Arc HD Services Ltd,33064,"2,924.80"
Children & Learning,CHIL,Pathways Through Care,CHF32,OOC Social Care Residential Placements,AC0170,Social Services,MARP U16,01/09/2022,3536705,Revenue - General Fund,Arc HD Services Ltd,33064,"4,798.05"
Children & Learning,CHIL,Pathways Through Care,CHF32,OOC Social Care Residential Placements,AC0170,Social Services,MARP U16,01/09/2022,3536706,Revenue - General Fund,Arc HD Services Ltd,33064,731.2
Children & Learning,CHIL,Pathways Through Care,CHF32,OOC Social Care Residential Placements,AC0170,Social Services,MARP U16,01/09/2022,3536707,Revenue - General Fund,Arc HD Services Ltd,33064,"5,118.43"
Children & Learning,CHIL,Pathways Through Care,CHF32,OOC Social Care Residential Placements,AC0170,Social Services,MARP U16,01/09/2022,3536704,Revenue - General Fund,Arc HD Services Ltd,33064,"4,980.38"
Children & Learning,CHIL,Pathways Through Care,CHF32,OOC Social Care Residential Placements,AC0170,Social Services,MARP U16,02/09/2022,3531656,Revenue - General Fund,Arc HD Services Ltd,33064,"4,980.38"
Children & Learning,CHIL,Pathways Through Care,CHF32,OOC Social Care Residential Placements,AC0170,Social Services,MARP U16,02/09/2022,3531657,Revenue - General Fund,Arc HD Services Ltd,33064,"4,798.05"
Children & Learning,CHIL,Pathways Through Care,CHF32,OOC Social Care Residential Placements,AC0170,Social Services,MARP U16,02/09/2022,3531658,Revenue - General Fund,Arc HD Services Ltd,33064,"5,118.43"
Children & Learning,CHIL,Pathways Through Care,CHF32,OOC Social Care Residential Placements,AC0170,Social Services,MARP U16,02/09/2022,3531659,Revenue - General Fund,Arc HD Services Ltd,33064,"5,118.43"
Children & Learning,CHIL,Pathways Through Care,CHF32,OOC Social Care Residential Placements,AC0170,Social Services,MARP U16,08/09/2022,3537874,Revenue - General Fund,Arc HD Services Ltd,33064,"4,798.05"
Children & Learning,CHIL,Pathways Through Care,CHF32,OOC Social Care Residential Placements,AC0170,Social Services,MARP U16,08/09/2022,3531941,Revenue - General Fund,Arc HD Services Ltd,33064,"-5,880.00"
Children & Learning,CHIL,Pathways Through Care,CHF32,OOC Social Care Residential Placements,AC0170,Social Services,MARP U16,20/09/2022,3540446,Revenue - General Fund,Arc HD Services Ltd,33064,"4,798.05"
Children & Learning,CHIL,Pathways Through Care,CHF32,OOC Social Care Residential Placements,AC0170,Social Services,MARP U16,20/09/2022,3540445,Revenue - General Fund,Arc HD Services Ltd,33064,"4,980.38"
Children & Learning,CHIL,Pathways Through Care,CHF32,OOC Social Care Residential Placements,AC0170,Social Services,MARP U16,21/09/2022,3539238,Revenue - General Fund,Arc HD Services Ltd,33064,"-5,880.00"
Children & Learning,CHIL,Pathways Through Care,CHF32,OOC Social Care Residential Placements,AC0170,Social Services,MARP U16,26/09/2022,3541384,Revenue - General Fund,Arc HD Services Ltd,33064,"4,980.38"
Children & Learning,CHIL,Pathways Through Care,CHF32,OOC Social Care Residential Placements,AC0170,Social Services,MARP U16,26/09/2022,3541385,Revenue - General Fund,Arc HD Services Ltd,33064,"4,798.05"
Children & Learning,CHIL,Pathways Through Care,CHF32,OOC Social Care Residential Placements,AC0170,Social Services,MARP U16,27/09/2022,3542517,Revenue - General Fund,Arc HD Services Ltd,33064,"4,980.38"
Children & Learning,CHIL,Pathways Through Care,CHF32,OOC Social Care Residential Placements,AC0170,Social Services,MARP U16,30/09/2022,3543253,Revenue - General Fund,Arc HD Services Ltd,33064,"4,798.05"
Children & Learning,CHIL,Pathways Through Care,CHF32,OOC Social Care Residential Placements,AC0170,Social Services,MARP U16,30/09/2022,3543252,Revenue - General Fund,Arc HD Services Ltd,33064,"4,980.38"
Children & Learning,CHIL,Pathways Through Care,CHF32,OOC Social Care Residential Placements,AC0170,Social Services,MARP U16,05/08/2022,3522827,Revenue - General Fund,Assure Care Homes,32891,"16,284.73"
Children & Learning,CHIL,Pathways Through Care,CHF32,OOC Social Care Residential Placements,AC0170,Social Services,MARP U16,05/08/2022,3522828,Revenue - General Fund,Assure Care Homes,32891,"22,363.62"
Children & Learning,CHIL,Pathways Through Care,CHF32,OOC Social Care Residential Placements,AC0170,Social Services,MARP U16,11/08/2022,3530518,Revenue - General Fund,Assure Care Homes,32891,"22,363.62"
Children & Learning,CHIL,Pathways Through Care,CHF32,OOC Social Care Residential Placements,AC0170,Social Services,MARP U16,30/08/2022,3536333,Revenue - General Fund,Assure Care Homes,32891,"16,284.73"
Children & Learning,CHIL,Pathways Through Care,CHF32,OOC Social Care Residential Placements,AC0170,Social Services,MARP U16,05/09/2022,3537033,Revenue - General Fund,Assure Care Homes,32891,"21,642.21"
Children & Learning,CHIL,Pathways Through Care,CHF32,OOC Social Care Residential Placements,AC0170,Social Services,MARP U16,05/09/2022,3537032,Revenue - General Fund,Assure Care Homes,32891,"15,759.42"
Children & Learning,CHIL,Pathways Through Care,CHF32,OOC Social Care Residential Placements,AC0170,Social Services,MARP U16,03/08/2022,3521979,Revenue - General Fund,Beaufort Care Group,26814,"23,028.57"
Children & Learning,CHIL,Pathways Through Care,CHF32,OOC Social Care Residential Placements,AC0170,Social Services,MARP U16,15/08/2022,3530969,Revenue - General Fund,Beaufort Care Group,26814,"23,028.57"
Children & Learning,CHIL,Pathways Through Care,CHF32,OOC Social Care Residential Placements,AC0170,Social Services,MARP U16,05/09/2022,3537020,Revenue - General Fund,Beaufort Care Group,26814,"22,285.71"
Children & Learning,CHIL,Pathways Through Care,CHF32,OOC Social Care Residential Placements,AC0170,Social Services,MARP U16,08/08/2022,3529079,Revenue - General Fund,Branas Isaf Personal Development Centre Ltd,18233,"21,035.67"
Children & Learning,CHIL,Pathways Through Care,CHF32,OOC Social Care Residential Placements,AC0170,Social Services,MARP U16,29/09/2022,3520225,Revenue - General Fund,Branas Isaf Personal Development Centre Ltd,18233,"21,035.67"
Children & Learning,CHIL,Pathways Through Care,CHF32,OOC Social Care Residential Placements,AC0170,Social Services,MARP U16,02/08/2022,3516225,Revenue - General Fund,Budwood Ltd,28040,"13,932.33"
Children & Learning,CHIL,Pathways Through Care,CHF32,OOC Social Care Residential Placements,AC0170,Social Services,MARP U16,05/08/2022,3524832,Revenue - General Fund,Budwood Ltd,28040,"13,482.90"
Children & Learning,CHIL,Pathways Through Care,CHF32,OOC Social Care Residential Placements,AC0170,Social Services,MARP U16,05/08/2022,3524833,Revenue - General Fund,Budwood Ltd,28040,"13,482.90"
Children & Learning,CHIL,Pathways Through Care,CHF32,OOC Social Care Residential Placements,AC0170,Social Services,MARP U16,22/08/2022,3531797,Revenue - General Fund,Budwood Ltd,28040,"13,932.33"
Children & Learning,CHIL,Pathways Through Care,CHF32,OOC Social Care Residential Placements,AC0170,Social Services,MARP U16,01/09/2022,3531798,Revenue - General Fund,Budwood Ltd,28040,"16,332.33"
Children & Learning,CHIL,Pathways Through Care,CHF32,OOC Social Care Residential Placements,AC0170,Social Services,MARP U16,21/09/2022,3540525,Revenue - General Fund,Budwood Ltd,28040,"2,247.15"
Children & Learning,CHIL,Pathways Through Care,CHF32,OOC Social Care Residential Placements,AC0170,Social Services,MARP U16,28/09/2022,3540526,Revenue - General Fund,Budwood Ltd,28040,"16,257.33"
Children & Learning,CHIL,Pathways Through Care,CHF32,OOC Social Care Residential Placements,AC0170,Social Services,MARP U16,04/07/2022,3512305,Revenue - General Fund,Calcot Services for Children Ltd,32585,"15,608.40"
Children & Learning,CHIL,Pathways Through Care,CHF32,OOC Social Care Residential Placements,AC0170,Social Services,MARP U16,08/07/2022,3519862,Revenue - General Fund,Calcot Services for Children Ltd,32585,"15,500.00"
Children & Learning,CHIL,Pathways Through Care,CHF32,OOC Social Care Residential Placements,AC0170,Social Services,MARP U16,25/07/2022,3520116,Revenue - General Fund,Calcot Services for Children Ltd,32585,"15,145.67"
Children & Learning,CHIL,Pathways Through Care,CHF32,OOC Social Care Residential Placements,AC0170,Social Services,MARP U16,10/08/2022,3528517,Revenue - General Fund,Calcot Services for Children Ltd,32585,"15,145.67"
Children & Learning,CHIL,Pathways Through Care,CHF32,OOC Social Care Residential Placements,AC0170,Social Services,MARP U16,19/08/2022,3534844,Revenue - General Fund,Calcot Services for Children Ltd,32585,-950.31
Children & Learning,CHIL,Pathways Through Care,CHF32,OOC Social Care Residential Placements,AC0170,Social Services,MARP U16,08/09/2022,3534324,Revenue - General Fund,Calcot Services for Children Ltd,32585,"-9,771.40"
Children & Learning,CHIL,Pathways Through Care,CHF32,OOC Social Care Residential Placements,AC0170,Social Services,MARP U16,15/08/2022,3531052,Revenue - General Fund,CG Partnership Limited,48128,700
Children & Learning,CHIL,Pathways Through Care,CHF32,OOC Social Care Residential Placements,AC0170,Social Services,MARP U16,16/08/2022,3527033,Revenue - General Fund,CG Partnership Limited,48128,586
Children & Learning,CHIL,Pathways Through Care,CHF32,OOC Social Care Residential Placements,AC0170,Social Services,MARP U16,25/08/2022,3534991,Revenue - General Fund,CG Partnership Limited,48128,700
Children & Learning,CHIL,Pathways Through Care,CHF32,OOC Social Care Residential Placements,AC0170,Social Services,MARP U16,25/08/2022,3534990,Revenue - General Fund,CG Partnership Limited,48128,"8,800.00"
Children & Learning,CHIL,Pathways Through Care,CHF32,OOC Social Care Residential Placements,AC0170,Social Services,MARP U16,31/08/2022,3536523,Revenue - General Fund,CG Partnership Limited,48128,"8,800.00"
Children & Learning,CHIL,Pathways Through Care,CHF32,OOC Social Care Residential Placements,AC0170,Social Services,MARP U16,28/07/2022,3513337,Revenue - General Fund,Champion Children,44979,"28,996.07"
Children & Learning,CHIL,Pathways Through Care,CHF32,OOC Social Care Residential Placements,AC0170,Social Services,MARP U16,01/08/2022,3521989,Revenue - General Fund,Champion Children,44979,"28,060.50"
Children & Learning,CHIL,Pathways Through Care,CHF32,OOC Social Care Residential Placements,AC0170,Social Services,MARP U16,01/09/2022,3529373,Revenue - General Fund,Champion Children,44979,"28,996.07"
Children & Learning,CHIL,Pathways Through Care,CHF32,OOC Social Care Residential Placements,AC0170,Social Services,MARP U16,05/09/2022,3536885,Revenue - General Fund,Champion Children,44979,"28,996.07"
Children & Learning,CHIL,Pathways Through Care,CHF32,OOC Social Care Residential Placements,AC0170,Social Services,MARP U16,09/08/2022,3527919,Revenue - General Fund,Channels & Choices LLP,33066,"19,800.00"
Children & Learning,CHIL,Pathways Through Care,CHF32,OOC Social Care Residential Placements,AC0170,Social Services,MARP U16,22/08/2022,3531986,Revenue - General Fund,Channels & Choices LLP,33066,"19,800.00"
Children & Learning,CHIL,Pathways Through Care,CHF32,OOC Social Care Residential Placements,AC0170,Social Services,MARP U16,20/09/2022,3539579,Revenue - General Fund,Channels & Choices LLP,33066,"19,800.00"
Children & Learning,CHIL,Pathways Through Care,CHF32,OOC Social Care Residential Placements,AC0170,Social Services,MARP U16,27/09/2022,3542509,Revenue - General Fund,De-light care and support Limited,48389,"4,720.00"
Children & Learning,CHIL,Pathways Through Care,CHF32,OOC Social Care Residential Placements,AC0170,Social Services,MARP U16,24/08/2022,3529124,Revenue - General Fund,Esland North Limited,14951,"22,364.29"
Children & Learning,CHIL,Pathways Through Care,CHF32,OOC Social Care Residential Placements,AC0170,Social Services,MARP U16,30/08/2022,3520886,Revenue - General Fund,Esland North Limited,14951,"21,642.86"
Children & Learning,CHIL,Pathways Through Care,CHF32,OOC Social Care Residential Placements,AC0170,Social Services,MARP U16,11/07/2022,3522180,Revenue - General Fund,Fairways Community Benefit Society (FCBS),14816,"2,174.70"
Children & Learning,CHIL,Pathways Through Care,CHF32,OOC Social Care Residential Placements,AC0170,Social Services,MARP U16,11/07/2022,3522179,Revenue - General Fund,Fairways Community Benefit Society (FCBS),14816,"3,300.00"
Children & Learning,CHIL,Pathways Through Care,CHF32,OOC Social Care Residential Placements,AC0170,Social Services,MARP U16,02/08/2022,3517666,Revenue - General Fund,Fairways Community Benefit Society (FCBS),14816,"2,174.70"
Children & Learning,CHIL,Pathways Through Care,CHF32,OOC Social Care Residential Placements,AC0170,Social Services,MARP U16,02/08/2022,3517665,Revenue - General Fund,Fairways Community Benefit Society (FCBS),14816,"3,300.00"
Children & Learning,CHIL,Pathways Through Care,CHF32,OOC Social Care Residential Placements,AC0170,Social Services,MARP U16,05/08/2022,3516207,Revenue - General Fund,Fairways Community Benefit Society (FCBS),14816,"3,300.00"
Children & Learning,CHIL,Pathways Through Care,CHF32,OOC Social Care Residential Placements,AC0170,Social Services,MARP U16,05/08/2022,3516208,Revenue - General Fund,Fairways Community Benefit Society (FCBS),14816,"2,174.70"
Children & Learning,CHIL,Pathways Through Care,CHF32,OOC Social Care Residential Placements,AC0170,Social Services,MARP U16,18/08/2022,3528287,Revenue - General Fund,Fairways Community Benefit Society (FCBS),14816,"2,592.86"
Children & Learning,CHIL,Pathways Through Care,CHF32,OOC Social Care Residential Placements,AC0170,Social Services,MARP U16,18/08/2022,3528288,Revenue - General Fund,Fairways Community Benefit Society (FCBS),14816,"5,436.75"
Children & Learning,CHIL,Pathways Through Care,CHF32,OOC Social Care Residential Placements,AC0170,Social Services,MARP U16,30/08/2022,3535509,Revenue - General Fund,Fairways Community Benefit Society (FCBS),14816,"4,815.41"
Children & Learning,CHIL,Pathways Through Care,CHF32,OOC Social Care Residential Placements,AC0170,Social Services,MARP U16,06/07/2022,3521056,Revenue - General Fund,Harvest Care Group,31974,"4,146.42"
Children & Learning,CHIL,Pathways Through Care,CHF32,OOC Social Care Residential Placements,AC0170,Social Services,MARP U16,06/07/2022,3521450,Revenue - General Fund,Headley Care Services Ltd,46777,"4,607.10"
Children & Learning,CHIL,Pathways Through Care,CHF32,OOC Social Care Residential Placements,AC0170,Social Services,MARP U16,08/08/2022,3523161,Revenue - General Fund,Headley Care Services Ltd,46777,"1,228.56"
Children & Learning,CHIL,Pathways Through Care,CHF32,OOC Social Care Residential Placements,AC0170,Social Services,MARP U16,07/07/2022,3511967,Revenue - General Fund,Heritage Care Place LTD,46197,"10,520.00"
Children & Learning,CHIL,Pathways Through Care,CHF32,OOC Social Care Residential Placements,AC0170,Social Services,MARP U16,19/07/2022,3514621,Revenue - General Fund,Highlands Care Solutions Ltd,31137,"7,470.69"
Children & Learning,CHIL,Pathways Through Care,CHF32,OOC Social Care Residential Placements,AC0170,Social Services,MARP U16,04/08/2022,3522156,Revenue - General Fund,Highlands Care Solutions Ltd,31137,"7,229.70"
Children & Learning,CHIL,Pathways Through Care,CHF32,OOC Social Care Residential Placements,AC0170,Social Services,MARP U16,08/09/2022,3530772,Revenue - General Fund,Highlands Care Solutions Ltd,31137,"7,470.69"
Children & Learning,CHIL,Pathways Through Care,CHF32,OOC Social Care Residential Placements,AC0170,Social Services,MARP U16,28/09/2022,3538896,Revenue - General Fund,Highlands Care Solutions Ltd,31137,"1,927.92"
Children & Learning,CHIL,Pathways Through Care,CHF32,OOC Social Care Residential Placements,AC0170,Social Services,MARP U16,28/09/2022,3540092,Revenue - General Fund,Highlands Care Solutions Ltd,31137,882.14
Children & Learning,CHIL,Pathways Through Care,CHF32,OOC Social Care Residential Placements,AC0170,Social Services,MARP U16,29/07/2022,3527943,Revenue - General Fund,Horizon Care  (TA Key2 Futures Ltd),18309,620.62
Children & Learning,CHIL,Pathways Through Care,CHF32,OOC Social Care Residential Placements,AC0170,Social Services,MARP U16,16/09/2022,3540240,Revenue - General Fund,Horizon Care  (TA Key2 Futures Ltd),18309,"2,781.33"
Children & Learning,CHIL,Pathways Through Care,CHF32,OOC Social Care Residential Placements,AC0170,Social Services,MARP U16,16/09/2022,3539936,Revenue - General Fund,Horizon Care  (TA Key2 Futures Ltd),18309,"3,082.33"
Children & Learning,CHIL,Pathways Through Care,CHF32,OOC Social Care Residential Placements,AC0170,Social Services,MARP U16,21/09/2022,3531929,Revenue - General Fund,Horizon Care  (TA Key2 Futures Ltd),18309,"2,386.32"
Children & Learning,CHIL,Pathways Through Care,CHF32,OOC Social Care Residential Placements,AC0170,Social Services,MARP U16,21/09/2022,3539725,Revenue - General Fund,Horizon Care  (TA Key2 Futures Ltd),18309,"3,082.33"
Children & Learning,CHIL,Pathways Through Care,CHF32,OOC Social Care Residential Placements,AC0170,Social Services,MARP U16,08/09/2022,3531968,Revenue - General Fund,Keys Group PCE,17772,"-4,388.40"
Children & Learning,CHIL,Pathways Through Care,CHF32,OOC Social Care Residential Placements,AC0170,Social Services,MARP U16,21/09/2022,23457,Revenue - General Fund,Keys Group PCE,17772,"4,388.40"
Children & Learning,CHIL,Pathways Through Care,CHF32,OOC Social Care Residential Placements,AC0170,Social Services,MARP U16,01/07/2022,3520792,Revenue - General Fund,Keys PCE Limited,26183,"18,474.77"
Children & Learning,CHIL,Pathways Through Care,CHF32,OOC Social Care Residential Placements,AC0170,Social Services,MARP U16,01/07/2022,3520793,Revenue - General Fund,Keys PCE Limited,26183,"17,944.29"
Children & Learning,CHIL,Pathways Through Care,CHF32,OOC Social Care Residential Placements,AC0170,Social Services,MARP U16,01/07/2022,3520794,Revenue - General Fund,Keys PCE Limited,26183,"16,808.57"
Children & Learning,CHIL,Pathways Through Care,CHF32,OOC Social Care Residential Placements,AC0170,Social Services,MARP U16,01/07/2022,3520791,Revenue - General Fund,Keys PCE Limited,26183,"18,474.77"
Children & Learning,CHIL,Pathways Through Care,CHF32,OOC Social Care Residential Placements,AC0170,Social Services,MARP U16,05/07/2022,3517015,Revenue - General Fund,Keys PCE Limited,26183,-610
Children & Learning,CHIL,Pathways Through Care,CHF32,OOC Social Care Residential Placements,AC0170,Social Services,MARP U16,05/07/2022,3520797,Revenue - General Fund,Keys PCE Limited,26183,"3,625.20"
Children & Learning,CHIL,Pathways Through Care,CHF32,OOC Social Care Residential Placements,AC0170,Social Services,MARP U16,05/07/2022,3520795,Revenue - General Fund,Keys PCE Limited,26183,"3,625.20"
Children & Learning,CHIL,Pathways Through Care,CHF32,OOC Social Care Residential Placements,AC0170,Social Services,MARP U16,08/07/2022,3520796,Revenue - General Fund,Keys PCE Limited,26183,"18,474.77"
Children & Learning,CHIL,Pathways Through Care,CHF32,OOC Social Care Residential Placements,AC0170,Social Services,MARP U16,11/08/2022,3529481,Revenue - General Fund,Keys PCE Limited,26183,"19,090.60"
Children & Learning,CHIL,Pathways Through Care,CHF32,OOC Social Care Residential Placements,AC0170,Social Services,MARP U16,11/08/2022,3529483,Revenue - General Fund,Keys PCE Limited,26183,"18,542.43"
Children & Learning,CHIL,Pathways Through Care,CHF32,OOC Social Care Residential Placements,AC0170,Social Services,MARP U16,11/08/2022,3529485,Revenue - General Fund,Keys PCE Limited,26183,"19,090.60"
Children & Learning,CHIL,Pathways Through Care,CHF32,OOC Social Care Residential Placements,AC0170,Social Services,MARP U16,11/08/2022,3529482,Revenue - General Fund,Keys PCE Limited,26183,"19,090.60"
Children & Learning,CHIL,Pathways Through Care,CHF32,OOC Social Care Residential Placements,AC0170,Social Services,MARP U16,11/08/2022,3529486,Revenue - General Fund,Keys PCE Limited,26183,"2,862.00"
Children & Learning,CHIL,Pathways Through Care,CHF32,OOC Social Care Residential Placements,AC0170,Social Services,MARP U16,11/08/2022,3529484,Revenue - General Fund,Keys PCE Limited,26183,"17,368.86"
Children & Learning,CHIL,Pathways Through Care,CHF32,OOC Social Care Residential Placements,AC0170,Social Services,MARP U16,16/08/2022,3529480,Revenue - General Fund,Keys PCE Limited,26183,"2,862.00"
Children & Learning,CHIL,Pathways Through Care,CHF32,OOC Social Care Residential Placements,AC0170,Social Services,MARP U16,31/08/2022,3536483,Revenue - General Fund,Keys PCE Limited,26183,"19,090.60"
Children & Learning,CHIL,Pathways Through Care,CHF32,OOC Social Care Residential Placements,AC0170,Social Services,MARP U16,31/08/2022,3536482,Revenue - General Fund,Keys PCE Limited,26183,"19,090.60"
Children & Learning,CHIL,Pathways Through Care,CHF32,OOC Social Care Residential Placements,AC0170,Social Services,MARP U16,31/08/2022,3536484,Revenue - General Fund,Keys PCE Limited,26183,"18,542.43"
Children & Learning,CHIL,Pathways Through Care,CHF32,OOC Social Care Residential Placements,AC0170,Social Services,MARP U16,31/08/2022,3536485,Revenue - General Fund,Keys PCE Limited,26183,"17,368.86"
Children & Learning,CHIL,Pathways Through Care,CHF32,OOC Social Care Residential Placements,AC0170,Social Services,MARP U16,23/09/2022,3541068,Revenue - General Fund,Keys PCE Limited,26183,"-18,474.77"
Children & Learning,CHIL,Pathways Through Care,CHF32,OOC Social Care Residential Placements,AC0170,Social Services,MARP U16,26/09/2022,3541821,Revenue - General Fund,Keys PCE Limited,26183,"-4,388.40"
Children & Learning,CHIL,Pathways Through Care,CHF32,OOC Social Care Residential Placements,AC0170,Social Services,MARP U16,29/09/2022,3536486,Revenue - General Fund,Keys PCE Limited,26183,"19,090.60"
Children & Learning,CHIL,Pathways Through Care,CHF32,OOC Social Care Residential Placements,AC0170,Social Services,MARP U16,30/09/2022,3543299,Revenue - General Fund,Keys PCE Limited,26183,"4,197.60"
Children & Learning,CHIL,Pathways Through Care,CHF32,OOC Social Care Residential Placements,AC0170,Social Services,MARP U16,30/09/2022,3543305,Revenue - General Fund,Keys PCE Limited,26183,"18,474.77"
Children & Learning,CHIL,Pathways Through Care,CHF32,OOC Social Care Residential Placements,AC0170,Social Services,MARP U16,30/09/2022,3543300,Revenue - General Fund,Keys PCE Limited,26183,"4,197.60"
Children & Learning,CHIL,Pathways Through Care,CHF32,OOC Social Care Residential Placements,AC0170,Social Services,MARP U16,30/09/2022,3543301,Revenue - General Fund,Keys PCE Limited,26183,"18,474.77"
Children & Learning,CHIL,Pathways Through Care,CHF32,OOC Social Care Residential Placements,AC0170,Social Services,MARP U16,02/08/2022,3522878,Revenue - General Fund,Lioncare Ltd,21402,"16,139.75"
Children & Learning,CHIL,Pathways Through Care,CHF32,OOC Social Care Residential Placements,AC0170,Social Services,MARP U16,02/08/2022,3522879,Revenue - General Fund,Lioncare Ltd,21402,"16,139.76"
Children & Learning,CHIL,Pathways Through Care,CHF32,OOC Social Care Residential Placements,AC0170,Social Services,MARP U16,11/08/2022,3526508,Revenue - General Fund,Lioncare Ltd,21402,"15,619.11"
Children & Learning,CHIL,Pathways Through Care,CHF32,OOC Social Care Residential Placements,AC0170,Social Services,MARP U16,18/08/2022,3526506,Revenue - General Fund,Lioncare Ltd,21402,"15,619.12"
Children & Learning,CHIL,Pathways Through Care,CHF32,OOC Social Care Residential Placements,AC0170,Social Services,MARP U16,24/08/2022,3531120,Revenue - General Fund,Lioncare Ltd,21402,"16,139.76"
Children & Learning,CHIL,Pathways Through Care,CHF32,OOC Social Care Residential Placements,AC0170,Social Services,MARP U16,15/09/2022,3539914,Revenue - General Fund,Lioncare Ltd,21402,"15,619.12"
Children & Learning,CHIL,Pathways Through Care,CHF32,OOC Social Care Residential Placements,AC0170,Social Services,MARP U16,16/09/2022,3540239,Revenue - General Fund,Lioncare Ltd,21402,"16,139.75"
Children & Learning,CHIL,Pathways Through Care,CHF32,OOC Social Care Residential Placements,AC0170,Social Services,MARP U16,15/08/2022,3530731,Revenue - General Fund,My Choice Children�s Homes Ltd,47369,"17,987.62"
Children & Learning,CHIL,Pathways Through Care,CHF32,OOC Social Care Residential Placements,AC0170,Social Services,MARP U16,14/09/2022,3538528,Revenue - General Fund,My Choice Children�s Homes Ltd,47369,"17,407.37"
Children & Learning,CHIL,Pathways Through Care,CHF32,OOC Social Care Residential Placements,AC0170,Social Services,MARP U16,02/08/2022,3522249,Revenue - General Fund,My Choice Childrens Home,15963,"17,987.62"
Children & Learning,CHIL,Pathways Through Care,CHF32,OOC Social Care Residential Placements,AC0170,Social Services,MARP U16,02/08/2022,3522250,Revenue - General Fund,My Choice Childrens Home,15963,"17,734.17"
Children & Learning,CHIL,Pathways Through Care,CHF32,OOC Social Care Residential Placements,AC0170,Social Services,MARP U16,02/08/2022,3522251,Revenue - General Fund,My Choice Childrens Home,15963,"17,734.17"
Children & Learning,CHIL,Pathways Through Care,CHF32,OOC Social Care Residential Placements,AC0170,Social Services,MARP U16,02/08/2022,3522248,Revenue - General Fund,My Choice Childrens Home,15963,"17,734.17"
Children & Learning,CHIL,Pathways Through Care,CHF32,OOC Social Care Residential Placements,AC0170,Social Services,MARP U16,02/08/2022,3522371,Revenue - General Fund,My Choice Childrens Home,15963,"17,987.62"
Children & Learning,CHIL,Pathways Through Care,CHF32,OOC Social Care Residential Placements,AC0170,Social Services,MARP U16,15/08/2022,3530730,Revenue - General Fund,My Choice Childrens Home,15963,"17,734.17"
Children & Learning,CHIL,Pathways Through Care,CHF32,OOC Social Care Residential Placements,AC0170,Social Services,MARP U16,15/08/2022,3530733,Revenue - General Fund,My Choice Childrens Home,15963,"17,734.17"
Children & Learning,CHIL,Pathways Through Care,CHF32,OOC Social Care Residential Placements,AC0170,Social Services,MARP U16,15/08/2022,3530732,Revenue - General Fund,My Choice Childrens Home,15963,"17,987.62"
Children & Learning,CHIL,Pathways Through Care,CHF32,OOC Social Care Residential Placements,AC0170,Social Services,MARP U16,15/08/2022,3530734,Revenue - General Fund,My Choice Childrens Home,15963,"17,734.17"
Children & Learning,CHIL,Pathways Through Care,CHF32,OOC Social Care Residential Placements,AC0170,Social Services,MARP U16,14/09/2022,3538529,Revenue - General Fund,My Choice Childrens Home,15963,"17,407.37"
Children & Learning,CHIL,Pathways Through Care,CHF32,OOC Social Care Residential Placements,AC0170,Social Services,MARP U16,14/09/2022,3538527,Revenue - General Fund,My Choice Childrens Home,15963,"10,869.33"
Children & Learning,CHIL,Pathways Through Care,CHF32,OOC Social Care Residential Placements,AC0170,Social Services,MARP U16,15/09/2022,3538530,Revenue - General Fund,My Choice Childrens Home,15963,"17,162.10"
Children & Learning,CHIL,Pathways Through Care,CHF32,OOC Social Care Residential Placements,AC0170,Social Services,MARP U16,15/09/2022,3538531,Revenue - General Fund,My Choice Childrens Home,15963,"17,162.10"
Children & Learning,CHIL,Pathways Through Care,CHF32,OOC Social Care Residential Placements,AC0170,Social Services,MARP U16,15/08/2022,3530688,Revenue - General Fund,New Forest Care Ltd,15479,"36,535.71"
Children & Learning,CHIL,Pathways Through Care,CHF32,OOC Social Care Residential Placements,AC0170,Social Services,MARP U16,07/09/2022,3528286,Revenue - General Fund,New Forest Care Ltd,15479,"20,035.71"
Children & Learning,CHIL,Pathways Through Care,CHF32,OOC Social Care Residential Placements,AC0170,Social Services,MARP U16,29/09/2022,3538545,Revenue - General Fund,New Forest Care Ltd,15479,"-10,607.14"
Children & Learning,CHIL,Pathways Through Care,CHF32,OOC Social Care Residential Placements,AC0170,Social Services,MARP U16,05/07/2022,3518800,Revenue - General Fund,Nurtured Future Living Ltd,42259,"3,800.00"
Children & Learning,CHIL,Pathways Through Care,CHF32,OOC Social Care Residential Placements,AC0170,Social Services,MARP U16,11/07/2022,3520044,Revenue - General Fund,Nurtured Future Living Ltd,42259,"3,800.00"
Children & Learning,CHIL,Pathways Through Care,CHF32,OOC Social Care Residential Placements,AC0170,Social Services,MARP U16,05/08/2022,3525117,Revenue - General Fund,Nurtured Future Living Ltd,42259,"3,800.00"
Children & Learning,CHIL,Pathways Through Care,CHF32,OOC Social Care Residential Placements,AC0170,Social Services,MARP U16,05/08/2022,3516897,Revenue - General Fund,Nurtured Future Living Ltd,42259,"3,800.00"
Children & Learning,CHIL,Pathways Through Care,CHF32,OOC Social Care Residential Placements,AC0170,Social Services,MARP U16,05/08/2022,3522744,Revenue - General Fund,Nurtured Future Living Ltd,42259,"3,800.00"
Children & Learning,CHIL,Pathways Through Care,CHF32,OOC Social Care Residential Placements,AC0170,Social Services,MARP U16,16/08/2022,3530124,Revenue - General Fund,Nurtured Future Living Ltd,42259,"3,800.00"
Children & Learning,CHIL,Pathways Through Care,CHF32,OOC Social Care Residential Placements,AC0170,Social Services,MARP U16,16/08/2022,3526859,Revenue - General Fund,Nurtured Future Living Ltd,42259,"3,800.00"
Children & Learning,CHIL,Pathways Through Care,CHF32,OOC Social Care Residential Placements,AC0170,Social Services,MARP U16,16/08/2022,3528994,Revenue - General Fund,Nurtured Future Living Ltd,42259,"3,800.00"
Children & Learning,CHIL,Pathways Through Care,CHF32,OOC Social Care Residential Placements,AC0170,Social Services,MARP U16,02/09/2022,3534148,Revenue - General Fund,Nurtured Future Living Ltd,42259,"3,800.00"
Children & Learning,CHIL,Pathways Through Care,CHF32,OOC Social Care Residential Placements,AC0170,Social Services,MARP U16,02/09/2022,3531874,Revenue - General Fund,Nurtured Future Living Ltd,42259,"3,800.00"
Children & Learning,CHIL,Pathways Through Care,CHF32,OOC Social Care Residential Placements,AC0170,Social Services,MARP U16,08/09/2022,3537887,Revenue - General Fund,Nurtured Future Living Ltd,42259,"3,800.00"
Children & Learning,CHIL,Pathways Through Care,CHF32,OOC Social Care Residential Placements,AC0170,Social Services,MARP U16,09/09/2022,3536464,Revenue - General Fund,Nurtured Future Living Ltd,42259,"3,800.00"
Children & Learning,CHIL,Pathways Through Care,CHF32,OOC Social Care Residential Placements,AC0170,Social Services,MARP U16,25/07/2022,3522022,Revenue - General Fund,Peterborough City Council (Clare Lodge),47065,"45,000.00"
Children & Learning,CHIL,Pathways Through Care,CHF32,OOC Social Care Residential Placements,AC0170,Social Services,MARP U16,12/08/2022,3530675,Revenue - General Fund,Peterborough City Council (Clare Lodge),47065,"46,500.00"
Children & Learning,CHIL,Pathways Through Care,CHF32,OOC Social Care Residential Placements,AC0170,Social Services,MARP U16,15/09/2022,3538532,Revenue - General Fund,Peterborough City Council (Clare Lodge),47065,"46,500.00"
Children & Learning,CHIL,Pathways Through Care,CHF32,OOC Social Care Residential Placements,AC0170,Social Services,MARP U16,01/07/2022,3519445,Revenue - General Fund,Phoenix Child Care Ltd,26235,"21,748.71"
Children & Learning,CHIL,Pathways Through Care,CHF32,OOC Social Care Residential Placements,AC0170,Social Services,MARP U16,10/08/2022,3528484,Revenue - General Fund,Phoenix Child Care Ltd,26235,"21,748.71"
Children & Learning,CHIL,Pathways Through Care,CHF32,OOC Social Care Residential Placements,AC0170,Social Services,MARP U16,30/08/2022,3535563,Revenue - General Fund,Phoenix Child Care Ltd,26235,"21,047.14"
Children & Learning,CHIL,Pathways Through Care,CHF32,OOC Social Care Residential Placements,AC0170,Social Services,MARP U16,31/08/2022,3535836,Revenue - General Fund,Phoenix Child Care Ltd,26235,"21,047.14"
Children & Learning,CHIL,Pathways Through Care,CHF32,OOC Social Care Residential Placements,AC0170,Social Services,MARP U16,01/09/2022,3524674,Revenue - General Fund,Phoenix Child Care Ltd,26235,"24,768.90"
Children & Learning,CHIL,Pathways Through Care,CHF32,OOC Social Care Residential Placements,AC0170,Social Services,MARP U16,29/09/2022,3542939,Revenue - General Fund,Phoenix Child Care Ltd,26235,"21,748.71"
Children & Learning,CHIL,Pathways Through Care,CHF32,OOC Social Care Residential Placements,AC0170,Social Services,MARP U16,07/07/2022,3521054,Revenue - General Fund,Pilgrims Corner Limited,47086,"30,214.29"
Children & Learning,CHIL,Pathways Through Care,CHF32,OOC Social Care Residential Placements,AC0170,Social Services,MARP U16,29/09/2022,3529899,Revenue - General Fund,Potton Homes Ltd,47989,"18,428.70"
Children & Learning,CHIL,Pathways Through Care,CHF32,OOC Social Care Residential Placements,AC0170,Social Services,MARP U16,29/09/2022,3529900,Revenue - General Fund,Potton Homes Ltd,47989,"19,042.99"
Children & Learning,CHIL,Pathways Through Care,CHF32,OOC Social Care Residential Placements,AC0170,Social Services,MARP U16,29/09/2022,3531004,Revenue - General Fund,Potton Homes Ltd,47989,"19,042.99"
Children & Learning,CHIL,Pathways Through Care,CHF32,OOC Social Care Residential Placements,AC0170,Social Services,MARP U16,05/07/2022,3518910,Revenue - General Fund,Progression Care Limited,16079,"2,362.50"
Children & Learning,CHIL,Pathways Through Care,CHF32,OOC Social Care Residential Placements,AC0170,Social Services,MARP U16,05/07/2022,3518909,Revenue - General Fund,Progression Care Limited,16079,"2,362.50"
Children & Learning,CHIL,Pathways Through Care,CHF32,OOC Social Care Residential Placements,AC0170,Social Services,MARP U16,05/07/2022,3518908,Revenue - General Fund,Progression Care Limited,16079,"2,362.50"
Children & Learning,CHIL,Pathways Through Care,CHF32,OOC Social Care Residential Placements,AC0170,Social Services,MARP U16,05/07/2022,3518911,Revenue - General Fund,Progression Care Limited,16079,"2,100.00"
Children & Learning,CHIL,Pathways Through Care,CHF32,OOC Social Care Residential Placements,AC0170,Social Services,MARP U16,11/07/2022,3521027,Revenue - General Fund,Progression Care Limited,16079,"2,362.50"
Children & Learning,CHIL,Pathways Through Care,CHF32,OOC Social Care Residential Placements,AC0170,Social Services,MARP U16,11/07/2022,3521028,Revenue - General Fund,Progression Care Limited,16079,"2,362.50"
Children & Learning,CHIL,Pathways Through Care,CHF32,OOC Social Care Residential Placements,AC0170,Social Services,MARP U16,11/07/2022,3521029,Revenue - General Fund,Progression Care Limited,16079,"2,100.00"
Children & Learning,CHIL,Pathways Through Care,CHF32,OOC Social Care Residential Placements,AC0170,Social Services,MARP U16,19/07/2022,3521057,Revenue - General Fund,Progression Care Limited,16079,"2,362.50"
Children & Learning,CHIL,Pathways Through Care,CHF32,OOC Social Care Residential Placements,AC0170,Social Services,MARP U16,02/08/2022,3517238,Revenue - General Fund,Progression Care Limited,16079,"2,362.50"
Children & Learning,CHIL,Pathways Through Care,CHF32,OOC Social Care Residential Placements,AC0170,Social Services,MARP U16,05/08/2022,3527384,Revenue - General Fund,Progression Care Limited,16079,"2,362.50"
Children & Learning,CHIL,Pathways Through Care,CHF32,OOC Social Care Residential Placements,AC0170,Social Services,MARP U16,05/08/2022,3517237,Revenue - General Fund,Progression Care Limited,16079,"2,100.00"
Children & Learning,CHIL,Pathways Through Care,CHF32,OOC Social Care Residential Placements,AC0170,Social Services,MARP U16,05/08/2022,3527382,Revenue - General Fund,Progression Care Limited,16079,"2,362.50"
Children & Learning,CHIL,Pathways Through Care,CHF32,OOC Social Care Residential Placements,AC0170,Social Services,MARP U16,05/08/2022,3516947,Revenue - General Fund,Progression Care Limited,16079,"2,362.50"
Children & Learning,CHIL,Pathways Through Care,CHF32,OOC Social Care Residential Placements,AC0170,Social Services,MARP U16,05/08/2022,3527383,Revenue - General Fund,Progression Care Limited,16079,"2,100.00"
Children & Learning,CHIL,Pathways Through Care,CHF32,OOC Social Care Residential Placements,AC0170,Social Services,MARP U16,10/08/2022,3529035,Revenue - General Fund,Progression Care Limited,16079,"2,275.00"
Children & Learning,CHIL,Pathways Through Care,CHF32,OOC Social Care Residential Placements,AC0170,Social Services,MARP U16,11/08/2022,3530526,Revenue - General Fund,Progression Care Limited,16079,"2,100.00"
Children & Learning,CHIL,Pathways Through Care,CHF32,OOC Social Care Residential Placements,AC0170,Social Services,MARP U16,11/08/2022,3530052,Revenue - General Fund,Progression Care Limited,16079,"5,400.00"
Children & Learning,CHIL,Pathways Through Care,CHF32,OOC Social Care Residential Placements,AC0170,Social Services,MARP U16,11/08/2022,3530527,Revenue - General Fund,Progression Care Limited,16079,"2,362.50"
Children & Learning,CHIL,Pathways Through Care,CHF32,OOC Social Care Residential Placements,AC0170,Social Services,MARP U16,11/08/2022,3530528,Revenue - General Fund,Progression Care Limited,16079,"2,310.00"
Children & Learning,CHIL,Pathways Through Care,CHF32,OOC Social Care Residential Placements,AC0170,Social Services,MARP U16,16/08/2022,3525954,Revenue - General Fund,Progression Care Limited,16079,"2,362.50"
Children & Learning,CHIL,Pathways Through Care,CHF32,OOC Social Care Residential Placements,AC0170,Social Services,MARP U16,16/08/2022,3528581,Revenue - General Fund,Progression Care Limited,16079,"2,362.50"
Children & Learning,CHIL,Pathways Through Care,CHF32,OOC Social Care Residential Placements,AC0170,Social Services,MARP U16,16/08/2022,3525955,Revenue - General Fund,Progression Care Limited,16079,"2,362.50"
Children & Learning,CHIL,Pathways Through Care,CHF32,OOC Social Care Residential Placements,AC0170,Social Services,MARP U16,16/08/2022,3528596,Revenue - General Fund,Progression Care Limited,16079,"2,310.00"
Children & Learning,CHIL,Pathways Through Care,CHF32,OOC Social Care Residential Placements,AC0170,Social Services,MARP U16,16/08/2022,3522939,Revenue - General Fund,Progression Care Limited,16079,"2,100.00"
Children & Learning,CHIL,Pathways Through Care,CHF32,OOC Social Care Residential Placements,AC0170,Social Services,MARP U16,16/08/2022,3522940,Revenue - General Fund,Progression Care Limited,16079,"2,362.50"
Children & Learning,CHIL,Pathways Through Care,CHF32,OOC Social Care Residential Placements,AC0170,Social Services,MARP U16,16/08/2022,3525125,Revenue - General Fund,Progression Care Limited,16079,"5,445.00"
Children & Learning,CHIL,Pathways Through Care,CHF32,OOC Social Care Residential Placements,AC0170,Social Services,MARP U16,16/08/2022,3528044,Revenue - General Fund,Progression Care Limited,16079,"2,310.00"
Children & Learning,CHIL,Pathways Through Care,CHF32,OOC Social Care Residential Placements,AC0170,Social Services,MARP U16,16/08/2022,3528580,Revenue - General Fund,Progression Care Limited,16079,"2,362.50"
Children & Learning,CHIL,Pathways Through Care,CHF32,OOC Social Care Residential Placements,AC0170,Social Services,MARP U16,16/08/2022,3530968,Revenue - General Fund,Progression Care Limited,16079,"1,181.25"
Children & Learning,CHIL,Pathways Through Care,CHF32,OOC Social Care Residential Placements,AC0170,Social Services,MARP U16,16/08/2022,3516948,Revenue - General Fund,Progression Care Limited,16079,"2,362.50"
Children & Learning,CHIL,Pathways Through Care,CHF32,OOC Social Care Residential Placements,AC0170,Social Services,MARP U16,16/08/2022,3525953,Revenue - General Fund,Progression Care Limited,16079,"2,100.00"
Children & Learning,CHIL,Pathways Through Care,CHF32,OOC Social Care Residential Placements,AC0170,Social Services,MARP U16,16/08/2022,3528579,Revenue - General Fund,Progression Care Limited,16079,"2,100.00"
Children & Learning,CHIL,Pathways Through Care,CHF32,OOC Social Care Residential Placements,AC0170,Social Services,MARP U16,19/08/2022,3531883,Revenue - General Fund,Progression Care Limited,16079,"2,275.00"
Children & Learning,CHIL,Pathways Through Care,CHF32,OOC Social Care Residential Placements,AC0170,Social Services,MARP U16,01/09/2022,3536708,Revenue - General Fund,Progression Care Limited,16079,"2,362.50"
Children & Learning,CHIL,Pathways Through Care,CHF32,OOC Social Care Residential Placements,AC0170,Social Services,MARP U16,01/09/2022,3536712,Revenue - General Fund,Progression Care Limited,16079,"2,100.00"
Children & Learning,CHIL,Pathways Through Care,CHF32,OOC Social Care Residential Placements,AC0170,Social Services,MARP U16,01/09/2022,3536709,Revenue - General Fund,Progression Care Limited,16079,"2,310.00"
Children & Learning,CHIL,Pathways Through Care,CHF32,OOC Social Care Residential Placements,AC0170,Social Services,MARP U16,01/09/2022,3536711,Revenue - General Fund,Progression Care Limited,16079,"2,362.50"
Children & Learning,CHIL,Pathways Through Care,CHF32,OOC Social Care Residential Placements,AC0170,Social Services,MARP U16,02/09/2022,3531881,Revenue - General Fund,Progression Care Limited,16079,"2,362.50"
Children & Learning,CHIL,Pathways Through Care,CHF32,OOC Social Care Residential Placements,AC0170,Social Services,MARP U16,02/09/2022,3534495,Revenue - General Fund,Progression Care Limited,16079,"2,362.50"
Children & Learning,CHIL,Pathways Through Care,CHF32,OOC Social Care Residential Placements,AC0170,Social Services,MARP U16,02/09/2022,3534499,Revenue - General Fund,Progression Care Limited,16079,975
Children & Learning,CHIL,Pathways Through Care,CHF32,OOC Social Care Residential Placements,AC0170,Social Services,MARP U16,02/09/2022,3535494,Revenue - General Fund,Progression Care Limited,16079,"2,310.00"
Children & Learning,CHIL,Pathways Through Care,CHF32,OOC Social Care Residential Placements,AC0170,Social Services,MARP U16,02/09/2022,3531879,Revenue - General Fund,Progression Care Limited,16079,"2,362.50"
Children & Learning,CHIL,Pathways Through Care,CHF32,OOC Social Care Residential Placements,AC0170,Social Services,MARP U16,02/09/2022,3534496,Revenue - General Fund,Progression Care Limited,16079,"2,100.00"
Children & Learning,CHIL,Pathways Through Care,CHF32,OOC Social Care Residential Placements,AC0170,Social Services,MARP U16,02/09/2022,3534498,Revenue - General Fund,Progression Care Limited,16079,"2,310.00"
Children & Learning,CHIL,Pathways Through Care,CHF32,OOC Social Care Residential Placements,AC0170,Social Services,MARP U16,02/09/2022,3531880,Revenue - General Fund,Progression Care Limited,16079,"2,100.00"
Children & Learning,CHIL,Pathways Through Care,CHF32,OOC Social Care Residential Placements,AC0170,Social Services,MARP U16,02/09/2022,3531882,Revenue - General Fund,Progression Care Limited,16079,"2,310.00"
Children & Learning,CHIL,Pathways Through Care,CHF32,OOC Social Care Residential Placements,AC0170,Social Services,MARP U16,02/09/2022,3534497,Revenue - General Fund,Progression Care Limited,16079,"2,362.50"
Children & Learning,CHIL,Pathways Through Care,CHF32,OOC Social Care Residential Placements,AC0170,Social Services,MARP U16,02/09/2022,3535493,Revenue - General Fund,Progression Care Limited,16079,"1,815.00"
Children & Learning,CHIL,Pathways Through Care,CHF32,OOC Social Care Residential Placements,AC0170,Social Services,MARP U16,09/09/2022,3525145,Revenue - General Fund,Progression Care Limited,16079,-675
Children & Learning,CHIL,Pathways Through Care,CHF32,OOC Social Care Residential Placements,AC0170,Social Services,MARP U16,14/09/2022,3538301,Revenue - General Fund,Progression Care Limited,16079,"2,100.00"
Children & Learning,CHIL,Pathways Through Care,CHF32,OOC Social Care Residential Placements,AC0170,Social Services,MARP U16,14/09/2022,3538302,Revenue - General Fund,Progression Care Limited,16079,"2,362.50"
Children & Learning,CHIL,Pathways Through Care,CHF32,OOC Social Care Residential Placements,AC0170,Social Services,MARP U16,14/09/2022,3538304,Revenue - General Fund,Progression Care Limited,16079,"2,310.00"
Children & Learning,CHIL,Pathways Through Care,CHF32,OOC Social Care Residential Placements,AC0170,Social Services,MARP U16,14/09/2022,3538305,Revenue - General Fund,Progression Care Limited,16079,"2,362.50"
Children & Learning,CHIL,Pathways Through Care,CHF32,OOC Social Care Residential Placements,AC0170,Social Services,MARP U16,16/09/2022,3539200,Revenue - General Fund,Progression Care Limited,16079,"2,310.00"
Children & Learning,CHIL,Pathways Through Care,CHF32,OOC Social Care Residential Placements,AC0170,Social Services,MARP U16,21/09/2022,3539199,Revenue - General Fund,Progression Care Limited,16079,"2,310.00"
Children & Learning,CHIL,Pathways Through Care,CHF32,OOC Social Care Residential Placements,AC0170,Social Services,MARP U16,21/09/2022,3538849,Revenue - General Fund,Progression Care Limited,16079,960
Children & Learning,CHIL,Pathways Through Care,CHF32,OOC Social Care Residential Placements,AC0170,Social Services,MARP U16,22/09/2022,3540517,Revenue - General Fund,Progression Care Limited,16079,"2,310.00"
Children & Learning,CHIL,Pathways Through Care,CHF32,OOC Social Care Residential Placements,AC0170,Social Services,MARP U16,22/09/2022,3540515,Revenue - General Fund,Progression Care Limited,16079,"2,100.00"
Children & Learning,CHIL,Pathways Through Care,CHF32,OOC Social Care Residential Placements,AC0170,Social Services,MARP U16,22/09/2022,3540516,Revenue - General Fund,Progression Care Limited,16079,"2,362.50"
Children & Learning,CHIL,Pathways Through Care,CHF32,OOC Social Care Residential Placements,AC0170,Social Services,MARP U16,23/09/2022,3541281,Revenue - General Fund,Progression Care Limited,16079,"2,325.00"
Children & Learning,CHIL,Pathways Through Care,CHF32,OOC Social Care Residential Placements,AC0170,Social Services,MARP U16,27/09/2022,3541924,Revenue - General Fund,Progression Care Limited,16079,"2,310.00"
Children & Learning,CHIL,Pathways Through Care,CHF32,OOC Social Care Residential Placements,AC0170,Social Services,MARP U16,27/09/2022,3541928,Revenue - General Fund,Progression Care Limited,16079,"2,362.50"
Children & Learning,CHIL,Pathways Through Care,CHF32,OOC Social Care Residential Placements,AC0170,Social Services,MARP U16,27/09/2022,3541925,Revenue - General Fund,Progression Care Limited,16079,"2,362.50"
Children & Learning,CHIL,Pathways Through Care,CHF32,OOC Social Care Residential Placements,AC0170,Social Services,MARP U16,27/09/2022,3541927,Revenue - General Fund,Progression Care Limited,16079,"2,310.00"
Children & Learning,CHIL,Pathways Through Care,CHF32,OOC Social Care Residential Placements,AC0170,Social Services,MARP U16,27/09/2022,3541923,Revenue - General Fund,Progression Care Limited,16079,"2,100.00"
Children & Learning,CHIL,Pathways Through Care,CHF32,OOC Social Care Residential Placements,AC0170,Social Services,MARP U16,27/09/2022,3541926,Revenue - General Fund,Progression Care Limited,16079,"2,100.00"
Children & Learning,CHIL,Pathways Through Care,CHF32,OOC Social Care Residential Placements,AC0170,Social Services,MARP U16,30/08/2022,3535568,Revenue - General Fund,Rubicon Children's Homes LTD,46857,"10,500.00"
Children & Learning,CHIL,Pathways Through Care,CHF32,OOC Social Care Residential Placements,AC0170,Social Services,MARP U16,08/07/2022,3520031,Revenue - General Fund,Serenity Care Homes,39730,"13,000.00"
Children & Learning,CHIL,Pathways Through Care,CHF32,OOC Social Care Residential Placements,AC0170,Social Services,MARP U16,01/08/2022,3512139,Revenue - General Fund,Serenity Care Homes,39730,"13,000.00"
Children & Learning,CHIL,Pathways Through Care,CHF32,OOC Social Care Residential Placements,AC0170,Social Services,MARP U16,08/08/2022,3524207,Revenue - General Fund,Serenity Care Homes,39730,"13,000.00"
Children & Learning,CHIL,Pathways Through Care,CHF32,OOC Social Care Residential Placements,AC0170,Social Services,MARP U16,11/08/2022,3516354,Revenue - General Fund,Serenity Care Homes,39730,"13,000.00"
Children & Learning,CHIL,Pathways Through Care,CHF32,OOC Social Care Residential Placements,AC0170,Social Services,MARP U16,24/08/2022,3534853,Revenue - General Fund,Serenity Care Homes,39730,"13,000.00"
Children & Learning,CHIL,Pathways Through Care,CHF32,OOC Social Care Residential Placements,AC0170,Social Services,MARP U16,05/09/2022,3536879,Revenue - General Fund,Serenity Care Homes,39730,"13,000.00"
Children & Learning,CHIL,Pathways Through Care,CHF32,OOC Social Care Residential Placements,AC0170,Social Services,MARP U16,08/09/2022,3531411,Revenue - General Fund,Serenity Care Homes,39730,"13,000.00"
Children & Learning,CHIL,Pathways Through Care,CHF32,OOC Social Care Residential Placements,AC0170,Social Services,MARP U16,29/09/2022,3528216,Revenue - General Fund,Serenity Care Homes,39730,"13,000.00"
Children & Learning,CHIL,Pathways Through Care,CHF32,OOC Social Care Residential Placements,AC0170,Social Services,MARP U16,08/08/2022,3522966,Revenue - General Fund,Sportfit Support Services Ltd,17767,"9,900.00"
Children & Learning,CHIL,Pathways Through Care,CHF32,OOC Social Care Residential Placements,AC0170,Social Services,MARP U16,18/08/2022,3531667,Revenue - General Fund,Sportfit Support Services Ltd,17767,"10,230.00"
Children & Learning,CHIL,Pathways Through Care,CHF32,OOC Social Care Residential Placements,AC0170,Social Services,MARP U16,08/09/2022,3538308,Revenue - General Fund,Sportfit Support Services Ltd,17767,"10,230.00"
Children & Learning,CHIL,Pathways Through Care,CHF32,OOC Social Care Residential Placements,AC0170,Social Services,MARP U16,21/09/2022,3538366,Revenue - General Fund,Sportfit Support Services Ltd,17767,"1,750.00"
Children & Learning,CHIL,Pathways Through Care,CHF32,OOC Social Care Residential Placements,AC0170,Social Services,MARP U16,23/09/2022,3538367,Revenue - General Fund,Sportfit Support Services Ltd,17767,"14,142.92"
Children & Learning,CHIL,Pathways Through Care,CHF32,OOC Social Care Residential Placements,AC0170,Social Services,MARP U16,28/07/2022,3517792,Revenue - General Fund,Springcroft Homes Ltd,45219,"13,200.00"
Children & Learning,CHIL,Pathways Through Care,CHF32,OOC Social Care Residential Placements,AC0170,Social Services,MARP U16,11/08/2022,3529507,Revenue - General Fund,Springcroft Homes Ltd,45219,"8,485.68"
Children & Learning,CHIL,Pathways Through Care,CHF32,OOC Social Care Residential Placements,AC0170,Social Services,MARP U16,14/09/2022,3529925,Revenue - General Fund,Springcroft Homes Ltd,45219,"8,800.00"
Children & Learning,CHIL,Pathways Through Care,CHF32,OOC Social Care Residential Placements,AC0170,Social Services,MARP U16,15/09/2022,3521730,Revenue - General Fund,Springcroft Homes Ltd,45219,"8,800.00"
Children & Learning,CHIL,Pathways Through Care,CHF32,OOC Social Care Residential Placements,AC0170,Social Services,MARP U16,15/09/2022,3513013,Revenue - General Fund,Springcroft Homes Ltd,45219,"8,800.00"
Children & Learning,CHIL,Pathways Through Care,CHF32,OOC Social Care Residential Placements,AC0170,Social Services,MARP U16,21/09/2022,3540935,Revenue - General Fund,Springcroft Homes Ltd,45219,"13,200.00"
Children & Learning,CHIL,Pathways Through Care,CHF32,OOC Social Care Residential Placements,AC0170,Social Services,MARP U16,02/08/2022,3521539,Revenue - General Fund,SWAAY Child & Adolescent Services Ltd,39387,"21,846.90"
Children & Learning,CHIL,Pathways Through Care,CHF32,OOC Social Care Residential Placements,AC0170,Social Services,MARP U16,11/08/2022,3530385,Revenue - General Fund,SWAAY Child & Adolescent Services Ltd,39387,"22,575.13"
Children & Learning,CHIL,Pathways Through Care,CHF32,OOC Social Care Residential Placements,AC0170,Social Services,MARP U16,05/09/2022,3537013,Revenue - General Fund,SWAAY Child & Adolescent Services Ltd,39387,"22,575.13"
Children & Learning,CHIL,Pathways Through Care,CHF32,OOC Social Care Residential Placements,AC0170,Social Services,MARP U16,16/08/2022,3524599,Revenue - General Fund,The Beehive Enterprise Ltd,32746,"3,731.34"
Children & Learning,CHIL,Pathways Through Care,CHF32,OOC Social Care Residential Placements,AC0170,Social Services,MARP U16,16/08/2022,3529248,Revenue - General Fund,The Beehive Enterprise Ltd,32746,"4,817.08"
Children & Learning,CHIL,Pathways Through Care,CHF32,OOC Social Care Residential Placements,AC0170,Social Services,MARP U16,16/08/2022,3530607,Revenue - General Fund,The Beehive Enterprise Ltd,32746,"3,731.34"
Children & Learning,CHIL,Pathways Through Care,CHF32,OOC Social Care Residential Placements,AC0170,Social Services,MARP U16,26/09/2022,3541241,Revenue - General Fund,The Beehive Enterprise Ltd,32746,"2,737.10"
Children & Learning,CHIL,Pathways Through Care,CHF32,OOC Social Care Residential Placements,AC0170,Social Services,MARP U16,04/08/2022,3522236,Revenue - General Fund,The Caldecott Foundation,36895,"13,263.57"
Children & Learning,CHIL,Pathways Through Care,CHF32,OOC Social Care Residential Placements,AC0170,Social Services,MARP U16,08/09/2022,3530465,Revenue - General Fund,The Caldecott Foundation,36895,"13,263.57"
Children & Learning,CHIL,Pathways Through Care,CHF32,OOC Social Care Residential Placements,AC0170,Social Services,MARP U16,14/09/2022,3538726,Revenue - General Fund,The Caldecott Foundation,36895,"12,835.72"
Children & Learning,CHIL,Pathways Through Care,CHF32,OOC Social Care Residential Placements,AC0170,Social Services,MARP U16,05/08/2022,3519523,Revenue - General Fund,The Serendipity Centre Ltd,17378,800
Children & Learning,CHIL,Pathways Through Care,CHF32,OOC Social Care Residential Placements,AC0170,Social Services,MARP U16,05/08/2022,3522477,Revenue - General Fund,The Serendipity Centre Ltd,17378,640
Children & Learning,CHIL,Pathways Through Care,CHF32,OOC Social Care Residential Placements,AC0170,Social Services,MARP U16,11/08/2022,3530099,Revenue - General Fund,The Serendipity Centre Ltd,17378,"18,201.43"
Children & Learning,CHIL,Pathways Through Care,CHF32,OOC Social Care Residential Placements,AC0170,Social Services,MARP U16,16/08/2022,3530919,Revenue - General Fund,The Serendipity Centre Ltd,17378,640
Children & Learning,CHIL,Pathways Through Care,CHF32,OOC Social Care Residential Placements,AC0170,Social Services,MARP U16,18/08/2022,3531527,Revenue - General Fund,The Serendipity Centre Ltd,17378,"11,742.86"
Children & Learning,CHIL,Pathways Through Care,CHF32,OOC Social Care Residential Placements,AC0170,Social Services,MARP U16,22/08/2022,3532262,Revenue - General Fund,The Serendipity Centre Ltd,17378,"17,614.29"
Children & Learning,CHIL,Pathways Through Care,CHF32,OOC Social Care Residential Placements,AC0170,Social Services,MARP U16,09/09/2022,3535998,Revenue - General Fund,The Serendipity Centre Ltd,17378,"-5,642.85"
Children & Learning,CHIL,Pathways Through Care,CHF32,OOC Social Care Residential Placements,AC0170,Social Services,MARP U16,15/09/2022,3539910,Revenue - General Fund,The Serendipity Centre Ltd,17378,"18,201.43"
Children & Learning,CHIL,Pathways Through Care,CHF32,OOC Social Care Residential Placements,AC0170,Social Services,MARP U16,15/09/2022,3539912,Revenue - General Fund,The Serendipity Centre Ltd,17378,"18,201.43"
Children & Learning,CHIL,Pathways Through Care,CHF32,OOC Social Care Residential Placements,AC0170,Social Services,MARP U16,21/09/2022,3540540,Revenue - General Fund,The Serendipity Centre Ltd,17378,"14,091.43"
Children & Learning,CHIL,Pathways Through Care,CHF32,OOC Social Care Residential Placements,AC0170,Social Services,MARP U16,23/09/2022,3540541,Revenue - General Fund,The Serendipity Centre Ltd,17378,"17,614.29"
Children & Learning,CHIL,Pathways Through Care,CHF32,OOC Social Care Residential Placements,AC0170,Social Services,MARP U16,23/08/2022,3534289,Revenue - General Fund,Vital Links Solutions,31953,"17,700.00"
Children & Learning,CHIL,Pathways Through Care,CHF32,OOC Social Care Residential Placements,AC0170,Social Services,MARP U16,23/08/2022,3534333,Revenue - General Fund,Vital Links Solutions,31953,"4,902.86"
Children & Learning,CHIL,Pathways Through Care,CHF32,OOC Social Care Residential Placements,AC0170,Social Services,MARP U16,31/08/2022,3536291,Revenue - General Fund,Vital Links Solutions,31953,"1,250.00"
Children & Learning,CHIL,Pathways Through Care,CHF32,OOC Social Care Residential Placements,AC0170,Social Services,MARP U16,15/09/2022,3535877,Revenue - General Fund,Wellspring Recruitment and Care Services Limited,48442,"17,550.00"
Children & Learning,CHIL,Pathways Through Care,CHF32,OOC Social Care Residential Placements,AC0170,Social Services,MARP U16,15/09/2022,3536894,Revenue - General Fund,Wellspring Recruitment and Care Services Limited,48442,"17,550.00"
Children & Learning,CHIL,Pathways Through Care,CHF32,OOC Social Care Residential Placements,AC0170,Social Services,MARP U16,23/09/2022,3540524,Revenue - General Fund,Wellspring Recruitment and Care Services Limited,48442,"17,550.00"
Children & Learning,CHIL,Pathways Through Care,CHF32,OOC Social Care Residential Placements,AC0170,Social Services,MARP U16,23/09/2022,3536897,Revenue - General Fund,Wellspring Recruitment and Care Services Limited,48442,"17,550.00"
Children & Learning,CHIL,Pathways Through Care,CHF32,OOC Social Care Residential Placements,AC0170,Social Services,MARP U16,10/08/2022,3528550,Revenue - General Fund,Western Pathways,32959,"6,857.14"
Children & Learning,CHIL,Pathways Through Care,CHF32,OOC Social Care Residential Placements,AC0170,Social Services,MARP U16,22/08/2022,3534748,Revenue - General Fund,Western Pathways,32959,"7,085.71"
Children & Learning,CHIL,Pathways Through Care,CHF32,OOC Social Care Residential Placements,AC0170,Social Services,MARP U16,01/07/2022,3519270,Revenue - General Fund,Willow Brook / Assure Health Care Group,16961,"23,455.80"
Children & Learning,CHIL,Pathways Through Care,CHF32,OOC Social Care Residential Placements,AC0170,Social Services,MARP U16,09/08/2022,3527856,Revenue - General Fund,Willow Brook / Assure Health Care Group,16961,"24,237.66"
Children & Learning,CHIL,Pathways Through Care,CHF32,OOC Social Care Residential Placements,AC0170,Social Services,MARP U16,23/08/2022,3534185,Revenue - General Fund,Willow Brook / Assure Health Care Group,16961,"24,237.66"
Children & Learning,CHIL,Pathways Through Care,CHF32,OOC Social Care Residential Placements,AC0170,Social Services,MARP U16,31/08/2022,3535843,Revenue - General Fund,Willow Brook / Assure Health Care Group,16961,"23,455.80"
Children & Learning,CHIL,Pathways Through Care,CHF32,OOC Social Care Residential Placements,AC0170,Social Services,MARP U16,29/09/2022,3542476,Revenue - General Fund,Willow Brook / Assure Health Care Group,16961,"24,237.66"
Children & Learning,CHIL,Pathways Through Care,CHF32,OOC Social Care Residential Placements,AC0170,Social Services,MARP U16,01/08/2022,3514348,Revenue - General Fund,Your Chapter Limited,19342,"20,357.10"
Children & Learning,CHIL,Pathways Through Care,CHF32,OOC Social Care Residential Placements,AC0170,Social Services,MARP U16,04/08/2022,3522154,Revenue - General Fund,Your Chapter Limited,19342,"21,035.67"
Children & Learning,CHIL,Pathways Through Care,CHF32,OOC Social Care Residential Placements,AC0170,Social Services,MARP U16,12/08/2022,3530645,Revenue - General Fund,Your Chapter Limited,19342,"21,035.67"
Children & Learning,CHIL,Pathways Through Care,CHF32,OOC Social Care Residential Placements,AC0170,Social Services,MARP U16,05/09/2022,3537293,Revenue - General Fund,Your Chapter Limited,19342,"20,357.10"
Children & Learning,CHIL,Pathways Through Care,CHF32,OOC Social Care Residential Placements,AC0170,Social Services,Care Leavers Personal Allowances,16/08/2022,3530529,Revenue - General Fund,Progression Care Limited,16079,"2,275.00"
Children & Learning,CHIL,Pathways Through Care,CHF32,OOC Social Care Residential Placements,AC0170,Social Services,Care Leavers Personal Allowances,26/09/2022,3540519,Revenue - General Fund,Progression Care Limited,16079,"2,310.00"
Children & Learning,CHIL,Pathways Through Care,CHF32,OOC Social Care Residential Placements,AC0170,Social Services,Care Leavers Personal Allowances,26/09/2022,3540518,Revenue - General Fund,Progression Care Limited,16079,"2,362.50"
Children & Learning,CHIL,Pathways Through Care,CHF32,Independent Foster Carers,AC0180,Social Services,IFA Under 18,05/07/2022,3519359,Revenue - General Fund,Action for Children Services Ltd,17048,"5,712.99"
Children & Learning,CHIL,Pathways Through Care,CHF32,Independent Foster Carers,AC0180,Social Services,IFA Under 18,05/07/2022,3519365,Revenue - General Fund,Action for Children Services Ltd,17048,"5,528.70"
Children & Learning,CHIL,Pathways Through Care,CHF32,Independent Foster Carers,AC0180,Social Services,IFA Under 18,30/08/2022,3536300,Revenue - General Fund,Action for Children Services Ltd,17048,"5,712.99"
Children & Learning,CHIL,Pathways Through Care,CHF32,Independent Foster Carers,AC0180,Social Services,IFA Under 18,30/08/2022,3535589,Revenue - General Fund,Action for Children Services Ltd,17048,"5,712.99"
Children & Learning,CHIL,Pathways Through Care,CHF32,Independent Foster Carers,AC0180,Social Services,IFA Under 18,25/07/2022,3525127,Revenue - General Fund,Anchor Foster Care,15687,"4,428.66"
Children & Learning,CHIL,Pathways Through Care,CHF32,Independent Foster Carers,AC0180,Social Services,IFA Under 18,18/08/2022,3531227,Revenue - General Fund,Anchor Foster Care,15687,"4,428.66"
Children & Learning,CHIL,Pathways Through Care,CHF32,Independent Foster Carers,AC0180,Social Services,IFA Under 18,16/09/2022,3539942,Revenue - General Fund,Anchor Foster Care,15687,"4,285.80"
Children & Learning,CHIL,Pathways Through Care,CHF32,Independent Foster Carers,AC0180,Social Services,IFA Under 18,01/08/2022,3516085,Revenue - General Fund,Banya Family Placement Agency Ltd,19791,"3,468.90"
Children & Learning,CHIL,Pathways Through Care,CHF32,Independent Foster Carers,AC0180,Social Services,IFA Under 18,01/08/2022,3516089,Revenue - General Fund,Banya Family Placement Agency Ltd,19791,"3,596.00"
Children & Learning,CHIL,Pathways Through Care,CHF32,Independent Foster Carers,AC0180,Social Services,IFA Under 18,02/08/2022,3516087,Revenue - General Fund,Banya Family Placement Agency Ltd,19791,"3,675.85"
Children & Learning,CHIL,Pathways Through Care,CHF32,Independent Foster Carers,AC0180,Social Services,IFA Under 18,08/08/2022,3523152,Revenue - General Fund,Banya Family Placement Agency Ltd,19791,"3,500.79"
Children & Learning,CHIL,Pathways Through Care,CHF32,Independent Foster Carers,AC0180,Social Services,IFA Under 18,08/08/2022,3523153,Revenue - General Fund,Banya Family Placement Agency Ltd,19791,"3,480.00"
Children & Learning,CHIL,Pathways Through Care,CHF32,Independent Foster Carers,AC0180,Social Services,IFA Under 18,08/08/2022,3523155,Revenue - General Fund,Banya Family Placement Agency Ltd,19791,"3,500.79"
Children & Learning,CHIL,Pathways Through Care,CHF32,Independent Foster Carers,AC0180,Social Services,IFA Under 18,08/08/2022,3523157,Revenue - General Fund,Banya Family Placement Agency Ltd,19791,"5,637.89"
Children & Learning,CHIL,Pathways Through Care,CHF32,Independent Foster Carers,AC0180,Social Services,IFA Under 18,08/08/2022,3523158,Revenue - General Fund,Banya Family Placement Agency Ltd,19791,"3,882.75"
Children & Learning,CHIL,Pathways Through Care,CHF32,Independent Foster Carers,AC0180,Social Services,IFA Under 18,09/08/2022,3516092,Revenue - General Fund,Banya Family Placement Agency Ltd,19791,"5,825.82"
Children & Learning,CHIL,Pathways Through Care,CHF32,Independent Foster Carers,AC0180,Social Services,IFA Under 18,09/08/2022,3527854,Revenue - General Fund,Banya Family Placement Agency Ltd,19791,"3,321.43"
Children & Learning,CHIL,Pathways Through Care,CHF32,Independent Foster Carers,AC0180,Social Services,IFA Under 18,09/08/2022,3516091,Revenue - General Fund,Banya Family Placement Agency Ltd,19791,"3,617.48"
Children & Learning,CHIL,Pathways Through Care,CHF32,Independent Foster Carers,AC0180,Social Services,IFA Under 18,09/08/2022,3527853,Revenue - General Fund,Banya Family Placement Agency Ltd,19791,"3,321.43"
Children & Learning,CHIL,Pathways Through Care,CHF32,Independent Foster Carers,AC0180,Social Services,IFA Under 18,09/08/2022,3516088,Revenue - General Fund,Banya Family Placement Agency Ltd,19791,"3,617.48"
Children & Learning,CHIL,Pathways Through Care,CHF32,Independent Foster Carers,AC0180,Social Services,IFA Under 18,09/08/2022,3523169,Revenue - General Fund,Banya Family Placement Agency Ltd,19791,"3,357.00"
Children & Learning,CHIL,Pathways Through Care,CHF32,Independent Foster Carers,AC0180,Social Services,IFA Under 18,09/08/2022,3523171,Revenue - General Fund,Banya Family Placement Agency Ltd,19791,"3,557.27"
Children & Learning,CHIL,Pathways Through Care,CHF32,Independent Foster Carers,AC0180,Social Services,IFA Under 18,15/08/2022,3531158,Revenue - General Fund,Banya Family Placement Agency Ltd,19791,"3,617.48"
Children & Learning,CHIL,Pathways Through Care,CHF32,Independent Foster Carers,AC0180,Social Services,IFA Under 18,15/08/2022,3531160,Revenue - General Fund,Banya Family Placement Agency Ltd,19791,"5,825.82"
Children & Learning,CHIL,Pathways Through Care,CHF32,Independent Foster Carers,AC0180,Social Services,IFA Under 18,16/08/2022,3531172,Revenue - General Fund,Banya Family Placement Agency Ltd,19791,"3,596.00"
Children & Learning,CHIL,Pathways Through Care,CHF32,Independent Foster Carers,AC0180,Social Services,IFA Under 18,17/08/2022,3531176,Revenue - General Fund,Banya Family Placement Agency Ltd,19791,"3,596.00"
Children & Learning,CHIL,Pathways Through Care,CHF32,Independent Foster Carers,AC0180,Social Services,IFA Under 18,17/08/2022,3531174,Revenue - General Fund,Banya Family Placement Agency Ltd,19791,"3,675.85"
Children & Learning,CHIL,Pathways Through Care,CHF32,Independent Foster Carers,AC0180,Social Services,IFA Under 18,17/08/2022,3531175,Revenue - General Fund,Banya Family Placement Agency Ltd,19791,"3,617.48"
